Reference,Date Paid,Supplier Name,Expenditure Description,Category,Value (�)
203629,22/06/2022,Bartec Auto ID Ltd,Waste Mgmt - Subscriptions,Subscriptions,350.00
203630,22/06/2022,Bartec Auto ID Ltd,Waste Mgmt - Subscriptions,Subscriptions,700.00
203656,22/06/2022,Bartec Auto ID Ltd,Waste Mgmt - Consultants,Credit note ,-9900.00
203989,11/05/2022,Civica UK Limited,Info Tech - Support Costs,ICT Maintenance/Support - Support Costs,2580.00
206505,20/04/2022,Objective Corporation Limited,Plan Policy - Consultants,Consultants - General,5500.00
206531,27/04/2022,Sophie Oldhamstead Photography,Economic Development - Advertising,Advertising,1350.00
206794,06/04/2022,Cambridge University Hospitals NHS FT,Housing Servs - Medic Other,Assessment - Medical Other,417.00
206827,13/04/2022,CATG LTD,Env Protection - Prof Training,Training,399.00
206934,27/04/2022,Mutual Media (UK) Ltd,Print Room - Stationery,Stationery,4509.14
207017,06/04/2022,Glasswells Ltd,Walden Pl Shelt - Cap Wk L&B,Floor Coverings - Capital Works L&B,1228.54
207048,13/04/2022,Contracts Support Services Ltd,Waste Mgmt - Agency Staff,Agency Staff (Professional),535.76
207069,06/04/2022,Essex County Council,Specialists - Conservation - Consultants,Consultants - General,10153.19
207070,06/04/2022,Carrington West Ltd,Dev't Control - Agency Staff,Agency Staff (Professional),1999.85
207071,06/04/2022,The Oyster Partnership Ltd,Dev't Control - Agency Staff,Agency Staff (Professional),1739.00
207072,06/04/2022,The Oyster Partnership Ltd,Dev't Control - Agency Staff,Agency Staff (Professional),1850.00
207073,06/04/2022,The Oyster Partnership Ltd,Dev't Control - Agency Staff,Agency Staff (Professional),1850.00
207074,06/04/2022,Bytes Software Services,Info Tech - Support Costs,ICT Maintenance/Support - Support Costs,15062.57
207075,06/04/2022,Buckingham Futures Ltd,Commercial Team - Agency Staff,Agency Staff (Professional),1841.25
207077,13/04/2022,Alan B Jones & Associates Ltd,Commercial Asset Mgt - Consultants,Consultants - General,510.00
207078,13/04/2022,Elliot Baxter & Co Ltd T/A EBB OFFICE,Print Room - Stationery,Stationery,443.06
207079,06/04/2022,Carrington West Ltd,Dev't Control - Agency Staff,Agency Staff (Professional),1999.85
207081,06/04/2022,Wilkin Chapman LLP,Legal Services - Fees,Legal Services - Fees,2871.50
207082,06/04/2022,Wilkin Chapman LLP,Legal Services - Fees,Legal Services - Fees,3642.50
207083,06/04/2022,Environet UK Limited,GF Asset Mgt - Pl Repairs,Open Spaces - Planned Repairs,7219.60
207084,06/04/2022,Central Tyre Limited,Vehicle Maint - Other Mats,Waste Management - Materials,3334.00
207085,06/04/2022,Widdington Recycling,Grounds Mtce - Disposal Chg,Waste Recycling - Disposal Charge,360.00
207088,06/04/2022,Sygma Security Systems Ltd,GF Asset Mgt - Pl Repairs,Electrical - Planned Repairs,9116.00
207089,06/04/2022,Archant Herts & Cambs,Dev't Control - Advertising,Advertising,585.74
207090,06/04/2022,Archant Herts & Cambs,Dev't Control - Advertising,Advertising,319.50
207091,06/04/2022,Hunnings Consultancy Ltd,Legal Services - Fees,Legal Services - Fees,700.00
207092,06/04/2022,Essex County Council,Legal Services - Legal Fees,Legal Services - Legal Fees,3250.00
207093,06/04/2022,Cornerstone Barristers,Legal Services - Legal Fees,Legal Services - Legal Fees,850.00
207094,06/04/2022,Birketts LLP,Legal Services - Fees,Legal Services - Fees,5151.60
207095,06/04/2022,Locta Limited,Revenues Admin - Software,ICT Software,1860.00
207096,06/04/2022,Martin Builders,Dangerous Str  - Contractors,Works Consultancy - Contractors,344.50
207097,06/04/2022,Council For Voluntary Service Uttlesford,Youth grant - Grants,Grant,1500.00
207098,06/04/2022,Sampford Youth Club,Youth grant - Grants,Grant,631.00
207099,06/04/2022,Stansted Hall & Elsenham Cricket Club,Youth grant - Grants,Grant,1800.00
207101,06/04/2022,Sundry BACS,Youth grant - Grants,Grant,5000.00
207102,06/04/2022,Takeley Parish Council,Youth grant - Grants,Grant,1500.00
207104,06/04/2022,Sundry BACS,Property Servs Business Plan,Grant,4250.00
207105,06/04/2022,Npower Limited,CP Common - Electricity,Corporate Assets Utilities,1388.00
207106,13/04/2022,Motor Parts Direct,Vehicle Maint - Other Mats,Credit note ,-337.50
207107,06/04/2022,Sundry BACS,Hsg Rent Refunds Movements,Housing refund,401.30
207108,06/04/2022,Sundry BACS,Hsg Rent Refunds Movements,Housing refund,524.29
207109,06/04/2022,Sellick Partnership Ltd,Legal Services - Agency Staff,Agency Staff (Professional),522.13
207110,06/04/2022,Ashe Construction Ltd,New Depot Associated Capital Costs,Buildings Repair - Associated Cap Costs,308455.92
207111,06/04/2022,The Oyster Partnership Ltd,Commercial Team - Agency Staff,Agency Staff (Professional),1665.00
207112,06/04/2022,Sellick Partnership Ltd,Legal Services - Agency Staff,Agency Staff (Professional),1375.00
207114,06/04/2022,H B Commercial Ltd,Vehicle Maint - Other Mats,Waste Management - Materials,321.00
207115,06/04/2022,H B Commercial Ltd,Vehicle Maint - Other Mats,Waste Management - Materials,629.42
207116,06/04/2022,H B Commercial Ltd,Vehicle Maint - Other Mats,Waste Management - Materials,734.64
207119,06/04/2022,Sellick Partnership Ltd,Legal Services - Fees,Legal Services - Fees,2145.00
207120,06/04/2022,Treecology,Grounds Mtce  - External Contracts,Tree Trimming - Grounds Maint,350.00
207121,27/04/2022,OCN Contract Services,Homelessness - Furniture,Domestic Furniture,1194.00
207122,06/04/2022,Oasis Hotel Harlow Limited,Homelessness - Accommodation,Homelessness - Accommodation,1188.00
207123,06/04/2022,Oasis Hotel Harlow Limited,Homelessness - Accommodation,Homelessness - Accommodation,252.00
207124,06/04/2022,Oasis Hotel Harlow Limited,Homelessness - Accommodation,Homelessness - Accommodation,501.43
207125,06/04/2022,Oasis Hotel Harlow Limited,Homelessness - Accommodation,Homelessness - Accommodation,347.14
207126,06/04/2022,Oasis Hotel Harlow Limited,Homelessness - Accommodation,Homelessness - Accommodation,578.57
207127,06/04/2022,Oasis Hotel Harlow Limited,Homelessness - Accommodation,Homelessness - Accommodation,1116.00
207128,06/04/2022,Oasis Hotel Harlow Limited,Homelessness - Accommodation,Homelessness - Accommodation,792.00
207129,06/04/2022,Oasis Hotel Harlow Limited,Homelessness - Accommodation,Homelessness - Accommodation,1044.00
207130,06/04/2022,Oasis Hotel Harlow Limited,Homelessness - Accommodation,Homelessness - Accommodation,1157.14
207131,06/04/2022,De Salis Hotel,Homelessness - Accommodation,Homelessness - Accommodation,5865.00
207132,06/04/2022,Stansted Airport Lodge,Homelessness - Accommodation,Homelessness - Accommodation,2349.00
207134,06/04/2022,Sundry BACS,Hsg Rent Refunds Movements,Housing refund,481.14
207137,06/04/2022,Aecom Infrastructure & Env UK Ltd,Plan Policy - Consultants,Consultants - General,8294.00
207138,06/04/2022,M&B Printers Ltd,Print Room - Stationery,Stationery,1185.00
207139,06/04/2022,Haydens Arboricultural Consultants Ltd,Property Servs Business Plan,Housing Dev - Business Plan,666.75
207140,06/04/2022,ACLA,Walden Pl Shelt - Cap Wk L&B,Consultancy (Prop Works)- Cap Wk L&B,850.00
207141,06/04/2022,Richard Utting Associates LLP,The Moors - Cap Wk L&B,Consultancy (Prop Works)- Cap Wk L&B,6568.00
207142,06/04/2022,Carpet Comfort,Sheltered Hsg - Other Mats,Soft Furnishing - Other Materials,387.92
207143,06/04/2022,Carpet Comfort,Sheltered Hsg - Other Mats,Soft Furnishing - Other Materials,408.33
207144,06/04/2022,Mayflower Disclosure Services Ltd,Licensing - Other Mats,Signage - Other Materials,1161.36
207145,06/04/2022,Good People Recycling Ltd,Grounds Mtce  - Agency Staff,Agency Staff (Professional),1476.30
207146,06/04/2022,Good People Recycling Ltd,Waste Mgmt - Agency Staff,Agency Staff (Professional),9669.38
207147,06/04/2022,Quadient UK LTD,Mail Room - Equip Rental,Office & Reprographics -Equipment Rental,3921.98
207148,06/04/2022,Land Use Consultants Limited,Plan Policy - Consultants,Consultants - General,7953.00
207149,06/04/2022,Chelmsford Safety Supplies,Waste Mgmt - Clothing,Protective Clothing - Clothing & Uniform,1539.00
207152,06/04/2022,Source 24/7 LTD,Waste Mgmt - Agency Staff,Agency Staff (Professional),1640.62
207153,06/04/2022,The Oyster Partnership Ltd,Dev't Control - Agency Staff,Agency Staff (Professional),2331.00
207154,06/04/2022,Carrington West Ltd,Dev't Control - Agency Staff,Agency Staff (Professional),1999.85
207155,06/04/2022,The Oyster Partnership Ltd,Dev't Control - Agency Staff,Agency Staff (Professional),1850.00
207156,06/04/2022,The Oyster Partnership Ltd,Dev't Control - Agency Staff,Agency Staff (Professional),1850.00
207157,06/04/2022,Kendall & Sons Ltd,GF Asset Mgt - Pl Repairs,Open Spaces - Planned Repairs,3137.00
207163,06/04/2022,Saffron Walden Agricultural Training Grp,Grounds Mtce  - Prof Training,Training,660.00
207164,06/04/2022,Landmark Road Lining Ltd,GF Asset Mgt - Pl Repairs,Signage - Planned Repairs,800.00
207165,06/04/2022,Freeman & Company (installations) Ltd,GF Asset Mgt - Pl Repairs,Electrical - Planned Repairs,2526.00
207166,06/04/2022,The Oyster Partnership Ltd,Dev't Control - Agency Staff,Agency Staff (Professional),1792.50
207167,06/04/2022,The Oyster Partnership Ltd,Dev't Control - Agency Staff,Agency Staff (Professional),1768.60
207169,06/04/2022,Sundry BACS,NHB Ward Member - Grants,Grant,395.99
207170,06/04/2022,Npower Limited,CP Common - Electricity,Corporate Assets Utilities,1394.33
207171,06/04/2022,The Oyster Partnership Ltd,Dev't Control - Agency Staff,Agency Staff (Professional),1739.00
207174,06/04/2022,Zehnder Group UK Ltd,GF Asset Mgt - Pl Repairs,Heating/Air Cond - Planned Repairs,481.00
207175,06/04/2022,Zehnder Group UK Ltd,GF Asset Mgt - Pl Repairs,Heating/Air Cond - Planned Repairs,481.00
207176,13/04/2022,Keep IT Simple Stationery Ltd,ICT - New Sites - Cap Pur IT,Capital Purchases - IT,618.90
207177,13/04/2022,Keep IT Simple Stationery Ltd,ICT - New Sites - Cap Pur IT,Capital Purchases - IT,4288.00
207178,01/06/2022,Infosec Cloud Ltd,Info Tech - Support Costs,ICT Maintenance/Support - Support Costs,13583.46
207179,06/04/2022,The Oyster Partnership Ltd,Commercial Team - Agency Staff,Agency Staff (Professional),1012.50
207180,06/04/2022,Canon (UK) Limited,Print Room - Photocopier,Reprographics - Photocopier,2986.54
207181,06/04/2022,Canon (UK) Limited,Print Room - Photocopier,Reprographics - Photocopier,729.75
207183,06/04/2022,Berendsen UK Ltd,Vehicle Maint - Other Mats,Waste Management - Materials,337.11
207185,06/04/2022,Buckingham Futures Ltd,Commercial Team - Agency Staff,Agency Staff (Professional),1627.50
207187,06/04/2022,PC Building Services,Waste Mgmt - Other Mats,Waste Management - Materials,250.00
207189,06/04/2022,Sundry BACS,Economic Development - Grants,Grant,1350.00
207192,06/04/2022,NEC Software Solutions UK Ltd,Revenues Admin - Software,ICT Software,4500.00
207193,06/04/2022,NEC Software Solutions UK Ltd,Revenues Admin - Software,ICT Software,675.00
207194,06/04/2022,Stansted Parochial Church Council,PPC Elections - Rent,Rents,300.00
207195,06/04/2022,Bryan Lecoche Ltd,Dev't Control - Consultants,Consultants - General,8577.50
207196,13/04/2022,Concept Energy Solutions Ltd,Climate Change - Consultants,Consultants - General,512.50
207198,13/04/2022,Mr Colin Banks,Street Signs    - Contractors,Works Consultancy - Contractors,310.00
207199,13/04/2022,Cushman & Wakefield Debenham Tie Leung L,Commercial Asset Mgt - Consultants,Consultants - General,213460.00
207200,13/04/2022,A J Veterinary Services Limited,Border Inspect - Oth Prof Fees,Veterinary Services - Other Prof Fees,5572.50
207201,13/04/2022,SGS (formally Concept Life Sciences),Border Inspect - Oth Prof Fees,Forensic & Lab Testing - Oth Prof Fees,3633.48
207202,13/04/2022,Chelmsford City Council,Internal Audit - Consultants,Consultants - General,7878.00
207203,13/04/2022,Solace in Business Ltd,Project Team - Consultants,Consultants - General,10920.00
207204,13/04/2022,Towler Tinlin Associates Limited,Chief Exec - Interview Exp,Consultants - Interview Support,1650.00
207206,13/04/2022,Charisma Spatial Planning Limited,Plan Policy - Grants,Charitable Grants,6392.10
207207,13/04/2022,DW Building,Gold Close - Cap Wk L&B,Capital Works - Land & Buildings,1270.00
207208,13/04/2022,Keep IT Simple Stationery Ltd,ICT - New Sites - Cap Pur IT,Capital Purchases - IT,6432.00
207210,13/04/2022,Virgin Media Payments Ltd,Telephones - Telephones,Telecommunications - Telephones,1136.81
207213,13/04/2022,Oasis Hotel Harlow Limited,Homelessness - Accommodation,Homelessness - Accommodation,900.00
207216,13/04/2022,Oasis Hotel Harlow Limited,Homelessness - Accommodation,Homelessness - Accommodation,1080.00
207217,13/04/2022,Oasis Hotel Harlow Limited,Homelessness - Accommodation,Homelessness - Accommodation,1080.00
207218,13/04/2022,Oasis Hotel Harlow Limited,Homelessness - Accommodation,Homelessness - Accommodation,1080.00
207220,13/04/2022,Oasis Hotel Harlow Limited,Homelessness - Accommodation,Homelessness - Accommodation,1116.00
207221,13/04/2022,Oasis Hotel Harlow Limited,Homelessness - Accommodation,Homelessness - Accommodation,1116.00
207222,13/04/2022,Oasis Hotel Harlow Limited,Homelessness - Accommodation,Homelessness - Accommodation,1080.00
207224,13/04/2022,Oasis Hotel Harlow Limited,Homelessness - Accommodation,Homelessness - Accommodation,347.14
207226,13/04/2022,Broxted Village Hall,Community Grt - Cap Grt P&E,Grant,2975.00
207227,13/04/2022,Sundry BACS,NHB Ward Member - Grants,Grant,395.99
207228,13/04/2022,Sundry BACS,NHB Ward Member - Grants,Grant,1000.00
207229,20/04/2022,Linteum (Uttlesford) Ltd,PFI Financing LTL -Repaid,Leisure Services - LTL - Repaid,12845.00
207229,20/04/2022,Linteum (Uttlesford) Ltd,Int & Invest - Interest Pay,Leisure Services - Interest Payable,30034.00
207229,20/04/2022,Linteum (Uttlesford) Ltd,PFI - PFI Unitary,Leisure Services -PFI Unitary Charge,49895.01
207231,13/04/2022,Barcham Trees PLC,Tree Planting - Cap Grt L&B,Capital Grant - Land & Buildings,961.00
207233,13/04/2022,Kelly Rowland,Health Imp - Grants,Non Charitable Grants,1320.00
207234,13/04/2022,Hogan Lovells International LLP,Commercial Asset Mgt - Consultants,Consultants - General,992.50
207236,13/04/2022,Hogan Lovells International LLP,Commercial Asset Mgt - Consultants,Consultants - General,3653.00
207237,13/04/2022,Novus Environmental,Border Inspect - Disposal Chg,Waste Collection - Waste Disposal,318.85
207238,13/04/2022,Cushman & Wakefield Debenham Tie Leung L,"MOOG, Tawkesbury Cap Pur Acq",Construction - Capital Purchase Acquisit,3100.00
207239,13/04/2022,Hogan Lovells International LLP,"Amazon, Gloucester Associated Capital Costs",Consultancy - Associated Capital Costs,4808.00
207241,13/04/2022,Motor Parts Direct,Vehicle Maint - Other Mats,Waste Management - Materials,322.97
207245,13/04/2022,Motor Parts Direct,Vehicle Maint - Other Mats,Waste Management - Materials,622.50
207249,20/04/2022,Contracts Support Services Ltd,Waste Mgmt - Agency Staff,Agency Staff (Professional),535.76
207251,13/04/2022,Silver Shield Windscreens Limited,Vehicle Maint - Other Mats,Waste Management - Materials,465.00
207253,27/04/2022,George Browns,Grounds Mtce - Equipment,Tools/Equipment (Purchase) - Equipment,1005.00
207254,13/04/2022,J D Robertson & Co Limited,Waste Mgmt - Contract Hire,Vehicle Hire,663.30
207255,13/04/2022,Treecology,Grounds Mtce  - External Contracts,Tree Trimming - Grounds Maint,650.00
207256,13/04/2022,Penna PLC,Financial Srvs - Agency Staff,Agency Staff (Professional),2196.00
207257,13/04/2022,Calibration & Consultancy Services UK Lt,Vehicle Maint - Other Mats,Vehicle Parts - Other Materials,669.00
207258,13/04/2022,Council For Voluntary Service Uttlesford,Health Imp - Grants,Non Charitable Grants,484.08
207259,13/04/2022,Berendsen UK Ltd,Vehicle Maint - Other Mats,Waste Management - Materials,337.11
207260,13/04/2022,Central Tyre Limited,Vehicle Maint - Other Mats,Waste Management - Materials,1170.00
207262,13/04/2022,Safetykleen UK Ltd,Vehicle Maint - Other Mats,Waste Management - Materials,505.99
207265,13/04/2022,Hogan Lovells International LLP,Commercial Asset Mgt - Consultants,Consultants - General,630.50
207269,13/04/2022,Radwinter Recreation Ground Charity,Community Grt - Cap Grt P&E,Grant,3500.00
207270,13/04/2022,Takeley Parish Council,NHB Ward Member - Grants,Grant,6000.00
207273,13/04/2022,Henry Riley,New Depot Associated Capital Costs,Consultancy - Associated Capital Costs,5000.00
207274,13/04/2022,Cooper Lomaz Recruitment Ltd,Info Tech - Agency Staff,Agency Staff (Professional),1800.00
207275,13/04/2022,Tradition (UK) Ltd,Treasury Man - Fees,Financial Services - Borrowing Fees,257.53
207276,13/04/2022,Imperial Treasury Services Ltd,Treasury Man - Fees,Financial Services - Borrowing Fees,4082.20
207278,13/04/2022,Hogan Lovells International LLP,Skyway House Cap Pur Acq,Construction - Capital Purchase Acquisit,582.50
207282,13/04/2022,Sellick Partnership Ltd,Legal Services - Agency Staff,Agency Staff (Professional),910.69
207283,13/04/2022,Uttlesford Norse Ltd.,Trunk/Access Rd - Cap Wk L&B,Road Reconst/Resurfacing - Cap Rep P&E,2893.55
207283,13/04/2022,Uttlesford Norse Ltd.,Cent Heating - Cap Rep P&E,Heating/Air Cond - Cap Wks P&E,401932.71
207283,13/04/2022,Uttlesford Norse Ltd.,Add Dis Works - Cap Rep P&E,Social & Community Equip - Cap Rep P&E,6273.59
207283,13/04/2022,Uttlesford Norse Ltd.,Env Works - Cap Rep P&E,Capital Repairs - Plant & Equipment,145155.37
207283,13/04/2022,Uttlesford Norse Ltd.,Sheltered Sec - Cap Rep P&E,Capital Repairs - Plant & Equipment,29397.29
207283,13/04/2022,Uttlesford Norse Ltd.,Structural Wrk - Cap Rep L&B,Buildings Repair/Maint - Cap Rep L&B,369271.76
207283,13/04/2022,Uttlesford Norse Ltd.,Sewerage Plant - Cap Rep L&B,Sewerage - Cap Rep L&B,47714.88
207283,13/04/2022,Uttlesford Norse Ltd.,Major Roof Wrk - Cap Rep L&B,Roofing - Capital Rep L&B,301044.64
207283,13/04/2022,Uttlesford Norse Ltd.,Door Replace - Cap Rep P&E,Doors & Windows - Cap Rep P&E,170782.16
207283,13/04/2022,Uttlesford Norse Ltd.,Re-Wiring - Cap Rep P&E,Electrical - Cap Rep P&E,4730.98
207283,13/04/2022,Uttlesford Norse Ltd.,Disabled Adapt - Cap Rep P&E,Capital Repairs - Plant & Equipment,200235.71
207283,13/04/2022,Uttlesford Norse Ltd.,Bath/Kitch Rep - Cap Rep P&E,Kitchens - Cap Wks P&E,593300.14
207283,13/04/2022,Uttlesford Norse Ltd.,Re-Windowing - Cap Rep P&E,Doors & Windows - Cap Rep P&E,126213.77
207283,13/04/2022,Uttlesford Norse Ltd.,Insulation Works - Cap Wk L&B,Capital Repairs - Plant & Equipment,25650.90
207283,13/04/2022,Uttlesford Norse Ltd.,Fascias & Guttering - Cap Rep P&E,Capital Repairs - Plant & Equipment,105745.91
207283,13/04/2022,Uttlesford Norse Ltd.,Lift Replacement - Cap Rep P&E,Capital Repairs - Plant & Equipment,44735.53
207284,13/04/2022,Uttlesford Norse Ltd.,Env Works - Cap Rep P&E,Capital Repairs - Plant & Equipment,1474.63
207284,13/04/2022,Uttlesford Norse Ltd.,Structural Wrk - Cap Rep L&B,Buildings Repair/Maint - Cap Rep L&B,1635.00
207284,13/04/2022,Uttlesford Norse Ltd.,Major Roof Wrk - Cap Rep L&B,Roofing - Capital Rep L&B,4714.60
207284,13/04/2022,Uttlesford Norse Ltd.,Door Replace - Cap Rep P&E,Doors & Windows - Cap Rep P&E,1224.83
207284,13/04/2022,Uttlesford Norse Ltd.,Disabled Adapt - Cap Rep P&E,Capital Repairs - Plant & Equipment,20536.46
207284,13/04/2022,Uttlesford Norse Ltd.,Bath/Kitch Rep - Cap Rep P&E,Kitchens - Cap Wks P&E,51944.57
207284,13/04/2022,Uttlesford Norse Ltd.,Re-Windowing - Cap Rep P&E,Doors & Windows - Cap Rep P&E,17220.44
207284,13/04/2022,Uttlesford Norse Ltd.,Insulation Works - Cap Wk L&B,Capital Repairs - Plant & Equipment,2387.01
207285,13/04/2022,Malins Associates Limited,Property Servs - Consultants,Consultants - General,3780.00
207286,13/04/2022,Animal Welfare Licensing,Env Protection - Consultants,Consultants - General,4700.30
207287,13/04/2022,Sellick Partnership Ltd,Legal Services - Agency Staff,Agency Staff (Professional),1375.00
207288,13/04/2022,DNU Northumbrian Water Limited,Env Protection - Oth Prof Fees,Forensic & Lab Testing - Oth Prof Fees,630.75
207289,13/04/2022,International Parking Systems (UK) Ltd,CP Overheads - Equip Rental,Parking Machines - Equipment Maintenance,332.50
207290,13/04/2022,International Parking Systems (UK) Ltd,CP Overheads - Bank Charges,Bank Charges,4930.24
207291,13/04/2022,Sellick Partnership Ltd,Legal Services - Fees,Legal Services - Fees,2115.00
207292,20/04/2022,Uttlesford Norse Ltd.,Norse Partnership Estates - Fees,Partnerships - Fees,17284.30
207292,20/04/2022,Uttlesford Norse Ltd.,Norse Partnership Hsg Rep - Fees,Partnerships - Fees,159691.90
207292,20/04/2022,Uttlesford Norse Ltd.,Norse Partnership Sheltered - Fees,Partnerships - Fees,9781.66
207292,20/04/2022,Uttlesford Norse Ltd.,Norse Partnership Sewerage - Fees,Partnerships - Fees,4179.27
207293,20/04/2022,Uttlesford Norse Ltd.,Norse Partnership Hsg Rep - Fees,Partnerships - Fees,38199.15
207294,20/04/2022,Uttlesford Norse Ltd.,Norse Partnership Admin - Fees,Partnerships - Fees,30237.19
207294,20/04/2022,Uttlesford Norse Ltd.,Norse Partnership Hsg Rep - Fees,Partnerships - Fees,48880.02
207295,20/04/2022,Uttlesford Norse Ltd.,Voids Prog - Cap Rep L&B,Buildings Repair/Maint - Cap Rep L&B,52450.00
207296,20/04/2022,Uttlesford Norse Ltd.,Norse Partnership Asset Mgt - Fees,Partnerships - Fees,14136.44
207296,20/04/2022,Uttlesford Norse Ltd.,Norse Partnership Cleaning - Fees,Partnerships - Fees,18996.10
207297,13/04/2022,LLG Enterprises Ltd,Legal Services - Fees,Legal Services - Fees,285.00
207299,13/04/2022,The Institute of Licensing (Events) Ltd,Licensing - Other Mats,Signage - Other Materials,260.00
207300,13/04/2022,The Institute of Licensing (Events) Ltd,Licensing - Other Mats,Signage - Other Materials,260.00
207301,13/04/2022,Skyline Hotel,Homelessness - Accommodation,Homelessness - Accommodation,1255.50
207302,13/04/2022,Skyline Hotel,Homelessness - Accommodation,Homelessness - Accommodation,1255.50
207303,13/04/2022,Skyline Hotel,Homelessness - Accommodation,Homelessness - Accommodation,1255.50
207304,13/04/2022,Skyline Hotel,Homelessness - Accommodation,Homelessness - Accommodation,1829.00
207305,13/04/2022,Skyline Hotel,Homelessness - Accommodation,Homelessness - Accommodation,1134.00
207306,13/04/2022,Skyline Hotel,Homelessness - Accommodation,Homelessness - Accommodation,1255.50
207307,13/04/2022,Skyline Hotel,Homelessness - Accommodation,Homelessness - Accommodation,1255.50
207308,13/04/2022,SWAN Netball Club,Leisure & Adm - Seminars,Room Hire - Seminars & Meetings,500.00
207310,13/04/2022,Action for Family Carers,Voluntary Org - Grants,Grant,10000.00
207311,13/04/2022,Uttlesford Buffy Bus Association,Voluntary Org - Grants,Grant,4000.00
207312,13/04/2022,Accuro,Voluntary Org - Grants,Grant,10000.00
207313,13/04/2022,Drivercheck Ltd,Licensing - Other Mats,Signage - Other Materials,528.50
207314,13/04/2022,Dig It Community Allotment,Voluntary Org - Grants,Grant,2500.00
207315,13/04/2022,Sundry BACS,Voluntary Org - Grants,Grant,5000.00
207316,13/04/2022,G2 Recruitment Solutions,Commercial Team - Agency Staff,Agency Staff (Professional),700.00
207319,13/04/2022,Bakers of Danbury Heritage Ltd,GF Asset Mgt - Pl Repairs,Open Spaces - Planned Repairs,1661.91
207321,13/04/2022,R2C Online Ltd,Vehicle Maint - Subscriptions,Subscriptions,2490.12
207322,13/04/2022,Cooper Lomaz Recruitment Ltd,Info Tech - Agency Staff,Agency Staff (Professional),1800.00
207323,13/04/2022,Oasis Hotel Harlow Limited,Homelessness - Accommodation,Homelessness - Accommodation,1255.50
207324,13/04/2022,Oasis Hotel Harlow Limited,Homelessness - Accommodation,Homelessness - Accommodation,3772.50
207325,13/04/2022,Oasis Hotel Harlow Limited,Homelessness - Accommodation,Homelessness - Accommodation,1080.00
207326,13/04/2022,Oasis Hotel Harlow Limited,Homelessness - Accommodation,Homelessness - Accommodation,684.00
207327,13/04/2022,Oasis Hotel Harlow Limited,Homelessness - Accommodation,Homelessness - Accommodation,432.00
207330,13/04/2022,Good People Recycling Ltd,Grounds Mtce  - Agency Staff,Agency Staff (Professional),1813.00
207331,13/04/2022,Good People Recycling Ltd,Waste Mgmt - Agency Staff,Agency Staff (Professional),10507.63
207332,13/04/2022,East Herts Citizens Advice Service,Voluntary Org - Grants,Grant,8000.00
207333,13/04/2022,Support 4 Sight,Voluntary Org - Grants,Grant,8000.00
207334,13/04/2022,Sundry BACS,Voluntary Org - Grants,Grant,4000.00
207335,13/04/2022,Home-Start Essex,Voluntary Org - Grants,Grant,8000.00
207336,13/04/2022,Saffron Hall Trust,Voluntary Org - Grants,Grant,3000.00
207337,13/04/2022,Sundry BACS,Voluntary Org - Grants,Grant,2500.00
207338,13/04/2022,Uttlesford Community Travel,Community Grt - Cap Grt P&E,Grant,17000.00
207338,13/04/2022,Uttlesford Community Travel,Voluntary Org - Grants,Grant,35000.00
207339,13/04/2022,Volunteer Centre Uttlesford,Voluntary Org - Grants,Grant,15000.00
207340,13/04/2022,Carrington West Ltd,Dev't Control - Agency Staff,Agency Staff (Professional),2020.85
207341,13/04/2022,Mark Liell & Son LLP,Commercial Asset Mgt - Fees,Legal Services - Fees,11356.25
207342,13/04/2022,Mark Liell & Son LLP,Commercial Asset Mgt - Fees,Legal Services - Fees,3750.00
207343,13/04/2022,Mark Liell & Son LLP,Commercial Asset Mgt - Fees,Legal Services - Fees,8140.00
207344,20/04/2022,Mark Liell & Son LLP,Commercial Asset Mgt - Fees,Partnerships - Fees,11013.25
207345,20/04/2022,George Browns,Grounds Mtce - Equipment,Tools/Equipment (Purchase) - Equipment,515.00
207346,13/04/2022,Archant Herts & Cambs,Dev't Control - Advertising,Advertising,449.37
207348,27/04/2022,Kendall & Sons Ltd,GF Asset Mgt - Pl Repairs,Road Reconst/Resurfacing - Pl Repairs,487.00
207349,13/04/2022,We Care 4 Air Ltd,Air/Noise Pol - Equip Maint,Monitoring (Environmental) - Equip Maint,8984.50
207351,13/04/2022,Hyperfusion Theatre Company,Comm Safe Part - Seminars,Conferences - Seminars & Meetings,1145.00
207352,13/04/2022,Mark Liell & Son LLP,Commercial Asset Mgt - Fees,Partnerships - Fees,3000.00
207355,13/04/2022,Mark Liell & Son LLP,Commercial Asset Mgt - Fees,Partnerships - Fees,3518.72
207356,13/04/2022,Sundry BACS,H Ben Allow'ce - Rent Allow,Housing Ben,5070.00
207357,13/04/2022,The Oyster Partnership Ltd,Dev't Control - Agency Staff,Agency Staff (Professional),1850.00
207358,13/04/2022,General Business Holdings Ltd,Waste Mgmt - Disposal Chg,Waste Disposal - Disposal Charge,2064.75
207359,20/04/2022,Softcat Limited,Info Tech - Support Costs,ICT Maintenance/Support - Support Costs,81825.54
207360,13/04/2022,The Oyster Partnership Ltd,Dev't Control - Agency Staff,Agency Staff (Professional),1792.50
207361,13/04/2022,PPK Services Limited,Vehicle Maint - Other Mats,Vehicle Parts - Other Materials,2225.00
207364,13/04/2022,Blackmore Construction Environmental,GF Asset Mgt - Pl Repairs,Roofing - Planned Repairs,10000.00
207366,13/04/2022,Locata (Housing Services) Ltd,Housing Servs - Fees,Housing (Misc) - Fees,5250.00
207367,13/04/2022,Acoustic Associates (Peterborough),Walden Pl Shelt - Cap Wk L&B,Consultancy (Prop Works)- Cap Wk L&B,1040.00
207368,13/04/2022,Rossi Long Consulting Ltd,Walden Pl Shelt - Cap Wk L&B,Consultancy (Prop Works)- Cap Wk L&B,4961.25
207369,13/04/2022,Ingleton Wood,The Moors - Cap Wk L&B,Consultancy (Prop Works)- Cap Wk L&B,430.00
207370,13/04/2022,ALH Building Services Design Ltd,Walden Pl Shelt - Cap Wk L&B,Consultancy (Prop Works)- Cap Wk L&B,5600.00
207371,13/04/2022,Duncan Cameron & Hutchinson Ltd,Thaxted Road - Cap Wk L&B,Sheltered Housing (Cap L&B),76045.28
207372,13/04/2022,Duncan Cameron & Hutchinson Ltd,Thaxted Road - Cap Wk L&B,Sheltered Housing (Cap L&B),122978.22
207373,13/04/2022,Duncan Cameron & Hutchinson Ltd,Great Chesterford - Cap Wk L&B,Consultancy (Prop Works)- Cap Wk L&B,119934.30
207374,13/04/2022,Duncan Cameron & Hutchinson Ltd,Great Chesterford - Cap Wk L&B,Consultancy (Prop Works)- Cap Wk L&B,120218.93
207375,13/04/2022,Source 24/7 LTD,Waste Mgmt - Agency Staff,Agency Staff (Professional),1586.87
207377,13/04/2022,Great Dunmow Town Council,Comm Safe Part - Seminars,Conferences - Seminars & Meetings,320.00
207378,13/04/2022,Skyline Hotel,Homelessness - Accommodation,Homelessness - Accommodation,1134.00
207379,13/04/2022,Skyline Hotel,Homelessness - Accommodation,Homelessness - Accommodation,354.00
207381,13/04/2022,Skyline Hotel,Homelessness - Accommodation,Homelessness - Accommodation,405.00
207388,20/04/2022,Contracts Support Services Ltd,Waste Mgmt - Agency Staff,Agency Staff (Professional),401.82
207389,20/04/2022,Contracts Support Services Ltd,Waste Mgmt - Agency Staff,Agency Staff (Professional),296.84
207391,27/04/2022,Total Gas & Power Limited,Thaxted CIC - Gas,Corporate Assets Utilities,6817.26
207393,20/04/2022,Altair Consultancy and Advisory Services,Dev't Control - Consultants,Consultants - General,3850.00
207394,20/04/2022,Dennis Eagle Limited,Vehicle Maint - Other Mats,Waste Management - Materials,1091.65
207398,20/04/2022,James Button & Co,Licensing - Other Mats,Signage - Other Materials,290.00
207399,20/04/2022,Eversheds Sutherland (International) LLP,Dev't Control - Consultants,Consultants - General,26725.00
207400,20/04/2022,Knight (North & Midlands) Ltd,Stansted Airport - Consultants,Consultants - General,3237.50
207402,20/04/2022,Home-Start Essex,NHB Ward Member - Grants,Grant,250.00
207403,20/04/2022,Sellick Partnership Ltd,Legal Services - Agency Staff,Agency Staff (Professional),777.12
207404,20/04/2022,Sellick Partnership Ltd,Legal Services - Fees,Legal Services - Fees,2145.00
207405,20/04/2022,Affinity Water,Street Clnsing - Water,Street Cleaning - Water Services,6267.80
207406,20/04/2022,Archant Herts & Cambs,Dev't Control - Advertising,Advertising,347.10
207408,20/04/2022,Wilkin Chapman LLP,Legal Services - Legal Fees,Legal Services - Legal Fees,2583.00
207411,20/04/2022,Association of Port Health Authorities,Border Inspect - Subscriptions,Subscriptions,1179.00
207414,20/04/2022,The Oyster Partnership Ltd,Dev't Control - Agency Staff,Agency Staff (Professional),1869.58
207415,20/04/2022,The Oyster Partnership Ltd,Dev't Control - Agency Staff,Agency Staff (Professional),1720.80
207417,20/04/2022,Stansted Mountfitchet Parish Council,NHB Ward Member - Grants,Grant,3500.00
207418,20/04/2022,Tetra Tech,Plan Policy - Consultants,Consultants - General,35000.00
207419,20/04/2022,Paul Butcher,New Depot Associated Capital Costs,Buildings Repair - Associated Cap Costs,980.00
207420,20/04/2022,Saffron Signs,Waste Mgmt - Other Mats,Signage - Other Materials,900.00
207421,20/04/2022,Saffron Signs,Waste Mgmt - Other Mats,Signage - Other Materials,680.00
207425,20/04/2022,Cornerstone Barristers,Plan Policy - Legal Fees,Legal Services - Legal Fees,1575.00
207427,20/04/2022,Sellick Partnership Ltd,Legal Services - Legal Fees,Legal Services - Legal Fees,1375.00
207428,20/04/2022,Sundry BACS,Waste Mgmt - Other Mats,Waste Mgmt,760.00
207430,20/04/2022,Saffron Walden Business Improvement,BID Levy Collection Movemt in year,BID Levy Movement,30945.25
207433,20/04/2022,Carrington West Ltd,Dev't Control - Agency Staff,Agency Staff (Professional),2110.85
207434,20/04/2022,Solace in Business Ltd,Dir Pub Servs - Agency Staff,Agency Staff (Professional),21735.00
207435,20/04/2022,Craig Reynolds,Economic Development - Advertising,Advertising,650.00
207436,20/04/2022,Rachel Slough Consulting Ltd (RSC),Human Resource - Prof Training,Training,2980.00
207439,20/04/2022,Contracts Support Services Ltd,Waste Mgmt - Agency Staff,Agency Staff (Professional),406.82
207446,20/04/2022,Auto Door Specialist,GF Asset Mgt - Pl Repairs,Doors & Windows - Planned Repairs,2515.00
207447,20/04/2022,Cornerstone Barristers,Legal Services - Fees,Legal Services - Fees,1280.00
207448,20/04/2022,Cartridge Save Ltd,Border Inspect - Equipment,Tools/Equipment (Purchase) - Equipment,323.73
207450,20/04/2022,VineHR Limited,Human Resource - Subscriptions,Subscriptions,3000.00
207452,20/04/2022,Police & Crime Commissioner for Essex,Community Support Officers - Oth Loc Auth,Staff (Professional) - Other Loc Aut,11401.17
207453,20/04/2022,Police & Crime Commissioner for Essex,Community Support Officers - Oth Loc Auth,Staff (Professional) - Other Loc Aut,9662.01
207454,20/04/2022,Police & Crime Commissioner for Essex,Community Support Officers - Oth Loc Auth,Staff (Professional) - Other Loc Aut,7053.27
207455,20/04/2022,Good People Recycling Ltd,Grounds Mtce  - Agency Staff,Agency Staff (Professional),1813.00
207456,20/04/2022,Good People Recycling Ltd,Waste Mgmt - Agency Staff,Agency Staff (Professional),11519.82
207457,20/04/2022,Integra User Group,Financial Srvs - Subscriptions,Subscriptions,385.00
207459,20/04/2022,Patricia Ackron,Health Imp - Seminars,Room Hire - Seminars & Meetings,420.00
207463,20/04/2022,Cooleraid Ltd,Vending Serv - Equip Rental,Vending Machines - Equip Rental,256.50
207466,20/04/2022,Thaxted Centre For The Disabled,NHB Ward Member - Grants,Grant,500.00
207467,20/04/2022,Thaxted Day Centre,NHB Ward Member - Grants,Grant,1000.00
207474,27/04/2022,Sundry BACS,NHB Ward Member - Grants,Grant,400.00
207475,27/04/2022,Sundry BACS,Economic Development - Grants,Grant,5000.00
207476,27/04/2022,Solace in Business Ltd,Dir Pub Servs - Interview Exp,Consultants - Interview Support,723.70
207477,27/04/2022,Graham Hathaway Racing,Grounds Mtce - Equipment,Tools/Equipment (Purchase) - Equipment,1939.50
207478,27/04/2022,Housing Partners Limited,Housing Servs - Subscriptions,Subscriptions,5641.28
207479,04/05/2022,Allied Images Limited,Mail Room - Stationery,Stationery,414.00
207481,27/04/2022,Barberry Industrial Limited,"MOOG, Tawkesbury Cap Pur Acq",Construction - Capital Purchase Acquisit,1370067.25
207483,27/04/2022,British Heart Foundation,New Depot Associated Capital Costs,Buildings Repair - Associated Cap Costs,1466.66
207487,27/04/2022,Abrey & Son Ltd,Grounds Mtce  - External Contracts,Horticultural (Misc) - Grounds Maint,663.73
207488,27/04/2022,Cambridge University Hospitals NHS FT,Waste Mgmt - Medic Other,Assessment - Medical Other,945.00
207489,27/04/2022,Ex-Job Limited,Licensing - Other Mats,Signage - Other Materials,2886.80
207490,27/04/2022,Good People Recycling Ltd,Grounds Mtce  - Agency Staff,Agency Staff (Professional),1470.00
207491,27/04/2022,Good People Recycling Ltd,Waste Mgmt - Agency Staff,Agency Staff (Professional),11246.01
207492,27/04/2022,Source 24/7 LTD,Waste Mgmt - Agency Staff,Agency Staff (Professional),1468.75
207494,27/04/2022,Hickton Consultants Ltd,New Depot Associated Capital Costs,Consultancy - Associated Capital Costs,1880.00
207495,27/04/2022,Chelmsford City Council,Procurement - Oth Loc Auth,Staff (Professional) - Other Loc Aut,8260.27
207496,27/04/2022,Firetrace Ltd,Vehicle Maint - Vehicle Maint,Vehicle Parts - Maintenance,480.00
207497,27/04/2022,H B Commercial Ltd,Vehicle Maint - Other Mats,Waste Management - Materials,392.44
207499,27/04/2022,Source 24/7 LTD,Waste Mgmt - Agency Staff,Agency Staff (Professional),1573.25
207500,27/04/2022,Total ID Ltd,S/W Offices - Ad Hoc Repair,Security (Access Control)- Ad Hoc Repair,570.25
207501,04/05/2022,EE Ltd,GF Asset Mgt - Mobiles,Corporate Mobile Phones ,4109.82
207503,27/04/2022,Hickton Consultants Ltd,New Depot Associated Capital Costs,Credit note ,-752.00
207504,27/04/2022,Essex County Council,Specialists - Conservation - Consultants,Consultants - General,8881.43
207505,27/04/2022,Analytics4energy Ltd,S/W Offices - Pl Repairs,Heating/Air Cond - Planned Repairs,300.00
207510,27/04/2022,Essex County Council,Garden Communities DPD - Consultants,Consultants - General,3800.00
207514,27/04/2022,Zehnder Group UK Ltd,GF Asset Mgt - Pl Repairs,Heating/Air Cond - Planned Repairs,481.00
207515,27/04/2022,Essex County Council,Dev't Control - Subscriptions,Subscriptions,8312.00
207516,27/04/2022,Archant Herts & Cambs,Dev't Control - Advertising,Advertising,381.19
207518,27/04/2022,Sundry BACS,Hsg Rent Refunds Movements,Housing Rent Refund,1298.10
207519,27/04/2022,Sundry BACS,Hsg Rent Refunds Movements,Housing Rent Refund,1803.73
207521,11/05/2022,Council For Voluntary Service Uttlesford,Voluntary Org - Grants,Grant,40000.00
207522,27/04/2022,Sundry BACS,Voluntary Org - Grants,Grant,4000.00
207524,27/04/2022,Carrington West Ltd,Dev't Control - Agency Staff,Agency Staff (Professional),2110.85
207526,27/04/2022,Planned Environmental Services Ltd,New Depot Associated Capital Costs,Buildings Repair - Associated Cap Costs,278.20
207527,27/04/2022,Structural Engineers Cambridge Ltd,GF Asset Mgt - Pl Repairs,Buildings - Planned Repairs,595.00
207528,27/04/2022,West Devon Borough Council,Chief Exec - Subscriptions,Subscriptions,3041.00
207529,27/04/2022,G2 Recruitment Solutions,Commercial Team - Agency Staff,Agency Staff (Professional),937.50
207530,27/04/2022,Essex County Council,Land Charges - Fees,Land Search Fees,616.00
207531,27/04/2022,International Parking Systems (UK) Ltd,CP Overheads - Equip Rental,Parking Machines - Equipment Maintenance,332.50
207532,27/04/2022,International Parking Systems (UK) Ltd,CP Overheads - Bank Charges,Bank Charges,4240.96
207533,27/04/2022,Dennis Eagle Limited,Vehicle Maint - Other Mats,Waste Management - Materials,277.93
207539,27/04/2022,Essex County Council,Dev Ctrl PPA - Consultants,Consultants - General,535.00
207540,27/04/2022,Norton Taylor Nunn Ltd,Dev Ctrl Appls - Legal Fees,Legal Services - Legal Fees,10000.00
207541,27/04/2022,Sundry BACS,Below the Line Pooling of RTB,RTB,425570.10
207542,04/05/2022,Sundry BACS,Hsg Rent Refunds Movements,Housing Rent Refund,611.41
207543,27/04/2022,Freeman & Company (installations) Ltd,GF Asset Mgt - Ad Hoc Repair,Lighting - Ad hoc Repair,1520.00
207546,27/04/2022,WasteParts UK Ltd,Vehicle Maint - Other Mats,Waste Management - Materials,876.03
207548,27/04/2022,Essex Fire Authority,Info Tech - Subscriptions,Subscriptions,4278.00
207550,27/04/2022,Straight Plc,Food Caddies - Cap Pur P&E,Capital Purchases - Plant & Equipment,1120.00
207552,04/05/2022,Buckingham Futures Ltd,Commercial Team - Agency Staff,Agency Staff (Professional),285.00
207553,04/05/2022,Buckingham Futures Ltd,Commercial Team - Agency Staff,Agency Staff (Professional),3187.50
207555,27/04/2022,Mayflower Disclosure Services Ltd,Licensing - Other Mats,Signage - Other Materials,774.24
207557,27/04/2022,AdEPT Telecom PLC T/A Centrix Ltd,Telephones - Telephones,Chairmans Expenses,2287.67
207560,27/04/2022,The Oyster Partnership Ltd,Dev't Control - Agency Staff,Agency Staff (Professional),1526.10
207561,27/04/2022,The Oyster Partnership Ltd,Dev't Control - Agency Staff,Agency Staff (Professional),1434.00
207562,11/05/2022,One51 ES Plastics UK t/a MGB Plastics,Containers - Cap Pur P&E,Capital Purchases - Plant & Equipment,5880.00
207564,27/04/2022,Amas Ltd,Dir Pub Servs - Interview Exp,Recruitment - Interview,488.46
207565,27/04/2022,ACS Limited,Benefits Admin - Consultants,Consultants - General,1500.00
207565,27/04/2022,ACS Limited,Revenues Admin - Consultants,Consultants - General,300.00
207566,01/06/2022,AdEPT Telecom PLC T/A Centrix Ltd,Video Conferencing - Cap Pur IT,Credit note ,-2066.40
207568,04/05/2022,Sellick Partnership Ltd,Legal Services - Agency Staff,Agency Staff (Professional),971.40
207569,04/05/2022,Sellick Partnership Ltd,Legal Services - Agency Staff,Agency Staff (Professional),643.55
207571,04/05/2022,Sellick Partnership Ltd,Legal Services - Fees,Legal Services - Fees,1684.80
207572,04/05/2022,Elliot Baxter & Co Ltd T/A EBB OFFICE,Print Room - Stationery,Stationery,285.54
207573,11/05/2022,One51 ES Plastics UK t/a MGB Plastics,Containers - Cap Pur P&E,Capital Purchases - Plant & Equipment,6645.00
207574,04/05/2022,Sellick Partnership Ltd,Legal Services - Legal Fees,Legal Services - Legal Fees,1375.00
207575,04/05/2022,Sellick Partnership Ltd,Legal Services - Legal Fees,Legal Services - Legal Fees,1375.00
207576,04/05/2022,Archant Herts & Cambs,Dev't Control - Advertising,Advertising,400.62
207577,04/05/2022,Archant Herts & Cambs,Dev't Control - Advertising,Advertising,735.78
207578,04/05/2022,Archant Herts & Cambs,Dev't Control - Advertising,Advertising,371.50
207579,04/05/2022,Computershare Voucher Services,Human Resource - Emp'ee Scheme,Human Resources - Emp'ee Scheme,617.08
207581,04/05/2022,De Salis Hotel,Homelessness - Accommodation,Homelessness - Accommodation,7665.88
207582,04/05/2022,Freshworks Inc,Info Tech - Support Costs,ICT Maintenance/Support - Support Costs,4391.82
207583,04/05/2022,Sundry BACS,Bldg Surveying - Charges,Building surveying charges,336.00
207584,04/05/2022,Dennis Eagle Limited,Vehicle Maint - Other Mats,Waste Management - Materials,536.25
207585,04/05/2022,Dennis Eagle Limited,Vehicle Maint - Other Mats,Vehicle Parts - Other Materials,7245.00
207586,04/05/2022,Contracts Support Services Ltd,Waste Mgmt - Agency Staff,Agency Staff (Professional),674.36
207589,04/05/2022,Nickolds Property Management,Homelessness - Emerg Supply,Homelessness - Emergency Supplies,996.92
207590,04/05/2022,Nviron Ltd,Cyber Security - Cap Pur IT,ICT Software - Cap Pur IT,3750.00
207592,04/05/2022,G2 Recruitment Solutions,Commercial Team - Agency Staff,Agency Staff (Professional),1443.75
207593,04/05/2022,CIPFA Business Ltd,Financial Srvs - Prof Subs,Professional Subscriptions,3100.00
207594,04/05/2022,Sellick Partnership Ltd,Legal Services - Fees,Legal Services - Fees,690.00
207595,11/05/2022,Positive Waste Solutions Ltd,Waste Mgmt - Other Mats,Waste Management - Materials,2907.50
207596,04/05/2022,Encore Envelopes Ltd,Mail Room - Stationery,Stationery,1165.50
207597,04/05/2022,NEC Software Solutions UK Ltd,Revenues Admin - Software,ICT Software,2075.00
207600,11/05/2022,The Oyster Partnership Ltd,Dev't Control - Agency Staff,Agency Staff (Professional),1434.00
207603,04/05/2022,Dennis Eagle Limited,Vehicle Maint - Other Mats,Waste Management - Materials,328.31
207611,04/05/2022,Cooper Lomaz Recruitment Ltd,Info Tech - Agency Staff,Agency Staff (Professional),1440.00
207612,04/05/2022,Gracelands CMS Ltd,Dis Facil Grt - Cap Grt L&B,Grants - S106 Cap Grt L&B,5272.13
207614,04/05/2022,Cooper Lomaz Recruitment Ltd,Info Tech - Agency Staff,Agency Staff (Professional),1800.00
207616,04/05/2022,R A Butler infant & junior School,NHB Ward Member - Grants,Grant,250.00
207617,04/05/2022,Good People Recycling Ltd,Grounds Mtce  - Agency Staff,Agency Staff (Professional),722.75
207618,04/05/2022,Good People Recycling Ltd,Waste Mgmt - Agency Staff,Agency Staff (Professional),11393.01
207620,04/05/2022,Carrington West Ltd,Dev't Control - Agency Staff,Agency Staff (Professional),2110.85
207621,04/05/2022,Land Use Consultants Limited,Plan Policy - Consultants,Consultants - General,912.00
207622,04/05/2022,Treecology,Grounds Mtce  - External Contracts,Tree Trimming - Grounds Maint,1450.00
207624,04/05/2022,POS Enterprises Ltd,Plan Policy - Prof Subs,Professional Subscriptions,1000.00
207625,11/05/2022,NewAuto Ltd T/A Mogo,Licensing - Other Mats,Signage - Other Materials,3059.90
207627,04/05/2022,Cornerstone Barristers,Legal Services - Legal Fees,Legal Services - Legal Fees,750.00
207628,04/05/2022,Environment Agency,Hsg Sewerage - Water,Water Assesment/Treatment-Water Services,890.00
207629,04/05/2022,Environment Agency,Hsg Sewerage - Water,Water Assesment/Treatment-Water Services,890.00
207630,04/05/2022,Environment Agency,Hsg Sewerage - Water,Water Assesment/Treatment-Water Services,1580.00
207631,04/05/2022,Environment Agency,Hsg Sewerage - Water,Water Assesment/Treatment-Water Services,890.00
207640,11/05/2022,Sundry BACS,Hsg Rent Refunds Movements,Housing rent refund ,3245.29
207642,04/05/2022,Hunnings Consultancy Ltd,Legal Services - Fees,Legal Services - Fees,700.00
207643,04/05/2022,Sundry BACS,NHB Ward Member - Grants,Grant,500.00
207645,11/05/2022,Malthouse Security Ltd,Sheltered Hsg - Equipment,Health Care Equipment,942.12
207646,11/05/2022,Mr Colin Banks,Street Signs    - Contractors,Works Consultancy - Contractors,695.00
207647,11/05/2022,Sellick Partnership Ltd,Legal Services - Agency Staff,Agency Staff (Professional),947.12
207648,11/05/2022,Henry Riley,New Depot Associated Capital Costs,Consultancy - Associated Capital Costs,2000.00
207649,11/05/2022,Cushman & Wakefield Debenham Tie Leung L,Commercial Asset Mgt - Consultants,Consultants - General,4750.00
207650,11/05/2022,Cushman & Wakefield Debenham Tie Leung L,"Amazon, Gloucester Associated Capital Costs",Consultancy - Associated Capital Costs,8700.00
207651,11/05/2022,Cushman & Wakefield Debenham Tie Leung L,"MOOG, Tawkesbury Cap Pur Acq",Construction - Capital Purchase Acquisit,6450.00
207652,11/05/2022,Cushman & Wakefield Debenham Tie Leung L,"MOOG, Tawkesbury Cap Pur Acq",Construction - Capital Purchase Acquisit,7500.00
207653,11/05/2022,Civica UK Limited,Electoral Reg - Seminars,Conferences - Seminars & Meetings,300.00
207654,11/05/2022,Sellick Partnership Ltd,Legal Services - Fees,Legal Services - Fees,2130.00
207656,11/05/2022,Canon (UK) Limited,Print Room - Photocopier,Reprographics - Photocopier,626.10
207657,11/05/2022,Pitkin & Ruddock Ltd,New Depot Associated Capital Costs,Buildings Repair - Associated Cap Costs,6017.00
207658,11/05/2022,Pitkin & Ruddock Ltd,New Depot Associated Capital Costs,Buildings Repair - Associated Cap Costs,1139.00
207659,11/05/2022,Mercer Tree Services Ltd,GF Asset Mgt - Pl Repairs,Open Spaces - Planned Repairs,1350.00
207660,11/05/2022,Guarda Limited,Dev Ctrl Appls - Consultants,Consultants - General,2280.00
207662,11/05/2022,M&B Printers Ltd,Print Room - Stationery,Stationery,518.00
207663,11/05/2022,Design for Homes,Plan Policy - Consultants,Consultants - General,1910.00
207664,11/05/2022,Sellick Partnership Ltd,Legal Services - Legal Fees,Legal Services - Legal Fees,1375.00
207665,11/05/2022,Hertfordshire County Council,Legal Services - Legal Fees,Legal Services - Legal Fees,756.00
207666,11/05/2022,Birketts LLP,Legal Services - Legal Fees,Legal Services - Legal Fees,3250.00
207667,11/05/2022,Charisma Spatial Planning Limited,Plan Policy - Consultants,Consultants - General,11276.55
207668,11/05/2022,Drivercheck Ltd,Licensing - Other Mats,Signage - Other Materials,343.00
207670,11/05/2022,Provide Community Interest Company,Sheltered Hsg - Oth Loc Auth,Social&Community Care Misc - Oth Loc Aut,10790.92
207671,11/05/2022,Dunmow Skips Ltd,Street Clnsing - Disposal Chg,Waste Recycling - Disposal Charge,455.84
207672,11/05/2022,Uttlesford Norse Ltd.,Norse Partnership Asset Mgt - Fees,Partnerships - Fees,14136.44
207672,11/05/2022,Uttlesford Norse Ltd.,Norse Partnership Cleaning - Fees,Partnerships - Fees,18996.10
207673,11/05/2022,Central Tyre Limited,Vehicle Maint - Other Mats,Waste Management - Materials,1476.00
207674,11/05/2022,Central Tyre Limited,Vehicle Maint - Other Mats,Waste Management - Materials,2695.00
207676,11/05/2022,Contracts Support Services Ltd,Waste Mgmt - Agency Staff,Agency Staff (Professional),542.42
207678,11/05/2022,H B Commercial Ltd,Vehicle Maint - Other Mats,Waste Management - Materials,435.15
207685,11/05/2022,Lindstrom Ltd,Vehicle Maint - Other Mats,Waste Management - Materials,373.32
207690,11/05/2022,Safetykleen UK Ltd,Vehicle Maint - Other Mats,Waste Management - Materials,505.99
207691,11/05/2022,Source 24/7 LTD,Waste Mgmt - Agency Staff,Agency Staff (Professional),1677.75
207692,11/05/2022,TotalEnergies Marketing UK Ltd,Vehicle Maint - Other Mats,Vehicle Parts - Other Materials,1900.00
207698,11/05/2022,Files Thru The Air (Corintech Ltd),Museum S/W - Other Mats,Museum & Arts - Materials & Equipment,363.54
207699,11/05/2022,Altair Consultancy and Advisory Services,Dev't Control - Consultants,Consultants,3850.00
207700,11/05/2022,Good People Recycling Ltd,Grounds Mtce  - Agency Staff,Agency Staff (Professional),906.50
207701,11/05/2022,Good People Recycling Ltd,Waste Mgmt - Agency Staff,Agency Staff (Professional),12189.63
207702,11/05/2022,Sundry BACS,Hsg Rent Refunds Movements,Housing Rent refunds ,525.54
207704,11/05/2022,Sundry BACS,Hsg Rent Refunds Movements,Housing Rent refunds ,412.99
207706,11/05/2022,G2 Recruitment Solutions,Commercial Team - Agency Staff,Agency Staff (Professional),1787.50
207707,11/05/2022,G2 Recruitment Solutions,Commercial Team - Agency Staff,Agency Staff (Professional),337.50
207709,11/05/2022,The Oyster Partnership Ltd,Dev't Control - Agency Staff,Agency Staff (Professional),1526.10
207710,11/05/2022,Solace in Business Ltd,Project Team - Consultants,Consultants - General,12040.00
207711,25/05/2022,Chelmsford City Council,Air/Noise Pol - Consultants,Consultants - General,2162.72
207712,11/05/2022,Victoria Solutions Limited,Revenues Admin Emergency Response Supplies,Covid 19 - Emergency Response Supplies,2750.00
207713,11/05/2022,Buckingham Futures Ltd,Commercial Team - Agency Staff,Agency Staff (Professional),380.00
207714,11/05/2022,Uttlesford Norse Ltd.,Norse Partnership Estates - Fees,Partnerships - Fees,17284.30
207714,11/05/2022,Uttlesford Norse Ltd.,Norse Partnership Hsg Rep - Fees,Partnerships - Fees,159691.90
207714,11/05/2022,Uttlesford Norse Ltd.,Norse Partnership Sheltered - Fees,Partnerships - Fees,9781.66
207714,11/05/2022,Uttlesford Norse Ltd.,Norse Partnership Sewerage - Fees,Partnerships - Fees,4179.27
207715,11/05/2022,Uttlesford Norse Ltd.,Norse Partnership Hsg Rep - Fees,Partnerships - Fees,38199.15
207716,11/05/2022,Uttlesford Norse Ltd.,Norse Partnership Admin - Fees,Partnerships - Fees,30237.19
207716,11/05/2022,Uttlesford Norse Ltd.,Norse Partnership Hsg Rep - Fees,Partnerships - Fees,48880.02
207717,11/05/2022,Uttlesford Norse Ltd.,Voids Prog - Cap Rep L&B,Buildings Repair/Maint - Cap Rep P&E,52450.00
207718,11/05/2022,Penna PLC,Financial Srvs - Agency Staff,Agency Staff (Professional),10431.00
207719,11/05/2022,Objective Corporation Limited,Info Tech - Support Costs,ICT Maintenance/Support - Support Costs,250.00
207720,11/05/2022,Innovate Healthcare Management Group,Licensing - Other Mats,Signage - Other Materials,1710.00
207722,18/05/2022,Sundry BACS,Hsg Rent Refunds Movements,Housing rent refunds movements,1988.33
207723,11/05/2022,SGS (formally Concept Life Sciences),Border Inspect - Oth Prof Fees,Forensic & Lab Testing - Oth Prof Fees,2188.33
207724,18/05/2022,Archant Herts & Cambs,Dev't Control - Advertising,Credit note ,-449.37
207726,11/05/2022,Morgana Systems Ltd,Print Room - Equip Maint,Reprographics - Equip Maint,1792.51
207727,11/05/2022,Danline International Limited,Street Clnsing - Other Mats,Waste Management - Materials,1590.00
207728,29/06/2022,EMS Lifts Ltd,Dis Facil Grt - Cap Grt L&B,Grants - S106 Cap Grt L&B,3160.00
207729,18/05/2022,Archant Herts & Cambs,Dev't Control - Advertising,Advertising,370.99
207731,11/05/2022,Cooper Lomaz Recruitment Ltd,Info Tech - Agency Staff,Agency Staff (Professional),1800.00
207732,11/05/2022,Kelly Rowland,Health Imp - Seminars,Room Hire - Seminars & Meetings,960.00
207733,11/05/2022,Patricia Ackron,Health Imp - Seminars,Room Hire - Seminars & Meetings,315.00
207734,11/05/2022,The Enterprise East Group CIC,Health Imp - Seminars,Room Hire - Seminars & Meetings,300.00
207735,11/05/2022,LEAP Legal Software UK,Info Tech - Support Costs,ICT Maintenance/Support - Support Costs,9600.00
207736,11/05/2022,The Institute of Licensing Ltd,Licensing - Other Mats,Signage - Other Materials,615.00
207737,11/05/2022,Assoc. of Retained Council Hsing Limited,Housing Servs - Subscriptions,Subscriptions,2500.00
207738,11/05/2022,Stansted Airport Lodge,Homelessness - Accommodation,Homelessness - Accommodation,2592.00
207739,11/05/2022,Cornerstone Barristers,Dev Ctrl Appls - Legal Fees,Legal Services - Legal Fees,3260.00
207740,11/05/2022,Cornerstone Barristers,Dev Ctrl Appls - Legal Fees,Legal Services - Legal Fees,540.00
207741,11/05/2022,Cornerstone Barristers,Dev Ctrl Appls - Legal Fees,Legal Services - Legal Fees,500.00
207742,11/05/2022,Claire Bulman Coaching,Asst Directors - Seminars,Conferences - Seminars & Meetings,350.00
207744,11/05/2022,Cooper Lomaz Recruitment Ltd,Info Tech - Agency Staff,Agency Staff (Professional),1440.00
207745,11/05/2022,Total Gas & Power Limited,Thaxted CIC - Gas,Corporate Assets Utilities,39774.52
207747,11/05/2022,Sundry BACS,Legal Services - Fees,Legal services - fees,1190.00
207748,11/05/2022,Ashe Construction Ltd,New Depot Associated Capital Costs,Buildings Repair - Associated Cap Costs,290235.76
207749,11/05/2022,Scammell Commercial Limited,Trade Waste - Contract Hire,Vehicle Hire,3025.00
207750,18/05/2022,Dunmow Skips Ltd,Street Clnsing - Disposal Chg,Waste Recycling - Disposal Charge,516.32
207751,18/05/2022,Dunmow Skips Ltd,Street Clnsing - Disposal Chg,Waste Recycling - Disposal Charge,594.72
207752,18/05/2022,Dunmow Skips Ltd,Street Clnsing - Disposal Chg,Waste Recycling - Disposal Charge,564.48
207753,01/06/2022,Blackmore Construction Environmental,GF Asset Mgt - Pl Repairs,Roofing - Planned Repairs,3650.00
207754,01/06/2022,OCN Contract Services,Homelessness - Furniture,Domestic Furniture,3265.00
207755,18/05/2022,Contracts Support Services Ltd,Waste Mgmt - Agency Staff,Agency Staff (Professional),718.34
207756,18/05/2022,Dunmow Skips Ltd,Street Clnsing - Disposal Chg,Waste Recycling - Disposal Charge,703.36
207757,18/05/2022,Source 24/7 LTD,Waste Mgmt - Agency Staff,Agency Staff (Professional),1749.25
207760,18/05/2022,Saffron Signs,Waste Mgmt - Other Mats,Signage - Other Materials,1020.00
207761,18/05/2022,The Churchmanor Estates Company Plc,Stane Retail Park - Cap Pur Acq,Construction - Capital Purchase Acquisit,25000.00
207762,18/05/2022,Oasis Hotel Harlow Limited,Homelessness - Accommodation,Homelessness - Accommodation,1012.50
207763,18/05/2022,Oasis Hotel Harlow Limited,Homelessness - Accommodation,Homelessness - Accommodation,708.75
207765,18/05/2022,Oasis Hotel Harlow Limited,Homelessness - Accommodation,Homelessness - Accommodation,1012.50
207766,18/05/2022,Nickolds Property Management,Homelessness - Emerg Supply,Homelessness - Emergency Supplies,996.92
207767,18/05/2022,The Housing Ombudsman,Housing Servs - Subscriptions,Subscriptions,12893.80
207771,18/05/2022,J D Robertson & Co Limited,Waste Mgmt - Contract Hire,Vehicle Hire,963.75
207777,18/05/2022,Sellick Partnership Ltd,Legal Services - Fees,Legal Services - Fees,1710.00
207778,18/05/2022,Wilks Head & Eve,New Depot Associated Capital Costs,Consultancy - Associated Capital Costs,1000.00
207779,18/05/2022,RICS,Bldg Surveying - Prof Subs,Professional Subscriptions,539.00
207780,18/05/2022,S F Rowell MRCVS,Border Inspect - Oth Prof Fees,Veterinary Services - Other Prof Fees,2800.00
207781,18/05/2022,Sellick Partnership Ltd,Legal Services - Legal Fees,Legal Services - Legal Fees,1375.00
207783,18/05/2022,Linteum (Uttlesford) Ltd,PFI Financing LTL -Repaid,Leisure Services - LTL - Repaid,13910.58
207783,18/05/2022,Linteum (Uttlesford) Ltd,Int & Invest - Interest Pay,Leisure Services - Interest Payable,28968.50
207783,18/05/2022,Linteum (Uttlesford) Ltd,PFI - PFI Unitary,Leisure Services -PFI Unitary Charge,55380.52
207785,18/05/2022,Sellick Partnership Ltd,Legal Services - Legal Fees,Legal Services - Legal Fees,448.00
207787,18/05/2022,Sellick Partnership Ltd,Legal Services - Fees,Credit note ,-2262.00
207790,18/05/2022,Daisy Corporate Services Trading Limited,Telephones - Telephones,Telecommunications - Telephones,1437.51
207792,18/05/2022,Great Chesterford Parish Council,Plan Policy - Grants,Grant,1044.00
207793,18/05/2022,Hickton Consultants Ltd,New Depot Associated Capital Costs,Consultancy - Associated Capital Costs,3760.00
207794,18/05/2022,Hickton Consultants Ltd,New Depot Associated Capital Costs,Consultancy - Associated Capital Costs,3008.00
207795,18/05/2022,Land Use Consultants Limited,Plan Policy - Consultants,Consultants - General,1445.00
207796,18/05/2022,Solace in Business Ltd,Dir Pub Servs - Agency Staff,Agency Staff (Professional),18666.00
207806,18/05/2022,Newline Anglia Ltd,Waste Mgmt - Clothing,Protective Clothing - Clothing & Uniform,377.40
207812,18/05/2022,Munters Ltd,Museum S/W - Other Agency,Agency&Temp Staff (Prof) -Other Agencies,282.49
207816,18/05/2022,NEC Software Solutions UK Ltd,Benefits Admin - Software,ICT Software,11057.74
207818,18/05/2022,Sundry BACS,Hsg Rent Refunds Movements,Housing Rent refund ,1023.20
207819,18/05/2022,Sundry BACS,Corporate Man - Consultants,Housing Rent refund ,35000.00
207822,18/05/2022,Aythorpe Roding PCC,NHB Ward Member - Grants,Grant,750.00
207823,18/05/2022,Sundry BACS,Community Grt - Cap Grt P&E,Grant,1000.00
207824,18/05/2022,Sundry BACS,NHB Ward Member - Grants,Grant,350.00
207825,18/05/2022,Great Hallingbury Parish Council,NHB Ward Member - Grants,Grant,1000.00
207826,18/05/2022,Great Canfield Parish Council,Community Grt - Cap Grt P&E,Grant,1000.00
207829,18/05/2022,Sundry BACS,Community Grt - Cap Grt P&E,Grant,1000.00
207832,18/05/2022,St Mary's C of E (Foundation) Primary Sc,NHB Ward Member - Grants,Grant,290.00
207833,18/05/2022,Saffron Walden Youth Outreach Project,NHB Ward Member - Grants,Grant,250.00
207834,18/05/2022,Uttlesford Citizens Advice Bureau,Voluntary Org - Grants,Grant,155000.00
207835,18/05/2022,Sundry BACS,NHB Ward Member - Grants,Grant,750.00
207837,18/05/2022,Malthouse Security Ltd,Sheltered Hsg - Equipment,Health Care Equipment,942.12
207838,18/05/2022,Oxford Archaeology Ltd,Plan Policy - Consultants,Consultants - General,41976.00
207839,18/05/2022,The Oyster Partnership Ltd,Dev't Control - Agency Staff,Agency Staff (Professional),1526.10
207840,18/05/2022,CBRE LTD,Commercial Asset Mgt - Consultants,Consultants - General,7500.00
207841,18/05/2022,Zehnder Group UK Ltd,GF Asset Mgt - Pl Repairs,Heating/Air Cond - Planned Repairs,481.00
207842,18/05/2022,DAC Planning,Plan Policy - Consultants,Consultants - General,4022.00
207843,18/05/2022,The Oyster Partnership Ltd,Dev't Control - Agency Staff,Agency Staff (Professional),1434.00
207844,18/05/2022,Central Tyre Limited,Vehicle Maint - Other Mats,Waste Management - Materials,1175.00
207845,18/05/2022,Dennis Eagle Limited,Vehicle Maint - Other Mats,Waste Management - Materials,1496.42
207846,18/05/2022,General Business Holdings Ltd,Waste Mgmt - Disposal Chg,Waste Disposal - Disposal Charge,2784.75
207848,18/05/2022,Source 24/7 LTD,Waste Mgmt - Agency Staff,Agency Staff (Professional),1798.00
207849,18/05/2022,Widdington Recycling,Grounds Mtce - Disposal Chg,Waste Recycling - Disposal Charge,354.80
207850,18/05/2022,Net-Com (92) Limited,GF Asset Mgt - Pl Repairs,Electrical - Planned Repairs,1192.50
207851,25/05/2022,Aquajet Cleaning Equipment Ltd,New Depot Associated Capital Costs,Buildings Repair - Associated Cap Costs,2989.00
207852,18/05/2022,Chelmsford City Council,Internal Audit - Consultants,Consultants - General,3570.00
207853,18/05/2022,JGP Resourcing Limited,Human Resource - Subscriptions,Subscriptions,5479.00
207854,18/05/2022,NEC Software Solutions UK Ltd,Info Tech - Support Costs,ICT Maintenance/Support - Support Costs,877.00
207855,18/05/2022,Cooper Lomaz Recruitment Ltd,Info Tech - Agency Staff,Agency Staff (Professional),1440.00
207856,18/05/2022,Hall Mark Meat Hygiene Limited,Border Inspect - Oth Prof Fees,Veterinary Services - Other Prof Fees,5670.00
207857,18/05/2022,The Ramblers Association,Health Imp - Grants,Charitable Grants,750.00
207858,18/05/2022,Proline Solutions Ltd,Print Room - Equip Maint,Reprographics - Equip Maint,270.00
207859,18/05/2022,Environment Agency,Canfield Offices - Disposal Chg,Waste Disposal - Disposal Charge,890.00
207861,18/05/2022,Roe Environmental Ltd,Canfield Offices - Disposal Chg,Waste Disposal - Disposal Charge,580.00
207862,18/05/2022,East of England Local Government Associa,Economic Development - Subscriptions,Subscriptions,2750.00
207863,18/05/2022,Good People Recycling Ltd,Grounds Mtce  - Agency Staff,Agency Staff (Professional),1090.25
207864,18/05/2022,Good People Recycling Ltd,Waste Mgmt - Agency Staff,Agency Staff (Professional),9474.07
207865,18/05/2022,District Councils Network,Democratic Rep - Subscriptions,Subscriptions,2458.00
207868,18/05/2022,Iken Business Ltd,Info Tech - Consultants,Consultants - General,375.00
207869,18/05/2022,Archant Herts & Cambs,Dev't Control - Advertising,Advertising,341.46
207871,18/05/2022,Little Dunmow Parish Council,NHB Ward Member - Grants,Grant,750.00
207872,18/05/2022,British Safety Council Services,Human Resource - Prof Training,Training,875.00
207874,18/05/2022,Innovate Healthcare Management Group,Grounds Mtce  - Medic Other,Assessment - Medical Other,295.00
207877,18/05/2022,Archant Herts & Cambs,Dev't Control - Advertising,Advertising,626.34
207880,01/06/2022,Bytes Software Services,Info Tech - Support Costs,ICT Maintenance/Support - Support Costs,4250.00
207881,25/05/2022,Dell Corporation Limited,Info Tech - Support Costs,ICT Maintenance/Support - Support Costs,5970.00
207883,25/05/2022,Abrey & Son Ltd,Grounds Mtce - Equipment,Tools/Equipment (Purchase) - Equipment,2626.00
207884,01/06/2022,SL Executive Ltd,Chairman - Members Exps,Chairmans Expenses,300.00
207885,25/05/2022,Sundry BACS,NHB Ward Member - Grants,Grant,1500.00
207886,25/05/2022,Thaxted Parish Council,Community Grt - Cap Grt P&E,Grant,1000.00
207888,25/05/2022,Sundry BACS,Tenants Grants - Cap Grt L&B,Grant,1534.89
207892,25/05/2022,Sundry BACS,Hsg Rent Refunds Movements,Housing rent refund movement,923.56
207893,01/06/2022,1st Dunmow Scouts Group,NHB Ward Member - Grants,Grant,500.00
207895,01/06/2022,Sundry BACS,NHB Ward Member - Grants,Grant,500.00
207896,25/05/2022,EE Ltd,GF Asset Mgt - Mobiles,Corporate Mobile Phones ,4276.79
207898,25/05/2022,G2 Recruitment Solutions,Commercial Team - Agency Staff,Agency Staff (Professional),1743.00
207899,25/05/2022,Carrington West Ltd,Dev't Control - Agency Staff,Agency Staff (Professional),2909.55
207900,25/05/2022,Keep IT Simple Stationery Ltd,ICT - New Sites - Cap Pur IT,Capital Purchases - IT,6146.70
207901,25/05/2022,Berendsen UK Ltd,Vehicle Maint - Other Mats,Waste Management - Materials,337.11
207902,25/05/2022,Contracts Support Services Ltd,Waste Mgmt - Agency Staff,Agency Staff (Professional),674.36
207907,08/06/2022,Planned Environmental Services Ltd,New Depot Associated Capital Costs,Buildings Repair - Associated Cap Costs,2648.70
207908,25/05/2022,1Life Management Solutions Ltd,Leisure & Adm - Seminars,Room Hire - Seminars & Meetings,5555.00
207910,25/05/2022,East of England Local Government Associa,Waste Mgmt - Consultants,Consultants - General,650.00
207911,25/05/2022,Auto Door Specialist,S/W Offices - Pl Repairs,Doors & Windows - Planned Repairs,370.00
207912,25/05/2022,The Oyster Partnership Ltd,Financial Srvs - Agency Staff,Agency Staff (Professional),1340.00
207915,25/05/2022,Barberry Industrial Limited,"MOOG, Tawkesbury Cap Pur Acq",Construction - Capital Purchase Acquisit,652323.47
207917,25/05/2022,Malins Associates Limited,Property Servs - Consultants,Consultants - General,3465.00
207918,25/05/2022,Saffron Walden Town Council,Street Clnsing - Oth Loc Auth,Staff (Professional) - Other Loc Aut,9960.00
207921,25/05/2022,Sellick Partnership Ltd,Legal Services - Agency Staff,Agency Staff (Professional),364.28
207923,25/05/2022,Solace in Business Ltd,Project Team - Consultants,Consultants - General,13440.00
207924,25/05/2022,Sellick Partnership Ltd,Legal Services - Fees,Legal Services - Fees,1980.00
207925,25/05/2022,Dunmow Skips Ltd,Street Clnsing - Disposal Chg,Waste Recycling - Disposal Charge,632.80
207926,25/05/2022,Dunmow Skips Ltd,Street Clnsing - Disposal Chg,Waste Recycling - Disposal Charge,565.60
207929,25/05/2022,H B Commercial Ltd,Vehicle Maint - Other Mats,Waste Management - Materials,451.76
207934,25/05/2022,Sellick Partnership Ltd,Legal Services - Legal Fees,Legal Services - Legal Fees,1375.00
207935,01/06/2022,Straight Plc,Food Caddies - Cap Pur P&E,Capital Purchases - Plant & Equipment,6916.00
207938,25/05/2022,Rossi Long Consulting Ltd,Walden Pl Shelt - Cap Wk L&B,Consultancy (Prop Works)- Cap Wk L&B,3985.00
207939,25/05/2022,McCloy Consulting Limited,Property Servs Business Plan,Housing Dev - Business Plan,2787.50
207940,25/05/2022,ALH Building Services Design Ltd,Property Servs Business Plan,Housing Dev - Business Plan,1750.00
207943,25/05/2022,Duncan Cameron & Hutchinson Ltd,The Moors - Cap Wk L&B,Capital - L & B,868.45
207944,25/05/2022,Good People Recycling Ltd,Grounds Mtce  - Agency Staff,Agency Staff (Professional),906.50
207945,25/05/2022,Good People Recycling Ltd,Waste Mgmt - Agency Staff,Agency Staff (Professional),12886.45
207946,25/05/2022,Affinity Water,Common Servs - Water,Corporate Assets Utilities,2362.42
207949,25/05/2022,Castle Water Limited,Thaxted CIC - Water,Corporate Assets Utilities,811.18
207950,25/05/2022,Anglian Water Business,Museum S/W - Water,Corporate Assets Utilities,296.35
207950,25/05/2022,Anglian Water Business,Common Servs - Water,Corporate Assets Utilities,296.35
207951,01/06/2022,AdEPT Telecom PLC T/A Centrix Ltd,Telephones - Telephones,Chairmans Expenses,2373.78
207952,25/05/2022,Source 24/7 LTD,Waste Mgmt - Agency Staff,Agency Staff (Professional),1196.00
207953,25/05/2022,Objective Corporation Limited,Plan Policy - Consultants,Consultants - General,2000.00
207954,25/05/2022,Lodge & Sons (Builders) Ltd,S/W Offices - Pl Repairs,Fencing - Planned Repairs,333.00
207957,25/05/2022,Elliot Baxter & Co Ltd T/A EBB OFFICE,Print Room - Stationery,Stationery,295.50
207958,25/05/2022,M&B Printers Ltd,New Depot Associated Capital Costs,General Sundries - Associated Capital Co,312.00
207961,01/06/2022,AdEPT Telecom PLC T/A Centrix Ltd,Telephones - Telephones,Chairmans Expenses,9798.10
207962,25/05/2022,Duncan Cameron & Hutchinson Ltd,Thaxted Road - Cap Wk L&B,Sheltered Housing (Cap L&B),121453.47
207963,25/05/2022,Duncan Cameron & Hutchinson Ltd,Great Chesterford - Cap Wk L&B,Consultancy (Prop Works)- Cap Wk L&B,125390.90
207964,25/05/2022,The Oyster Partnership Ltd,Dev't Control - Agency Staff,Agency Staff (Professional),1882.19
207965,25/05/2022,The Oyster Partnership Ltd,Dev't Control - Agency Staff,Agency Staff (Professional),1744.70
207966,25/05/2022,The Oyster Partnership Ltd,Dev't Control - Agency Staff,Agency Staff (Professional),1792.50
207967,25/05/2022,Archant Herts & Cambs,Dev't Control - Advertising,Advertising,881.70
207968,25/05/2022,Archant Herts & Cambs,Dev't Control - Advertising,Advertising,479.50
207969,25/05/2022,Rossi Long Consulting Ltd,Property Servs Business Plan,Housing Dev - Business Plan,9579.42
207970,25/05/2022,Rural Community Council Of Essex,Housing Servs - Subscriptions,Subscriptions,5000.00
207971,25/05/2022,Braintree District Council,Animal Warden - Accommodation,Kennel Services - Accomodation,318.60
207973,01/06/2022,AdEPT Telecom PLC T/A Centrix Ltd,Telephony System (8x8) - Cap Pur IT,Credit note ,-6995.00
207974,01/06/2022,Arkesden Parish Council,Community Grt - Cap Grt P&E,Grant,700.00
207975,01/06/2022,Sundry BACS,NHB Ward Member - Grants,Grant,300.00
207978,01/06/2022,Stansted Mountfitchet Parish Council,NHB Ward Member - Grants,Grant,2000.00
207979,25/05/2022,Castle Water Limited,DC SW - Water,Credit note ,-299.90
207981,25/05/2022,Total Gas & Power Limited,Canfield Offices - Gas,Credit note ,-1135.31
207982,25/05/2022,Total Gas & Power Limited,Canfield Offices - Gas,Corporate Assets Utilities,3454.22
207983,25/05/2022,Tetra Tech,Plan Policy - Consultants,Consultants - General,39000.00
207986,01/06/2022,Affinity Water,CP White St - Water,Corporate Assets Utilities,8854.07
207989,01/06/2022,Sundry BACS,Hsg Rent Refunds Movements,Housing rent refund movement,454.11
207990,08/06/2022,PortalPlanQuest Ltd,Dev't Control - Fees,Dev't control fees,3696.00
207991,01/06/2022,We Made That LLP,Plan Policy - Consultants,Consultants - General,9141.00
207992,01/06/2022,Contracts Support Services Ltd,Waste Mgmt - Agency Staff,Agency Staff (Professional),542.42
207993,01/06/2022,Dennis Eagle Limited,Vehicle Maint - Other Mats,Waste Management - Materials,259.37
207996,01/06/2022,The Oyster Partnership Ltd,Dev't Control - Agency Staff,Agency Staff (Professional),2453.75
207998,01/06/2022,Cambridge University Hospitals NHS FT,Human Resource - Medic Other,Assessment - Medical Other,537.00
207999,01/06/2022,Bytes Software Services,Info Tech - Support Costs,ICT Maintenance/Support - Support Costs,2106.25
208000,01/06/2022,Bytes Software Services,ICT - New Sites - Cap Pur IT,Capital Purchases - IT,30879.66
208001,01/06/2022,Saffron Signs,Waste Mgmt - Other Mats,Signage - Other Materials,1020.00
208002,01/06/2022,Archant Herts & Cambs,Dev't Control - Advertising,Advertising,967.80
208003,01/06/2022,Ex-Job Limited,Licensing - Other Mats,Signage - Other Materials,2966.00
208006,01/06/2022,Elliot Baxter & Co Ltd T/A EBB OFFICE,Print Room - Stationery,Stationery,722.00
208007,01/06/2022,Anglian Water Business,Thaxted CIC - Water,Corporate Assets Utilities,4356.78
208008,01/06/2022,G2 Recruitment Solutions,Commercial Team - Agency Staff,Agency Staff (Professional),1136.00
208009,01/06/2022,Dennis Eagle Limited,Refuse Coll Veh - Cap Pur Veh,Capital Purchases - Vehicles,213547.00
208010,01/06/2022,Buckingham Futures Ltd,Commercial Team - Agency Staff,Agency Staff (Professional),475.00
208011,01/06/2022,Buckingham Futures Ltd,Commercial Team - Agency Staff,Agency Staff (Professional),570.00
208012,01/06/2022,Pitkin & Ruddock Ltd,New Depot Associated Capital Costs,Buildings Repair - Associated Cap Costs,853.00
208018,01/06/2022,Terberg Matec UK Ltd,Vehicle Maint - Other Mats,Waste Management - Materials,3673.18
208019,01/06/2022,WasteParts UK Ltd,Vehicle Maint - Other Mats,Waste Management - Materials,254.68
208021,01/06/2022,Pitkin & Ruddock Ltd,New Depot Associated Capital Costs,Buildings Repair - Associated Cap Costs,398.00
208024,01/06/2022,N&P Crayford MRF Ltd,Waste Mgmt - Mat Rec Fac,Waste Recycling - Materials Recycling,27271.08
208025,01/06/2022,Archant Herts & Cambs,Licensing - Other Mats,Signage - Other Materials,433.90
208029,01/06/2022,BDO LLP,External Audit - Audit Fees,Audit Fees,33815.00
208030,01/06/2022,BDO LLP,External Audit - Audit Fees,Audit Fees,10741.00
208031,01/06/2022,Pixel Financial Management Ltd,Financial Srvs - Consultants,Consultants - General,2100.00
208032,01/06/2022,Good People Recycling Ltd,Grounds Mtce  - Agency Staff,Agency Staff (Professional),906.50
208033,01/06/2022,Good People Recycling Ltd,Waste Mgmt - Agency Staff,Agency Staff (Professional),15607.50
208035,01/06/2022,BDO LLP,External Audit - Audit Fees,Credit note ,-18429.00
208037,01/06/2022,Sundry BACS,Community Grt - Cap Grt P&E,Grant,2400.00
208038,01/06/2022,Sellick Partnership Ltd,Legal Services - Agency Staff,Agency Staff (Professional),995.69
208039,01/06/2022,Sellick Partnership Ltd,Legal Services - Fees,Legal Services - Fees,2085.00
208040,01/06/2022,Sellick Partnership Ltd,Legal Services - Legal Fees,Legal Services - Legal Fees,1375.00
208041,01/06/2022,Easy Mobility (East Anglian) Ltd,Dis Facil Grt - Cap Grt L&B,Grants - S106 Cap Grt L&B,2160.00
208042,01/06/2022,Sundry BACS,Dev't Control - Charges,Dev't control fees,350.00
208047,01/06/2022,Total Gas & Power Limited,Thaxted CIC - Gas,Corporate Assets Utilities,11595.09
208048,01/06/2022,Planit Consulting,Dev Ctrl Appls - Consultants,Consultants - General,12600.00
208049,01/06/2022,TouchPoint,Health Imp - Seminars,Room Hire - Seminars & Meetings,1150.00
208051,01/06/2022,Tradition (UK) Ltd,Treasury Man - Fees,Financial Services - Borrowing Fees,2247.94
208052,01/06/2022,Imperial Treasury Services Ltd,Treasury Man - Fees,Financial Services - Borrowing Fees,3223.28
208053,01/06/2022,Tullett Prebon Group Ltd,Treasury Man - Fees,Financial Services - Borrowing Fees,2256.16
208055,01/06/2022,Sundry BACS,Dev't Control - Charges,Dev't control fees,382.50
208056,01/06/2022,BGC Brokers,Treasury Man - Fees,Financial Services - Borrowing Fees,4487.67
208057,01/06/2022,Skyline Hotel,Homelessness - Accommodation,Homelessness - Accommodation,1215.00
208058,01/06/2022,Skyline Hotel,Homelessness - Accommodation,Homelessness - Accommodation,1215.00
208059,01/06/2022,Skyline Hotel,Homelessness - Accommodation,Homelessness - Accommodation,1215.00
208060,01/06/2022,Skyline Hotel,Homelessness - Accommodation,Homelessness - Accommodation,1215.00
208061,01/06/2022,Skyline Hotel,Homelessness - Accommodation,Homelessness - Accommodation,1215.00
208062,01/06/2022,Oasis Hotel Harlow Limited,Homelessness - Accommodation,Homelessness - Accommodation,295.00
208063,01/06/2022,Skyline Hotel,Homelessness - Accommodation,Homelessness - Accommodation,590.00
208064,01/06/2022,Stansted Airport Lodge,Homelessness - Accommodation,Homelessness - Accommodation,945.00
208065,01/06/2022,Affinity Water,Common Servs - Water,Corporate Assets Utilities,6292.01
208066,01/06/2022,NEC Software Solutions UK Ltd,Info Tech - Support Costs,ICT Maintenance/Support - Support Costs,9000.00
208068,01/06/2022,Central Tyre Limited,Vehicle Maint - Other Mats,Waste Management - Materials,2831.00
208069,01/06/2022,Contracts Support Services Ltd,Waste Mgmt - Agency Staff,Agency Staff (Professional),542.42
208070,01/06/2022,H B Commercial Ltd,Vehicle Maint - Other Mats,Waste Management - Materials,592.60
208073,01/06/2022,H B Commercial Ltd,Vehicle Maint - Other Mats,Waste Management - Materials,252.00
208079,01/06/2022,WasteParts UK Ltd,Vehicle Maint - Other Mats,Waste Management - Materials,361.60
208081,01/06/2022,Lodge & Sons (Builders) Ltd,S/W Offices - Pl Repairs,Roofing - Planned Repairs,2618.00
208082,01/06/2022,Cooper Lomaz Recruitment Ltd,Info Tech - Agency Staff,Agency Staff (Professional),1800.00
208083,01/06/2022,Cooper Lomaz Recruitment Ltd,Info Tech - Agency Staff,Agency Staff (Professional),1800.00
208086,01/06/2022,Aquajet Cleaning Equipment Ltd,Vehicle Maint - Other Mats,Waste Management - Materials,330.00
208089,15/06/2022,Little Hallingbury Village Hall,Community Grt - Cap Grt P&E,Grant,600.00
208090,15/06/2022,Sundry BACS,Community Grt - Cap Grt P&E,Grant,1000.00
208091,08/06/2022,Sundry BACS,Alexia House - Cap Wk L&B,Grant,2500.00
208093,15/06/2022,Sundry BACS,Hsg Rent Refunds Movements,Housing rent refunds movements,875.11
208094,08/06/2022,E-ON,Temp Accom - Electricity,Corporate Assets Utilities,431.88
208095,08/06/2022,E-ON,Temp Accom - Electricity,Corporate Assets Utilities,367.35
208097,08/06/2022,Cushman & Wakefield Debenham Tie Leung L,"MOOG, Tawkesbury Cap Pur Acq",Construction - Capital Purchase Acquisit,3985.00
208098,08/06/2022,Banks Garden Machinery,Grounds Mtce  - External Contracts,Tools/Equipment (Hire) - Grounds Maint,279.12
208099,08/06/2022,Banks Garden Machinery,Grounds Mtce  - External Contracts,Tools/Equipment (Hire) - Grounds Maint,350.87
208101,08/06/2022,M&B Printers Ltd,Print Room - Stationery,Stationery,518.00
208103,08/06/2022,Skyline Hotel,Homelessness - Accommodation,Homelessness - Accommodation,607.50
208104,08/06/2022,De Salis Hotel,Other LA's Movemt in year,Emerg Accommodation - Ukrainian Refugees,999.00
208105,08/06/2022,De Salis Hotel,Other LA's Movemt in year,Emerg Accommodation - Ukrainian Refugees,513.33
208107,08/06/2022,De Salis Hotel,Other LA's Movemt in year,Emerg Accommodation - Ukrainian Refugees,726.25
208108,08/06/2022,De Salis Hotel,Other LA's Movemt in year,Emerg Accommodation - Ukrainian Refugees,2556.61
208109,08/06/2022,NewAuto Ltd T/A Mogo,Licensing - Other Mats,Signage - Other Materials,1867.90
208110,08/06/2022,Datatank limited,Revenues Admin - Consultants,Consultants - General,3920.00
208111,08/06/2022,Essex County Council,Specialists - Conservation - Consultants,Consultants - General,13516.02
208114,08/06/2022,Wilks Head & Eve,Financial Srvs - Consultants,Consultants - General,8815.00
208115,15/06/2022,Essex Highways - Essex County Council,Dev't Control - Consultants,Consultants - General,3500.00
208116,08/06/2022,Essex Highways - Essex County Council,Dev't Control - Consultants,Consultants - General,2400.00
208118,08/06/2022,Essex County Council,Dev't Control - Subscriptions,Subscriptions,2500.00
208120,08/06/2022,Planit Consulting,Dev Ctrl Appls - Consultants,Consultants - General,5226.00
208122,08/06/2022,Archant Herts & Cambs,Dev't Control - Advertising,Advertising,415.28
208123,08/06/2022,Print Image Facilities LLP,Parish & NPR Elections - Postage,Postage,622.27
208124,15/06/2022,Sundry BACS,Chmans Charity Movemt in year,Grant,3899.00
208125,15/06/2022,Sundry BACS,Community Grt - Cap Grt P&E,Grant,265.08
208127,15/06/2022,Stansted Mountfitchet Parish Council,NHB Ward Member - Grants,Grant,1000.00
208128,15/06/2022,Sundry BACS,NHB Ward Member - Grants,Grant,400.00
208129,15/06/2022,Wicken Bonhunt Parish Treasuer's Account,Community Grt - Cap Grt P&E,Grant,700.00
208130,08/06/2022,Essex County Council,Land Charges - Fees,Land Search Fees,18752.08
208132,08/06/2022,Henry Riley,New Depot Associated Capital Costs,Consultancy - Associated Capital Costs,8000.00
208135,08/06/2022,Encore Envelopes Ltd,Print Room - Stationery,Stationery,693.00
208137,08/06/2022,George (Bishop Stortford) Hotel LTD,Homelessness - Accommodation,Homelessness - Accommodation,4950.00
208138,08/06/2022,MSG Contracts Limited,Canfield Offices - Cleaning,Cleaning Service - Contract Cleaning,356.00
208139,08/06/2022,ESE World Limited,Trade Bin Rep - Cap Pur P&E,Capital Purchases - Plant & Equipment,6522.99
208141,08/06/2022,The Monarch Partnership,Climate Change - Consultants,Consultants - General,360.00
208146,15/06/2022,Malthouse Security Ltd,Sheltered Hsg - Equip Maint,Health Care Equipment - Maintenance,347.76
208147,15/06/2022,G2 Recruitment Solutions,Commercial Team - Agency Staff,Agency Staff (Professional),2144.00
208148,15/06/2022,Aecom Infrastructure & Env UK Ltd,Plan Policy - Consultants,Consultants - General,7377.50
208150,15/06/2022,The Oyster Partnership Ltd,Dev't Control - Agency Staff,Agency Staff (Professional),1882.19
208152,15/06/2022,PC Building Services,Waste Mgmt - Other Mats,Waste Management - Materials,250.00
208153,15/06/2022,Buckingham Futures Ltd,Commercial Team - Agency Staff,Agency Staff (Professional),1258.75
208155,15/06/2022,Uttlesford Norse Ltd.,Norse Partnership Estates - Fees,Partnerships - Fees,17284.30
208155,15/06/2022,Uttlesford Norse Ltd.,Norse Partnership Hsg Rep - Fees,Partnerships - Fees,159691.90
208155,15/06/2022,Uttlesford Norse Ltd.,Norse Partnership Sheltered - Fees,Partnerships - Fees,9781.66
208155,15/06/2022,Uttlesford Norse Ltd.,Norse Partnership Sewerage - Fees,Partnerships - Fees,4179.27
208156,15/06/2022,Uttlesford Norse Ltd.,Norse Partnership Hsg Rep - Fees,Partnerships - Fees,38199.15
208157,15/06/2022,Uttlesford Norse Ltd.,Norse Partnership Admin - Fees,Partnerships - Fees,30237.19
208157,15/06/2022,Uttlesford Norse Ltd.,Norse Partnership Hsg Rep - Fees,Partnerships - Fees,48880.02
208158,15/06/2022,Uttlesford Norse Ltd.,Voids Prog - Cap Rep L&B,Buildings Repair/Maint - Cap Rep P&E,52450.00
208159,15/06/2022,The Oyster Partnership Ltd,Dev't Control - Agency Staff,Agency Staff (Professional),1768.60
208160,15/06/2022,Firetrace Ltd,Vehicle Maint - Vehicle Maint,Vehicle Parts - Maintenance,480.00
208161,15/06/2022,Central Tyre Limited,Vehicle Maint - Other Mats,Waste Management - Materials,1988.00
208162,15/06/2022,Contracts Support Services Ltd,Waste Mgmt - Agency Staff,Agency Staff (Professional),674.36
208163,15/06/2022,Dennis Eagle Limited,Vehicle Maint - Other Mats,Waste Management - Materials,853.74
208164,15/06/2022,Dennis Eagle Limited,Vehicle Maint - Other Mats,Waste Management - Materials,293.61
208165,15/06/2022,Dunmow Skips Ltd,Street Clnsing - Disposal Chg,Waste Recycling - Disposal Charge,801.92
208166,15/06/2022,Dunmow Skips Ltd,Street Clnsing - Disposal Chg,Waste Recycling - Disposal Charge,586.88
208167,15/06/2022,Good People Recycling Ltd,Grounds Mtce  - Agency Staff,Agency Staff (Professional),906.50
208169,15/06/2022,H B Commercial Ltd,Vehicle Maint - Other Mats,Waste Management - Materials,976.51
208170,15/06/2022,H B Commercial Ltd,Vehicle Maint - Other Mats,Waste Management - Materials,651.52
208173,15/06/2022,Lindstrom Ltd,Vehicle Maint - Other Mats,Waste Management - Materials,373.32
208174,15/06/2022,Safetykleen UK Ltd,Vehicle Maint - Other Mats,Waste Management - Materials,505.99
208175,15/06/2022,Source 24/7 LTD,Waste Mgmt - Agency Staff,Agency Staff (Professional),1193.50
208176,15/06/2022,WasteParts UK Ltd,Vehicle Maint - Other Mats,Waste Management - Materials,1157.72
208178,15/06/2022,WasteParts UK Ltd,Vehicle Maint - Other Mats,Waste Management - Materials,340.43
208180,15/06/2022,Guarda Limited,Dev Ctrl Appls - Consultants,Consultants - General,5379.80
208181,15/06/2022,SGS (formally Concept Life Sciences),Border Inspect - Oth Prof Fees,Forensic & Lab Testing - Oth Prof Fees,4634.48
208182,15/06/2022,The Oyster Partnership Ltd,Financial Srvs - Agency Staff,Agency Staff (Professional),2010.00
208183,15/06/2022,The Oyster Partnership Ltd,Financial Srvs - Agency Staff,Agency Staff (Professional),2010.00
208186,15/06/2022,Archant Herts & Cambs,Economic Development - Advertising,Advertising,363.20
208187,15/06/2022,The Oyster Partnership Ltd,Dev't Control - Agency Staff,Agency Staff (Professional),2600.00
208188,15/06/2022,The Oyster Partnership Ltd,Dev't Control - Agency Staff,Agency Staff (Professional),2605.20
208189,15/06/2022,Go Plant Fleet Services Ltd,Waste Mgmt - Contract Hire,Vehicle Hire,260.00
208190,15/06/2022,Go Plant Fleet Services Ltd,Waste Mgmt - Contract Hire,Vehicle Hire,625.00
208192,15/06/2022,1Life Management Solutions Ltd,Leisure & Adm - Seminars,Room Hire - Seminars & Meetings,1290.00
208193,15/06/2022,Sundry BACS,Hsg Rent Refunds Movements,Hsg Rent Refunds Movements,3215.51
208194,15/06/2022,Sellick Partnership Ltd,Legal Services - Agency Staff,Agency Staff (Professional),934.97
208195,15/06/2022,Sellick Partnership Ltd,Legal Services - Agency Staff,Agency Staff (Professional),801.41
208196,15/06/2022,The Oyster Partnership Ltd,Dev't Control - Agency Staff,Agency Staff (Professional),1882.19
208197,15/06/2022,Sellick Partnership Ltd,Legal Services - Fees,Legal Services - Fees,2100.00
208198,15/06/2022,Sellick Partnership Ltd,Legal Services - Fees,Legal Services - Fees,1275.00
208199,15/06/2022,The Oyster Partnership Ltd,Dev't Control - Agency Staff,Agency Staff (Professional),1744.70
208200,15/06/2022,Penna PLC,Financial Srvs - Agency Staff,Agency Staff (Professional),11529.00
208201,15/06/2022,General Business Holdings Ltd,Waste Mgmt - Disposal Chg,Waste Disposal - Disposal Charge,2315.40
208202,15/06/2022,Newline Anglia Ltd,Waste Mgmt - Clothing,Protective Clothing - Clothing & Uniform,265.00
208207,15/06/2022,TotalEnergies Marketing UK Ltd,Vehicle Maint - Other Mats,Vehicle Parts - Other Materials,6191.85
208209,15/06/2022,Sellick Partnership Ltd,Legal Services - Legal Fees,Legal Services - Legal Fees,1375.00
208210,15/06/2022,Sellick Partnership Ltd,Legal Services - Legal Fees,Legal Services - Legal Fees,1375.00
208211,15/06/2022,Open Spaces Landscape & Arboricultural C,Dev Ctrl Appls - Consultants,Consultants - General,1090.00
208212,15/06/2022,39 Essex Chambers LLP PFA,Dev Ctrl Appls - Legal Fees,Legal Services - Legal Fees,2050.00
208213,15/06/2022,Archant Herts & Cambs,Dev't Control - Advertising,Advertising,480.43
208214,15/06/2022,Archant Herts & Cambs,Dev't Control - Advertising,Advertising,262.57
208215,15/06/2022,Computershare Voucher Services,Human Resource - Emp'ee Scheme,Human Resources - Emp'ee Scheme,617.08
208217,15/06/2022,J D Robertson & Co Limited,Waste Mgmt - Contract Hire,Vehicle Hire,934.65
208218,15/06/2022,J D Robertson & Co Limited,Waste Mgmt - Contract Hire,Vehicle Hire,633.15
208219,15/06/2022,V G Nash & Son,Vehicle Maint - Other Mats,Vehicle Parts - Other Materials,337.50
208221,15/06/2022,Scammell Commercial Limited,Waste Mgmt - Contract Hire,Vehicle Hire,6250.00
208225,15/06/2022,Birketts LLP,Legal Services - Legal Fees,Legal Services - Legal Fees,2012.50
208226,15/06/2022,Sundry BACS,NHB Ward Member - Grants,Grant,450.00
208230,15/06/2022,Sundry BACS,Community Grt - Cap Grt P&E,Grant,500.00
208231,15/06/2022,Little Hallingbury Parish Council,Community Grt - Cap Grt P&E,Grant,400.00
208232,15/06/2022,Takeley Parish Council,Community Grt - Cap Grt P&E,Grant,998.00
208234,15/06/2022,Ugley Parish Council,Community Grt - Cap Grt P&E,Grant,851.00
208237,15/06/2022,HTVB Consulting Ltd,Comm Partnerships - Grants,Non Charitable Grants,800.00
208240,15/06/2022,Alcium Software Limited,Economic Development - Subscriptions,Subscriptions,1638.00
208241,15/06/2022,Sundry BACS,Community Grt - Cap Grt P&E,Grant,966.00
208242,15/06/2022,Sundry BACS,Hsg Rent Refunds Movements,Hsg Rent Refunds Movements,408.66
208243,15/06/2022,Sundry BACS,Community Grt - Cap Grt P&E,Grant,427.00
208244,15/06/2022,Sundry BACS,Hsg Rent Refunds Movements,Hsg Rent Refunds Movements,499.06
208245,15/06/2022,Civica UK Limited,Info Tech - Support Costs,ICT Maintenance/Support - Support Costs,58362.50
208246,15/06/2022,Ashe Construction Ltd,New Depot Associated Capital Costs,Buildings Repair - Associated Cap Costs,35886.90
208247,15/06/2022,Tetra Tech,Plan Policy - Consultants,Consultants - General,30000.00
208248,15/06/2022,Novus Environmental,Border Inspect - Disposal Chg,Waste Collection - Waste Disposal,305.10
208256,15/06/2022,Linteum (Uttlesford) Ltd,PFI Financing LTL -Repaid,Leisure Services - LTL - Repaid,13910.58
208256,15/06/2022,Linteum (Uttlesford) Ltd,Int & Invest - Interest Pay,Leisure Services - Interest Payable,28968.50
208256,15/06/2022,Linteum (Uttlesford) Ltd,PFI - PFI Unitary,Leisure Services -PFI Unitary Charge,55510.64
208257,15/06/2022,Tela Ltd,Economic Development - Subscriptions,Subscriptions,2280.00
208259,15/06/2022,High Easter Parish Council,Community Grt - Cap Grt P&E,Grant,1000.00
208261,15/06/2022,NewAuto Ltd T/A Mogo,Licensing - Other Mats,Signage - Other Materials,2011.90
208262,15/06/2022,Kelly Rowland,Health Imp - Seminars,Room Hire - Seminars & Meetings,1280.00
208264,15/06/2022,Patricia Ackron,Health Imp - Seminars,Room Hire - Seminars & Meetings,455.00
208266,15/06/2022,Net-Com (92) Limited,New Depot Associated Capital Costs,Security (CCTV) - Associated Cap Costs,17083.70
208267,15/06/2022,The Oyster Partnership Ltd,Dev't Control - Agency Staff,Agency Staff (Professional),1144.58
208268,15/06/2022,Net-Com (92) Limited,ICT - New Sites - Cap Pur IT,Capital Purchases - IT,7491.80
208269,15/06/2022,Canon (UK) Limited,Print Room - Photocopier,Reprographics - Photocopier,413.62
208270,15/06/2022,The Oyster Partnership Ltd,Dev't Control - Agency Staff,Agency Staff (Professional),1075.50
208272,15/06/2022,Treecology,Grounds Mtce  - External Contracts,Tree Trimming - Grounds Maint,2190.00
208273,15/06/2022,Hall Mark Meat Hygiene Limited,Border Inspect - Oth Prof Fees,Veterinary Services - Other Prof Fees,6870.00
208279,15/06/2022,NEC Software Solutions UK Ltd,Revenues Admin Emergency Response Supplies,Covid 19 - Emergency Response Supplies,1100.00
208280,15/06/2022,IDOX Software Limited,Info Tech - Support Costs,ICT Maintenance/Support - Support Costs,357.05
208281,15/06/2022,The Design Partnership (Ely) Ltd,Walden Pl Shelt - Cap Wk L&B,Consultancy (Prop Works)- Cap Wk L&B,6506.58
208282,15/06/2022,Good People Recycling Ltd,Grounds Mtce  - Agency Staff,Agency Staff (Professional),551.25
208283,15/06/2022,Pretlove's Removal & Storage Service Ltd,Tenants Grants - Cap Grt L&B,Grants - S106 Cap Grt L&B,760.00
208285,15/06/2022,Provide Community Interest Company,Sheltered Hsg - Oth Loc Auth,Social&Community Care Misc - Oth Loc Aut,5558.42
208286,22/06/2022,Net-Com (92) Limited,Info Tech - Equipment,ICT Consumables - Equipment,1500.00
208287,15/06/2022,Ace LGV Training Ltd,Waste Mgmt - Prof Training,Training,1360.00
208288,15/06/2022,Saffron Walden Agricultural Training Grp,Grounds Mtce  - Prof Training,Training,500.00
208290,22/06/2022,AdEPT Telecom PLC T/A Centrix Ltd,Telephones - Telephones,Chairmans Expenses,2556.57
208291,22/06/2022,AdEPT Telecom PLC T/A Centrix Ltd,Telephones - Telephones,Chairmans Expenses,2347.80
208293,22/06/2022,Uttlesford Norse Ltd.,Norse Partnership Asset Mgt - Fees,Partnerships - Fees,14136.44
208293,22/06/2022,Uttlesford Norse Ltd.,Norse Partnership Cleaning - Fees,Partnerships - Fees,18996.10
208294,22/06/2022,Instant Promotion (UK) Ltd,Economic Development - Advertising,Advertising,290.00
208295,22/06/2022,Treecology,Grounds Mtce  - External Contracts,Tree Trimming - Grounds Maint,1650.00
208298,22/06/2022,Reeve Photography,Chairman - Members Exps,Chairmans Expenses,360.00
208299,22/06/2022,Barberry Industrial Limited,"MOOG, Tawkesbury Cap Pur Acq",Construction - Capital Purchase Acquisit,535572.52
208300,22/06/2022,Malthouse Security Ltd,Sheltered Hsg - Equipment,Health Care Equipment,942.12
208301,22/06/2022,Contracts Support Services Ltd,Waste Mgmt - Agency Staff,Agency Staff (Professional),678.03
208302,22/06/2022,H B Commercial Ltd,Vehicle Maint - Other Mats,Waste Management - Materials,843.52
208305,22/06/2022,Terberg Matec UK Ltd,Vehicle Maint - Other Mats,Waste Management - Materials,3907.11
208306,22/06/2022,N&P Crayford MRF Ltd,Waste Mgmt - Mat Rec Fac,Waste Recycling - Materials Recycling,9857.25
208309,22/06/2022,Hewitsons,Legal Services - Legal Fees,Legal Services - Legal Fees,3600.00
208310,22/06/2022,Birketts LLP,Legal Services - Legal Fees,Legal Services - Legal Fees,1792.50
208311,22/06/2022,Driver Hire Chelmsford,Waste Mgmt - Agency Staff,Agency Staff (Professional),601.25
208313,22/06/2022,Bartec Auto ID Ltd,Waste Mgmt - Subscriptions,Subscriptions,9900.00
208314,22/06/2022,British Heart Foundation,Waste Mgmt - Processing Fees,Waste Recycling - Fees,369.38
208315,22/06/2022,British Heart Foundation,Waste Mgmt - Processing Fees,Waste Recycling - Fees,322.99
208316,22/06/2022,British Heart Foundation,Waste Mgmt - Processing Fees,Waste Recycling - Fees,285.48
208317,22/06/2022,British Heart Foundation,Waste Mgmt - Processing Fees,Waste Recycling - Fees,317.01
208318,22/06/2022,Government Events,Planning Admin - Seminars,Room Hire - Seminars & Meetings,299.00
208322,22/06/2022,Sellick Partnership Ltd,Legal Services - Agency Staff,Agency Staff (Professional),922.83
208323,22/06/2022,Sellick Partnership Ltd,Legal Services - Fees,Legal Services - Fees,2010.00
208324,22/06/2022,Central Tyre Limited,Vehicle Maint - Other Mats,Waste Management - Materials,1136.00
208328,22/06/2022,Sellick Partnership Ltd,Legal Services - Legal Fees,Legal Services - Legal Fees,1375.00
208330,22/06/2022,Landmark Chambers,Dev Ctrl Appls - Consultants,Consultants - General,2800.00
208331,22/06/2022,PortalPlanQuest Ltd,Dev't Control - Fees,Dev't Control - Fees,462.00
208336,22/06/2022,Survey Solutions (South East) Ltd,Property Servs Business Plan,Housing Dev - Business Plan,495.00
208337,22/06/2022,Survey Solutions (South East) Ltd,Property Servs Business Plan,Housing Dev - Business Plan,495.00
208338,22/06/2022,Momentum PR,Economic Development - Advertising,Advertising,4700.00
208340,22/06/2022,Contracts Support Services Ltd,Waste Mgmt - Prof Training,Training,1390.00
208341,22/06/2022,East of England Local Government Associa,Democratic Rep - Subscriptions,Subscriptions,10007.03
208345,22/06/2022,H B Commercial Ltd,Vehicle Maint - Other Mats,Waste Management - Materials,333.95
208348,22/06/2022,PortalPlanQuest Ltd,Dev't Control - Fees,Dev't Control - Fees,8316.00
208351,22/06/2022,Dennis Eagle Limited,Vehicle Maint - Other Mats,Waste Management - Materials,1121.29
208352,22/06/2022,Dennis Eagle Limited,Vehicle Maint - Other Mats,Waste Management - Materials,347.48
208354,22/06/2022,H B Commercial Ltd,Vehicle Maint - Other Mats,Waste Management - Materials,288.00
208356,22/06/2022,Riverside Truck Rental Ltd,Waste Mgmt - Contract Hire,Vehicle Hire,850.00
208357,22/06/2022,Central Tyre Limited,Vehicle Maint - Other Mats,Waste Management - Materials,1245.00
208362,22/06/2022,Net-Com (92) Limited,WiFi - Cap Pur IT,Capital Purchases - IT,10855.30
208363,22/06/2022,Driver Hire Chelmsford,Waste Mgmt - Agency Staff,Agency Staff (Professional),713.92
208365,22/06/2022,The Enterprise East Group CIC,Health Imp - Seminars,Room Hire - Seminars & Meetings,300.00
208366,22/06/2022,Dennis Eagle Limited,Vehicle Maint - Other Mats,Waste Management - Materials,540.00
208368,22/06/2022,Dunmow Skips Ltd,Street Clnsing - Disposal Chg,Waste Recycling - Disposal Charge,704.82
208369,22/06/2022,Sundry BACS,Alexia House - Cap Wk L&B,Alexia House - Cap Wk L&B,2500.00
208370,22/06/2022,Skyline Hotel,Homelessness - Accommodation,Homelessness - Accommodation,1255.50
208371,22/06/2022,Skyline Hotel,Homelessness - Accommodation,Homelessness - Accommodation,931.50
208372,22/06/2022,Skyline Hotel,Homelessness - Accommodation,Homelessness - Accommodation,1255.50
208373,22/06/2022,Skyline Hotel,Homelessness - Accommodation,Homelessness - Accommodation,810.00
208374,22/06/2022,Skyline Hotel,Homelessness - Accommodation,Homelessness - Accommodation,769.50
208375,22/06/2022,De Salis Hotel,Homelessness - Accommodation,Homelessness - Accommodation,10605.00
208376,22/06/2022,Planned Environmental Services Ltd,New Depot Associated Capital Costs,Buildings Repair - Associated Cap Costs,4284.86
208377,22/06/2022,Regency Guarding & Events Ltd,Canfield Offices - Contractors,Security - Payments to Contractors,5945.00
208378,29/06/2022,Keep IT Simple Stationery Ltd,ICT - New Sites - Cap Pur IT,ICT Hardware - Cap Pur IT,6745.00
208379,22/06/2022,John Mitchell Electrical,New Depot Associated Capital Costs,Buildings Repair - Associated Cap Costs,1324.99
208380,22/06/2022,Cooper Lomaz Recruitment Ltd,Info Tech - Agency Staff,Agency Staff (Professional),1080.00
208382,22/06/2022,Cooper Lomaz Recruitment Ltd,Info Tech - Agency Staff,Agency Staff (Professional),1800.00
208383,22/06/2022,The Oyster Partnership Ltd,Dev't Control - Agency Staff,Agency Staff (Professional),763.05
208385,22/06/2022,Sonovate Ltd,Plan Policy - Agency Staff,Agency Staff (Professional),1684.58
208387,22/06/2022,Archant Herts & Cambs,Dev't Control - Advertising,Advertising,459.78
208388,22/06/2022,Archant Herts & Cambs,Dev't Control - Advertising,Advertising,845.22
208389,22/06/2022,M&B Printers Ltd,Waste Mgmt - Other Mats,Signage - Other Materials,855.00
208390,22/06/2022,Matchtech Group UK Limited,Dev't Control - Agency Staff,Agency Staff (Professional),2052.00
208391,22/06/2022,M&B Printers Ltd,Print Room - Stationery,Stationery,376.00
208392,22/06/2022,LABC East Anglia,Bldg Surveying - Subscriptions,Printed Stationery,285.00
208393,22/06/2022,M&B Printers Ltd,Env Protection - Other Mats,Signage - Other Materials,1754.00
208395,29/06/2022,Total Gas & Power Limited,Canfield Offices - Gas,Corporate Assets Utilities,597.85
208397,22/06/2022,EE Ltd,GF Asset Mgt - Mobiles,Corporate Mobile Phones ,4261.09
208400,22/06/2022,Locata (Housing Services) Ltd,Housing Servs - Fees,Housing (Misc) - Fees,2458.33
208401,22/06/2022,The Oyster Partnership Ltd,Dev't Control - Agency Staff,Agency Staff (Professional),1882.19
208403,22/06/2022,Essex County Council - Tourism,Economic Development - Subscriptions,Subscriptions,3210.00
208404,22/06/2022,Matchtech Group UK Limited,Dev't Control - Agency Staff,Agency Staff (Professional),2025.00
208405,22/06/2022,Matchtech Group UK Limited,Dev't Control - Agency Staff,Agency Staff (Professional),1458.00
208418,29/06/2022,Total Gas & Power Limited,Common Servs - Gas,Corporate Assets Utilities,1199.22
208419,29/06/2022,Total Gas & Power Limited,Common Servs - Gas,Credit note ,-3527.00
208422,29/06/2022,Npower Limited,Thaxted CIC - Electricity,Corporate Mobile Phones ,27625.10
208423,29/06/2022,Npower Limited,Thaxted CIC - Electricity,Credit note ,-10243.30
208425,29/06/2022,Felsted Parish Council,Community Grt - Cap Grt P&E,Grant,1000.00
208426,29/06/2022,Hempstead Parish Council,Community Grt - Cap Grt P&E,Grant,700.00
208428,29/06/2022,Langley Community Centre,NHB Ward Member - Grants,Grant,300.00
208429,29/06/2022,Little Canfield Parish Council,Community Grt - Cap Grt P&E,Grant,486.03
208431,29/06/2022,Saffron Walden Town Council,Community Grt - Cap Grt P&E,Grant,1000.00
208432,29/06/2022,Essex County Council,Garden Communities Delivery - Consultants,Consultants - General,32451.00
208433,29/06/2022,Archant Herts & Cambs,Dev't Control - Advertising,Advertising,313.01
208435,29/06/2022,Cartridge Save Ltd,Border Inspect - Equipment,Tools/Equipment (Purchase) - Equipment,336.11
208436,29/06/2022,Net-Com (92) Limited,ICT - New Sites - Cap Pur IT,Capital Purchases - IT,37005.11
208437,29/06/2022,Freeman & Company (installations) Ltd,S/W Offices - Pl Repairs,Lighting - Planned Repairs,6317.00
208438,29/06/2022,One51 ES Plastics UK t/a MGB Plastics,Garden Waste Bins - Cap Pur P&E,Elections - Plant & Equipment,6512.10
208439,29/06/2022,One51 ES Plastics UK t/a MGB Plastics,Garden Waste Bins - Cap Pur P&E,Elections - Plant & Equipment,2469.60
208440,29/06/2022,One51 ES Plastics UK t/a MGB Plastics,Containers - Cap Pur P&E,Elections - Plant & Equipment,8232.00
208441,29/06/2022,Essex County Council,Land Charges - Fees,Land Search Fees,574.00
208442,29/06/2022,The Oyster Partnership Ltd,Dev't Control - Agency Staff,Agency Staff (Professional),2713.75
208443,29/06/2022,The Oyster Partnership Ltd,Dev't Control - Agency Staff,Agency Staff (Professional),1755.00
208444,29/06/2022,Town & Country Planning Association,Plan Policy - Prof Subs,Professional Subscriptions,4536.00
208445,29/06/2022,Net-Com (92) Limited,ICT - New Sites - Cap Pur IT,Capital Purchases - IT,1279.50
208447,29/06/2022,OnLiTech Limited,Info Tech - Equipment,ICT Consumables - Equipment,4386.00
208448,29/06/2022,Imperial Treasury Services Ltd,Treasury Man - Fees,Financial Services - Borrowing Fees,11926.02
208451,29/06/2022,Quendon & Rickling Parish Council,Community Grt - Cap Grt P&E,Grant,1000.00
208453,29/06/2022,BGC Brokers,Treasury Man - Fees,Financial Services - Borrowing Fees,13743.83
208454,29/06/2022,Buckingham Futures Ltd,Commercial Team - Agency Staff,Agency Staff (Professional),475.00
208455,29/06/2022,Matchtech Group UK Limited,Dev't Control - Agency Staff,Agency Staff (Professional),2052.00
208457,29/06/2022,Archant Herts & Cambs,Dev't Control - Advertising,Advertising,282.29
208458,29/06/2022,Archant Herts & Cambs,Dev't Control - Advertising,Advertising,516.91
208459,29/06/2022,Archant Herts & Cambs,Dev't Control - Advertising,Advertising,455.80
208460,29/06/2022,Sundry BACS,NHB Ward Member - Grants,Grant,750.00
208461,29/06/2022,Sundry BACS,NHB Ward Member - Grants,Grant,300.00
208463,29/06/2022,Sellick Partnership Ltd,Legal Services - Agency Staff,Agency Staff (Professional),1141.40
208464,29/06/2022,Zehnder Group UK Ltd,GF Asset Mgt - Pl Repairs,Heating/Air Cond - Planned Repairs,481.00
208465,29/06/2022,Sellick Partnership Ltd,Legal Services - Fees,Legal Services - Fees,2160.00
208468,29/06/2022,Malins Associates Limited,Property Servs - Consultants,Consultants - General,3780.00
208470,29/06/2022,Freeman & Company (installations) Ltd,S/W Offices - Pl Repairs,Electrical - Planned Repairs,4257.17
208471,29/06/2022,Freeman & Company (installations) Ltd,S/W Offices - Pl Repairs,Electrical - Planned Repairs,3515.29
208472,29/06/2022,Freeman & Company (installations) Ltd,S/W Offices - Pl Repairs,Electrical - Planned Repairs,766.00
208473,29/06/2022,Freeman & Company (installations) Ltd,S/W Offices - Pl Repairs,Electrical - Planned Repairs,1705.93
208474,29/06/2022,Wild Frontier Ecology Ltd,Property Servs Business Plan,Housing Dev - Business Plan,460.00
208477,29/06/2022,Sundry BACS,S/W Offices - Ad Hoc Repair,Repairs,540.00
208479,29/06/2022,PC Building Services,Waste Mgmt - Compensation,Open Spaces Repair - Compensation,250.00
208481,29/06/2022,Keep IT Simple Stationery Ltd,ICT - New Sites - Cap Pur IT,ICT Hardware - Cap Pur IT,4704.90
208483,29/06/2022,H B Commercial Ltd,Vehicle Maint - Other Mats,Waste Management - Materials,966.04
208485,29/06/2022,Central Tyre Limited,Vehicle Maint - Other Mats,Waste Management - Materials,1250.00
208486,29/06/2022,Contracts Support Services Ltd,Waste Mgmt - Agency Staff,Agency Staff (Professional),538.76
208490,29/06/2022,Dunmow Skips Ltd,Street Clnsing - Disposal Chg,Waste Recycling - Disposal Charge,1328.32
208492,29/06/2022,H B Commercial Ltd,Vehicle Maint - Other Mats,Waste Management - Materials,460.00
208494,29/06/2022,H B Commercial Ltd,Vehicle Maint - Other Mats,Waste Management - Materials,395.34
208495,29/06/2022,H B Commercial Ltd,Vehicle Maint - Other Mats,Waste Management - Materials,346.38
208498,29/06/2022,Silver Shield Windscreens Limited,Vehicle Maint - Other Mats,Waste Management - Materials,325.00
208499,29/06/2022,WasteParts UK Ltd,Vehicle Maint - Other Mats,Waste Management - Materials,951.49
208500,29/06/2022,WasteParts UK Ltd,Vehicle Maint - Other Mats,Waste Management - Materials,290.00
208501,29/06/2022,WasteParts UK Ltd,Vehicle Maint - Other Mats,Waste Management - Materials,337.26
208505,29/06/2022,Sonovate Ltd,Plan Policy - Agency Staff,Agency Staff (Professional),1765.83
208508,29/06/2022,Driver Hire Chelmsford,Waste Mgmt - Agency Staff,Agency Staff (Professional),365.63
208509,29/06/2022,Good People Recycling Ltd,Grounds Mtce  - Agency Staff,Agency Staff (Professional),906.50
208510,29/06/2022,Good People Recycling Ltd,Grounds Mtce  - Agency Staff,Agency Staff (Professional),735.00
208511,29/06/2022,Source 24/7 LTD,Waste Mgmt - Agency Staff,Agency Staff (Professional),1757.25
208513,29/06/2022,Sundry BACS,Bldg Surveying - Charges,Bldg Surveying - Charges,462.50
208514,29/06/2022,Calibration & Consultancy Services UK Lt,New Depot Associated Capital Costs,Buildings Repair - Associated Cap Costs,45112.30
208515,29/06/2022,Source 24/7 LTD,Waste Mgmt - Agency Staff,Agency Staff (Professional),1317.00
208516,29/06/2022,Essex County Council,Land Charges - Fees,Land Search Fees,574.00
208517,29/06/2022,Essex County Council,Trade Waste - Disposal Chg,Waste Disposal - Disposal Charge,108302.88
208519,29/06/2022,Dudley Metropolitan Borough Council,Democratic Rep - Subscriptions,Subscriptions,1860.00
208520,29/06/2022,Sundry BACS,NHB Ward Member - Grants,Grant,600.00
208521,29/06/2022,Sundry BACS,NHB Ward Member - Grants,Grant,350.00
208522,29/06/2022,The Oyster Partnership Ltd,Dev't Control - Agency Staff,Agency Staff (Professional),1882.19
208523,29/06/2022,Anness and Partners,New Depot Associated Capital Costs,Consultancy - Associated Capital Costs,1900.00
208524,29/06/2022,The Oyster Partnership Ltd,Dev't Control - Agency Staff,Agency Staff (Professional),1792.50
208525,29/06/2022,The Oyster Partnership Ltd,Dev't Control - Agency Staff,Agency Staff (Professional),2405.00
208526,29/06/2022,Essex Fire Authority,Emergency Plan - Other Agency,Financial Services - Other Agencies,1359.97
208527,29/06/2022,Cooper Lomaz Recruitment Ltd,Info Tech - Agency Staff,Agency Staff (Professional),1800.00
208528,29/06/2022,George Browns,Grounds Mtce  - Other Mats,Waste Management - Materials,1549.00
208529,29/06/2022,East of England Local Government Associa,Economic Development - Subscriptions,Subscriptions,10000.00
208530,29/06/2022,G2 Recruitment Solutions,Commercial Team - Agency Staff,Agency Staff (Professional),1360.00
208531,29/06/2022,Buckingham Futures Ltd,Commercial Team - Agency Staff,Agency Staff (Professional),570.00
208532,29/06/2022,Net-Com (92) Limited,ICT - New Sites - Cap Pur IT,Capital Purchases - IT,1779.75
208535,29/06/2022,Easy Mobility (East Anglian) Ltd,Dis Facil Grt - Cap Grt L&B,Grants - S106 Cap Grt L&B,2277.00
208536,29/06/2022,Vivid Resourcing Ltd,Env Protection - Consultants,Consultants - General,591.76
208537,29/06/2022,Vivid Resourcing Ltd,Env Protection - Consultants,Consultants - General,500.72
208538,29/06/2022,Net-Com (92) Limited,ICT - New Sites - Cap Pur IT,Capital Purchases - IT,384.50
208539,29/06/2022,The Oyster Partnership Ltd,Commercial Team - Agency Staff,Agency Staff (Professional),967.50
208540,29/06/2022,The Oyster Partnership Ltd,Commercial Team - Agency Staff,Agency Staff (Professional),903.00
208541,29/06/2022,The Oyster Partnership Ltd,Commercial Team - Agency Staff,Agency Staff (Professional),1655.50
208542,29/06/2022,The Oyster Partnership Ltd,Commercial Team - Agency Staff,Agency Staff (Professional),1698.50
208543,29/06/2022,The Oyster Partnership Ltd,Commercial Team - Agency Staff,Agency Staff (Professional),700.00
208544,29/06/2022,The Oyster Partnership Ltd,Commercial Team - Agency Staff,Agency Staff (Professional),750.00
208546,29/06/2022,Easy Mobility (East Anglian) Ltd,Dis Facil Grt - Cap Grt L&B,Grants - S106 Cap Grt L&B,1584.00
208552,29/06/2022,Lifetime Adaptions & Design Solutions Lt,Dis Facil Grt - Cap Grt L&B,Grants - S106 Cap Grt L&B,580.00
208553,29/06/2022,Specialist Bathrooms & Property Services,Dis Facil Grt - Cap Grt L&B,Grants - S106 Cap Grt L&B,5310.00
208554,29/06/2022,Gracelands CMS Ltd,Dis Facil Grt - Cap Grt L&B,Grants - S106 Cap Grt L&B,4354.35
208555,29/06/2022,Total Gas & Power Limited,Thaxted CIC - Gas,Corporate Assets Utilities,8396.51
208556,29/06/2022,Affinity Water,Temp Accom - Water,Credit note ,-364.80
208556,29/06/2022,Affinity Water,Common Servs - Water,Credit note ,-2974.74
208557,29/06/2022,Gracelands CMS Ltd,Dis Facil Grt - Cap Grt L&B,Grants - S106 Cap Grt L&B,4302.31
208558,29/06/2022,Affinity Water,Temp Accom - Water,Corporate Assets Utilities,597.16
208558,29/06/2022,Affinity Water,Common Servs - Water,Corporate Assets Utilities,4680.56
208559,29/06/2022,Castle Water Limited,DC SW - Water,Corporate Assets Utilities,289.44
208560,29/06/2022,Anglian Water Business,Dunmow Depot - Water,Corporate Assets Utilities,285.98
208564,29/06/2022,One51 ES Plastics UK t/a MGB Plastics,Containers - Cap Pur P&E,Elections - Plant & Equipment,8288.00
208565,29/06/2022,One51 ES Plastics UK t/a MGB Plastics,Containers - Cap Pur P&E,Elections - Plant & Equipment,8288.00
208567,29/06/2022,Amas Ltd,Planning Admin - Seminars,Conferences - Seminars & Meetings,1848.00
20,01/04/2022,Peveril Securities,"Amazon, Gloucester Associated Capital Costs",Consultancy - Associated Capital Costs,8665056.93
,08/04/2022,A D Fuel Oils Ltd,Waste Management,Fuel -diesel,7950.00
,14/04/2022,Resident,Ukrainian refugees,Ukrainian refugees,400.00
,14/04/2022,Resident,Ukrainian refugees,Ukrainian refugees,400.00
,19/04/2022,A D Fuel Oils Ltd,Waste Management,Fuel -diesel,7900.00
,10/05/2022,"Dept. for Business, Energy and Industrial Strategy",Revenues,Repayment of unspent restart grant,567391.00
,10/05/2022,"Dept. for Business, Energy and Industrial Strategy",Revenues,Repayment of unspent local restrictions grant,542397.00
,27/06/2022,Resident,HRA Capital asset ,Housing downsize payment,2500.00
,30/06/2022,Shakespeare Martineau LLP,HRA capital asset purchase,Affordable Housing Deposit,344075.50
,05/07/2022,Phoenix Life,Corporate,Loan interest + principal,826413.65
207423,06/07/2022,Net-Com (92) Limited,WiFi - Cap Pur IT,Capital Purchases - IT,5103.00
208134,06/07/2022,Keep IT Simple Stationery Ltd,ICT - New Sites - Cap Pur IT,Capital Purchases - IT,4372.02
208424,06/07/2022,Sundry BACS,Hsg Rent Refunds Movements,Housing rent refunds,2007.18
208456,10/08/2022,Newsquest Media Group Ltd,Economic Development - Advertising,Advertising,500.00
208476,06/07/2022,Sundry BACS,Hsg Rent Refunds Movements,Housing rent refunds,800.00
208478,06/07/2022,Sundry BACS,Hsg Rent Refunds Movements,Housing rent refunds,581.00
208562,06/07/2022,Ashdon Parish Council,Community Grt - Cap Grt P&E,Grant,3500.00
208563,06/07/2022,Sundry BACS,Community Grt - Cap Grt P&E,Grant,300.00
208566,03/08/2022,Bell Decorating Group Limited,S/W Offices - Pl Repairs,Paint/Finishing - Planned Repairs,11935.00
208568,06/07/2022,Sundry BACS,Community Grt - Cap Grt P&E,Grant,1000.00
208569,06/07/2022,Thaxted Festival Foundation,Community Grt - Cap Grt P&E,Grant,3500.00
208571,06/07/2022,Newline Anglia Ltd,Waste Mgmt - Clothing,Protective Clothing - Clothing & Uniform,525.60
208572,06/07/2022,Newline Anglia Ltd,Waste Mgmt - Clothing,Protective Clothing - Clothing & Uniform,307.64
208575,06/07/2022,Terberg Matec UK Ltd,Vehicle Maint - Other Mats,Waste Management - Materials,3716.73
208576,06/07/2022,Treecology,Grounds Mtce  - External Contracts,Tree Trimming - Grounds Maint,880.00
208577,13/07/2022,Cornerstone Barristers,Dev Ctrl Appls - Legal Fees,Legal Services - Legal Fees,3700.00
208578,06/07/2022,Meadow Hill Coffee Shop,Dev Ctrl Appls - Refreshments,Food/Beverages - Refreshments,274.00
208580,06/07/2022,Contracts Support Services Ltd,Waste Mgmt - Agency Staff,Agency Staff (Professional),542.42
208582,06/07/2022,Dunmow Skips Ltd,Street Clnsing - Disposal Chg,Waste Recycling - Disposal Charge,861.58
208583,06/07/2022,Dunmow Skips Ltd,Street Clnsing - Disposal Chg,Waste Recycling - Disposal Charge,752.21
208585,06/07/2022,Guarda Limited,Dev Ctrl Appls - Consultants,Consultants - General,6644.80
208586,06/07/2022,Good People Recycling Ltd,Waste Mgmt - Agency Staff,Agency Staff (Professional),13803.89
208587,06/07/2022,Good People Recycling Ltd,Waste Mgmt - Agency Staff,Agency Staff (Professional),12289.63
208590,06/07/2022,Computershare Voucher Services,Human Resource - Emp'ee Scheme,Human Resources - Emp'ee Scheme,297.08
208597,13/07/2022,Canon (UK) Limited,Print Room - Photocopier,Reprographics - Photocopier,626.10
208607,06/07/2022,Canon (UK) Limited,Print Room - Photocopier,Reprographics - Photocopier,424.17
208612,06/07/2022,Saffron Signs,Trade Waste - Other Mats,Signage - Other Materials,340.00
208613,06/07/2022,WFL (UK) Ltd,Waste Mgmt - Diesel,Vehicle Fuel - Diesel,42877.85
208615,06/07/2022,Duncan Cameron & Hutchinson Ltd,Thaxted Road - Cap Wk L&B,Sheltered Housing (Cap L&B),288432.76
208616,06/07/2022,Duncan Cameron & Hutchinson Ltd,Great Chesterford - Cap Wk L&B,Consultancy (Prop Works)- Cap Wk L&B,262174.18
208617,06/07/2022,Good People Recycling Ltd,Grounds Mtce  - Agency Staff,Agency Staff (Professional),906.50
208618,06/07/2022,Linteum (Uttlesford) Ltd,PFI Financing LTL -Repaid,Leisure Services - LTL - Repaid,13910.58
208618,06/07/2022,Linteum (Uttlesford) Ltd,Int & Invest - Interest Pay,Leisure Services - Interest Payable,28968.50
208618,06/07/2022,Linteum (Uttlesford) Ltd,PFI - PFI Unitary,Leisure Services -PFI Unitary Charge,55510.64
208619,06/07/2022,Specialist Bathrooms & Property Services,Dis Facil Grt - Cap Grt L&B,Credit note,-5310.00
208620,06/07/2022,Henry Riley,New Depot Associated Capital Costs,Consultancy - Associated Capital Costs,5500.00
208621,06/07/2022,Planned Environmental Services Ltd,New Depot Associated Capital Costs,Buildings Repair - Associated Cap Costs,8926.00
208622,06/07/2022,Planned Environmental Services Ltd,New Depot Associated Capital Costs,Buildings Repair - Associated Cap Costs,877.00
208623,06/07/2022,Henry Riley,New Depot Associated Capital Costs,Consultancy - Associated Capital Costs,1500.00
208624,06/07/2022,Optimum AV,Info Tech - Equipment,Events - Equipment,10090.00
208625,06/07/2022,Mill Green Facilities Limited,New Depot Associated Capital Costs,Buildings Repair - Associated Cap Costs,7089.08
208626,06/07/2022,Specialist Bathrooms & Property Services,Dis Facil Grt - Cap Grt L&B,Grant,5310.00
208628,06/07/2022,Mill Green Facilities Limited,New Depot Associated Capital Costs,Buildings Repair - Associated Cap Costs,4280.95
208629,06/07/2022,Sellick Partnership Ltd,Legal Services - Agency Staff,Agency Staff (Professional),898.55
208630,06/07/2022,Sellick Partnership Ltd,Legal Services - Fees,Legal Services - Fees,2040.00
208631,13/07/2022,The Oyster Partnership Ltd,Dev't Control - Agency Staff,Agency Staff (Professional),1768.60
208632,06/07/2022,Sellick Partnership Ltd,Legal Services - Legal Fees,Legal Services - Legal Fees,1375.00
208633,06/07/2022,Newsquest Media Group Ltd,Economic Development - Advertising,Advertising,363.20
208635,06/07/2022,Newsquest Media Group Ltd,Dev't Control - Advertising,Advertising,311.88
208636,06/07/2022,Newsquest Media Group Ltd,Dev't Control - Advertising,Advertising,571.62
208637,06/07/2022,Cooper Lomaz Recruitment Ltd,Info Tech - Agency Staff,Agency Staff (Professional),2200.00
208638,06/07/2022,Hyperfusion Theatre Company,Comm Safe Part - Other Mats,Performing Arts - Other Materials,2250.00
208639,06/07/2022,Positive Waste Solutions Ltd,Street Clnsing - Other Mats,Waste Management - Materials,1460.00
208640,06/07/2022,Positive Waste Solutions Ltd,Waste Mgmt - Other Mats,Waste Management - Materials,2850.00
208641,06/07/2022,Positive Waste Solutions Ltd,Waste Mgmt - Other Mats,Waste Management - Materials,3116.00
208643,06/07/2022,MSG Contracts Limited,Canfield Offices - Cleaning,Cleaning Service - Contract Cleaning,468.00
208644,06/07/2022,AdEPT Telecom PLC T/A Centrix Ltd,Telephones - Telephones,Chairmans Expenses,2567.03
208645,06/07/2022,Cushman & Wakefield Debenham Tie Leung L,"MOOG, Tawkesbury Cap Pur Acq",Construction - Capital Purchase Acquisit,3950.00
208646,06/07/2022,Bartec Auto ID Ltd,Waste Mgmt - Subscriptions,Subscriptions,1785.26
208648,06/07/2022,OCN Contract Services,Homelessness - Furniture,Domestic Furniture,363.00
208650,06/07/2022,Spacio Ltd,New Depot Associated Capital Costs,Buildings Repair - Associated Cap Costs,32610.00
208651,06/07/2022,Pristine Environmental Services Ltd,Canfield Offices - Disposal Chg,Waste Disposal - Disposal Charge,943.00
208652,06/07/2022,Sundry BACS,Debtors Control Refunds,Debtors refund ,271.44
208653,06/07/2022,Stansted Mountfitchet Parish Council,DC Stansted - Grants,Charitable Grants,22000.00
208654,06/07/2022,Castle Water Limited,Common Servs - Water,Corporate assets utilities ,683.17
208655,20/07/2022,Good People Recycling Ltd,Waste Mgmt - Agency Staff,Agency Staff (Professional),15996.82
208656,20/07/2022,Good People Recycling Ltd,Waste Mgmt - Agency Staff,Agency Staff (Professional),12798.88
208657,06/07/2022,Source 24/7 LTD,Waste Mgmt - Agency Staff,Agency Staff (Professional),418.00
208660,06/07/2022,Contracts Support Services Ltd,Waste Mgmt - Agency Staff,Agency Staff (Professional),674.36
208661,06/07/2022,Planit Consulting,Dev Ctrl Appls - Consultants,Consultants - General,17923.89
208662,06/07/2022,Planit Consulting,Dev Ctrl Appls - Consultants,Consultants - General,8440.50
208663,06/07/2022,The Monarch Partnership,Climate Change - Consultants,Consultants - General,360.00
208665,06/07/2022,Lindstrom Ltd,Vehicle Maint - Other Mats,Waste Management - Materials,373.32
208669,06/07/2022,Affinity Water,Temp Accom - Water,Corporate assets utilities ,318.35
208669,06/07/2022,Affinity Water,Common Servs - Water,Corporate assets utilities ,9259.55
208671,06/07/2022,Anglian Water Business,Common Servs - Water,Corporate assets utilities ,356.81
208672,06/07/2022,Oak Housing Group Limited,Homelessness - Emerg Supply,Homelessness - Emergency Supplies,3000.00
208673,13/07/2022,Uttlesford Norse Ltd.,Norse Partnership Estates - Fees,Partnerships - Fees,17284.30
208673,13/07/2022,Uttlesford Norse Ltd.,Norse Partnership Hsg Rep - Fees,Partnerships - Fees,159691.90
208673,13/07/2022,Uttlesford Norse Ltd.,Norse Partnership Sheltered - Fees,Partnerships - Fees,9781.66
208673,13/07/2022,Uttlesford Norse Ltd.,Norse Partnership Sewerage - Fees,Partnerships - Fees,4179.27
208674,13/07/2022,Uttlesford Norse Ltd.,Norse Partnership Hsg Rep - Fees,Partnerships - Fees,38199.15
208675,13/07/2022,Uttlesford Norse Ltd.,Norse Partnership Admin - Fees,Partnerships - Fees,30237.19
208675,13/07/2022,Uttlesford Norse Ltd.,Norse Partnership Hsg Rep - Fees,Partnerships - Fees,48880.02
208676,13/07/2022,Uttlesford Norse Ltd.,Voids Prog - Cap Rep L&B,Buildings Repair/Maint - Cap Rep L&B,52450.00
208677,13/07/2022,Uttlesford Norse Ltd.,Norse Partnership Asset Mgt - Fees,Partnerships - Fees,14136.44
208677,13/07/2022,Uttlesford Norse Ltd.,Norse Partnership Cleaning - Fees,Partnerships - Fees,18996.10
208678,20/07/2022,Penna PLC,Financial Srvs - Agency Staff,Agency Staff (Professional),10980.00
208679,13/07/2022,S F Rowell MRCVS,Border Inspect - Oth Prof Fees,Veterinary Services - Other Prof Fees,2475.00
208680,13/07/2022,SGS (formally Concept Life Sciences),Border Inspect - Oth Prof Fees,Forensic & Lab Testing - Oth Prof Fees,2927.04
208681,13/07/2022,Sonovate Ltd,Plan Policy - Agency Staff,Agency Staff (Professional),1787.50
208683,20/07/2022,Shire Trees Limited,Grounds Mtce  - External Contracts,Tree Trimming - Grounds Maint,500.00
208685,13/07/2022,Newsquest Media Group Ltd,Dev't Control - Advertising,Advertising,443.95
208691,13/07/2022,Virgin Media Payments Ltd,Telephones - Telephones,Telecommunications - Telephones,1136.81
208692,13/07/2022,Cambridge University Hospitals NHS FT,Benefits Admin - Medic Other,Assessment - Medical Other,443.50
208698,13/07/2022,Quadient UK LTD,Mail Room - Equip Rental,Office & Reprographics -Equipment Rental,3921.98
208699,13/07/2022,Solace in Business Ltd,Dir Pub Servs - Agency Staff,Agency Staff (Professional),12444.00
208701,13/07/2022,Hometrack Data Systems,Housing Servs - Subscriptions,Subscriptions,5000.00
208702,13/07/2022,Paul Butcher,New Depot Associated Capital Costs,Buildings Repair - Associated Cap Costs,1750.00
208703,13/07/2022,The Design Partnership (Ely) Ltd,Property Servs Business Plan,Housing Dev - Business Plan,4046.19
208705,13/07/2022,Sundry BACS,Tenants Grants - Cap Grt L&B,Grant,2500.00
208707,13/07/2022,Buckingham Futures Ltd,Commercial Team - Agency Staff,Agency Staff (Professional),1187.50
208708,13/07/2022,The Oyster Partnership Ltd,Commercial Team - Agency Staff,Agency Staff (Professional),1677.00
208709,13/07/2022,The Oyster Partnership Ltd,Commercial Team - Agency Staff,Agency Staff (Professional),1675.00
208710,24/08/2022,Optimum AV,Info Tech - Equipment,Events - Equipment,15955.00
208716,13/07/2022,LCM Environmental Services Ltd,New Depot Associated Capital Costs,Buildings Repair - Associated Cap Costs,8500.00
208717,13/07/2022,Larac,Waste Mgmt - Prof Subs,Professional Subscriptions,445.00
208722,13/07/2022,Stebbing Parish Council,Community Grt - Cap Grt P&E,Grant,750.00
208723,13/07/2022,Sundry BACS,Community Grt - Cap Grt P&E,Grant,1850.00
208724,13/07/2022,Sundry BACS,NHB Ward Member - Grants,Grant,360.00
208725,13/07/2022,Sundry BACS,Community Grt - Cap Grt P&E,Grant,1000.00
208726,13/07/2022,The Oyster Partnership Ltd,Dev't Control - Agency Staff,Agency Staff (Professional),1792.50
208727,13/07/2022,Hall Mark Meat Hygiene Limited,Border Inspect - Oth Prof Fees,Veterinary Services - Other Prof Fees,6465.00
208728,17/08/2022,CIEH,Env Protection - Advertising,Recruitment - Advertising,1400.00
208729,13/07/2022,Spacehouse Limited,Env Protection - Advertising,Recruitment - Advertising,2100.00
208730,13/07/2022,Npower Limited,Common Servs - Electricity,Corporate assets utilities ,8241.81
208731,13/07/2022,Castle Water Limited,Thaxted CIC - Water,Corporate assets utilities ,321.42
208734,13/07/2022,The Oyster Partnership Ltd,Dev't Control - Agency Staff,Agency Staff (Professional),2416.05
208735,13/07/2022,Vivid Resourcing Ltd,Env Protection - Consultants,Consultants - General,455.20
208736,13/07/2022,Easy Mobility (East Anglian) Ltd,Dis Facil Grt - Cap Grt L&B,Grants - S106 Cap Grt L&B,4589.00
208737,13/07/2022,LAVAT Consulting Limited,Financial Srvs - Consultants,Consultants - General,2450.00
208738,13/07/2022,Sundry BACS,Community Grt - Cap Grt P&E,Grant,1000.00
208739,13/07/2022,Sundry BACS,NHB Ward Member - Grants,Grant,500.00
208740,13/07/2022,Great Dunmow Museum Society,Community Grt - Cap Grt P&E,Grant,3500.00
208741,13/07/2022,Manuden Parish Council,Community Grt - Cap Grt P&E,Grant,1000.00
208742,13/07/2022,Saffron Walden Initiative,Community Grt - Cap Grt P&E,Grant,999.00
208745,13/07/2022,Chelmsford City Council,Internal Audit - Consultants,Consultants - General,6048.00
208746,13/07/2022,Chelmsford City Council,Internal Audit - Consultants,Consultants - General,4368.00
208750,13/07/2022,Glasdon UK Ltd,New Depot Associated Capital Costs,General Sundries - Associated Capital Co,1655.34
208751,13/07/2022,Modes Users Association,Museum S/W - Subscriptions,Subscriptions,445.00
208752,13/07/2022,NBS Enterprises Ltd,GF Asset Mgt - Subscriptions,Subscriptions,2250.00
208753,13/07/2022,Newport Parish Council,Community Grt - Cap Grt P&E,Grant,576.00
208754,13/07/2022,Landmark Chambers,Dev Ctrl Appls - Consultants,Consultants - General,69632.00
208755,13/07/2022,Landmark Chambers,Dev Ctrl Appls - Consultants,Consultants - General,16889.00
208756,20/07/2022,Sundry BACS,Hsg Rent Refunds Movements,Housing rent refunds,1119.45
208757,13/07/2022,Net-Com (92) Limited,ICT - New Sites - Cap Pur IT,Capital Purchases - IT,9857.25
208758,13/07/2022,Sonovate Ltd,Plan Policy - Agency Staff,Agency Staff (Professional),1755.00
208759,13/07/2022,The Oyster Partnership Ltd,Dev't Control - Agency Staff,Agency Staff (Professional),1882.19
208760,13/07/2022,The Oyster Partnership Ltd,Dev't Control - Agency Staff,Agency Staff (Professional),1882.19
208761,13/07/2022,Viridor Waste Management Ltd,Waste Mgmt - Mat Rec Fac,Waste Recycling - Materials Recycling,8565.35
208763,13/07/2022,Dennis Eagle Limited,Vehicle Maint - Other Mats,Waste Management - Materials,922.70
208764,13/07/2022,General Business Holdings Ltd,Waste Mgmt - Disposal Chg,Waste Disposal - Disposal Charge,2310.45
208765,13/07/2022,Good People Recycling Ltd,Grounds Mtce  - Agency Staff,Agency Staff (Professional),551.25
208766,13/07/2022,Good People Recycling Ltd,Waste Mgmt - Agency Staff,Agency Staff (Professional),12244.01
208770,13/07/2022,Source 24/7 LTD,Waste Mgmt - Agency Staff,Agency Staff (Professional),627.00
208775,13/07/2022,TotalEnergies Marketing UK Ltd,Vehicle Maint - Other Mats,Vehicle Parts - Other Materials,950.00
208777,13/07/2022,Harrington Morgan Limited,Waste Mgmt - Prof Training,Training,1650.00
208779,13/07/2022,Malthouse Security Ltd,Sheltered Hsg - Equipment,Health Care Equipment,942.12
208782,13/07/2022,Landmark Office Ltd (Furniture),New Depot Associated Capital Costs,General Sundries - Associated Capital Co,1328.00
208783,13/07/2022,Safetykleen UK Ltd,Vehicle Maint - Other Mats,Waste Management - Materials,505.99
208784,13/07/2022,J D Robertson & Co Limited,Waste Mgmt - Contract Hire,Vehicle Hire,904.50
208785,13/07/2022,J D Robertson & Co Limited,Waste Mgmt - Contract Hire,Vehicle Hire,813.90
208790,20/07/2022,Scammell Commercial Limited,Waste Mgmt - Contract Hire,Vehicle Hire,1500.00
208791,20/07/2022,Go Plant Fleet Services Ltd,Waste Mgmt - Contract Hire,Vehicle Hire,3750.00
208792,20/07/2022,Patricia Ackron,Health Imp - Seminars,Room Hire - Seminars & Meetings,490.00
208795,20/07/2022,Mark Liell & Son LLP,Commercial Asset Mgt - Fees,Partnerships - Fees,11013.25
208796,20/07/2022,Mark Liell & Son LLP,Commercial Asset Mgt - Fees,Partnerships - Fees,8140.00
208797,20/07/2022,Mark Liell & Son LLP,Commercial Asset Mgt - Fees,Partnerships - Fees,11356.25
208798,20/07/2022,Mark Liell & Son LLP,Commercial Asset Mgt - Fees,Partnerships - Fees,3750.00
208799,20/07/2022,Mark Liell & Son LLP,Commercial Asset Mgt - Fees,Partnerships - Fees,11467.25
208800,20/07/2022,Ace LGV Training Ltd,Waste Mgmt - Prof Training,Training,340.00
208801,20/07/2022,Street Cars Transportation,Other LA's Movemt in year,Emerg Accommodation - Ukrainian Refugees,740.00
208802,20/07/2022,Sundry BACS,Dev't Control - Fees,Development control,6955.00
208803,20/07/2022,Canon (UK) Limited,Print Room - Equip Rental,Office & Reprographics -Equipment Rental,1025.37
208804,20/07/2022,Canon (UK) Limited,Print Room - Equip Rental,Office & Reprographics -Equipment Rental,987.66
208805,20/07/2022,Tetra Tech,Plan Policy - Consultants,Consultants - General,30000.00
208806,20/07/2022,Canon (UK) Limited,Print Room - Equip Rental,Office & Reprographics -Equipment Rental,1613.15
208807,20/07/2022,Canon (UK) Limited,Print Room - Equip Rental,Office & Reprographics -Equipment Rental,345.72
208811,20/07/2022,Kelly Rowland,Health Imp - Seminars,Room Hire - Seminars & Meetings,1400.00
208812,20/07/2022,Move n Smooth,Health Imp - Seminars,Room Hire - Seminars & Meetings,395.00
208814,20/07/2022,Sundry BACS,Debtors Control Refunds,Debtors refund ,1680.00
208817,20/07/2022,Castle Water Limited,Thaxted CIC - Water,Corporate assets utilities ,362.74
208818,20/07/2022,Sellick Partnership Ltd,Legal Services - Fees,Legal Services - Fees,1965.00
208819,20/07/2022,Sellick Partnership Ltd,Legal Services - Legal Fees,Legal Services - Legal Fees,1375.00
208820,20/07/2022,Sellick Partnership Ltd,Legal Services - Legal Fees,Legal Services - Legal Fees,1375.00
208821,20/07/2022,OCN Contract Services,Temp Accom - Furniture,Domestic Furniture,1184.00
208822,20/07/2022,Keep IT Simple Stationery Ltd,Info Tech - Equipment,ICT Consumables - Equipment,251.60
208823,20/07/2022,Keep IT Simple Stationery Ltd,Info Tech - Equipment,ICT Consumables - Equipment,398.00
208830,20/07/2022,Total Gas & Power Limited,Thaxted CIC - Gas,Corporate assets utilities ,6837.44
208833,20/07/2022,Sellick Partnership Ltd,Legal Services - Agency Staff,Agency Staff (Professional),971.40
208834,20/07/2022,Sellick Partnership Ltd,Legal Services - Fees,Legal Services - Fees,2070.00
208835,20/07/2022,Sellick Partnership Ltd,Legal Services - Legal Fees,Legal Services - Legal Fees,1375.00
208840,20/07/2022,Castle Water Limited,Common Servs - Water,Corporate assets utilities ,347.74
208841,20/07/2022,Scammell Commercial Limited,Waste Mgmt - Contract Hire,Credit note,-1250.00
208842,20/07/2022,The Oyster Partnership Ltd,Dev't Control - Agency Staff,Agency Staff (Professional),1882.19
208843,20/07/2022,The Oyster Partnership Ltd,Dev't Control - Agency Staff,Agency Staff (Professional),1673.00
208844,20/07/2022,Dennis Eagle Limited,Vehicle Maint - Other Mats,Waste Management - Materials,792.81
208845,20/07/2022,Dennis Eagle Limited,Vehicle Maint - Other Mats,Waste Management - Materials,609.34
208846,20/07/2022,Cornerstone Barristers,Dev Ctrl Appls - Legal Fees,Legal Services - Legal Fees,33400.00
208847,20/07/2022,Newsquest Media Group Ltd,Dev't Control - Advertising,Advertising,380.90
208848,20/07/2022,Newsquest Media Group Ltd,Dev't Control - Advertising,Advertising,699.30
208850,20/07/2022,Scammell Commercial Limited,Waste Mgmt - Contract Hire,Vehicle Hire,5000.00
208854,20/07/2022,WasteParts UK Ltd,Vehicle Maint - Other Mats,Waste Management - Materials,265.30
208856,20/07/2022,WasteParts UK Ltd,Vehicle Maint - Other Mats,Waste Management - Materials,712.19
208858,20/07/2022,Sopra Steria Ltd,Waste Mgmt - Subscriptions,Subscriptions,750.00
208860,20/07/2022,Saffron Signs,Waste Mgmt - Other Mats,Signage - Other Materials,680.00
208861,20/07/2022,Berendsen UK Ltd,Vehicle Maint - Other Mats,Waste Management - Materials,350.58
208862,20/07/2022,Contracts Support Services Ltd,Waste Mgmt - Agency Staff,Agency Staff (Professional),723.84
208863,20/07/2022,The Design Partnership (Ely) Ltd,Thaxted Road - Cap Wk L&B,Consultancy (Prop Works)- Cap Wk L&B,9216.40
208864,20/07/2022,Saffron Signs,Waste Mgmt - Other Mats,Signage - Other Materials,680.00
208865,20/07/2022,Saffron Signs,Street Clnsing - Other Mats,Signage - Other Materials,300.00
208866,20/07/2022,Riverside Truck Rental Ltd,Waste Mgmt - Contract Hire,Vehicle Hire,5500.00
208867,20/07/2022,Good People Recycling Ltd,Waste Mgmt - Agency Staff,Agency Staff (Professional),14310.63
208868,20/07/2022,Central Tyre Limited,Vehicle Maint - Other Mats,Waste Management - Materials,2370.00
208869,20/07/2022,Dunmow Skips Ltd,Street Clnsing - Disposal Chg,Waste Recycling - Disposal Charge,569.76
208870,20/07/2022,Source 24/7 LTD,Waste Mgmt - Agency Staff,Agency Staff (Professional),836.00
208872,20/07/2022,R2C Online Ltd,Vehicle Maint - Subscriptions,Subscriptions,2490.12
208873,20/07/2022,Berden Parish Council,Community Grt - Cap Grt P&E,Grant,768.00
208874,20/07/2022,Exacom Systems Ltd,Dev't Control - Software,ICT Software,9750.00
208877,10/08/2022,Landmark Business Supplies (Stationery),Mail Room - Stationery,Stationery,269.58
208879,20/07/2022,The Design Partnership (Ely) Ltd,Property Servs Business Plan,Housing Dev - Business Plan,640.00
208883,20/07/2022,Cooleraid Ltd,Vending Serv - Equip Rental,Vending Machines - Equip Rental,256.50
208887,20/07/2022,Sonovate Ltd,Plan Policy - Agency Staff,Agency Staff (Professional),1690.00
208889,20/07/2022,Dennis Eagle Limited,Vehicle Maint - Other Mats,Waste Management - Materials,1108.36
208891,20/07/2022,Abrey & Son Ltd,Grounds Mtce - Equipment,Tools/Equipment (Purchase) - Equipment,1166.67
208895,20/07/2022,De Salis Hotel,Other LA's Movemt in year,Emerg Accommodation - Ukrainian Refugees,4784.16
208896,20/07/2022,De Salis Hotel,Other LA's Movemt in year,Emerg Accommodation - Ukrainian Refugees,345.42
208898,20/07/2022,De Salis Hotel,Other LA's Movemt in year,Emerg Accommodation - Ukrainian Refugees,4464.00
208904,20/07/2022,Dennis Eagle Limited,Vehicle Maint - Other Mats,Waste Management - Materials,764.12
208905,20/07/2022,Dennis Eagle Limited,Vehicle Maint - Other Mats,Waste Management - Materials,347.48
208908,20/07/2022,H B Commercial Ltd,Vehicle Maint - Other Mats,Waste Management - Materials,899.30
208909,20/07/2022,H B Commercial Ltd,Vehicle Maint - Other Mats,Waste Management - Materials,767.87
208912,20/07/2022,Calibration & Consultancy Services UK Lt,New Depot Associated Capital Costs,Buildings Repair - Associated Cap Costs,2385.00
208913,20/07/2022,Good People Recycling Ltd,Grounds Mtce  - Agency Staff,Agency Staff (Professional),906.50
208914,20/07/2022,Good People Recycling Ltd,Waste Mgmt - Agency Staff,Agency Staff (Professional),14044.38
208915,20/07/2022,WasteParts UK Ltd,Vehicle Maint - Other Mats,Waste Management - Materials,680.90
208917,20/07/2022,Debden Parish Council,Community Grt - Cap Grt P&E,Grant,700.00
208918,20/07/2022,Hempstead Parish Council,NHB Ward Member - Grants,Grant,500.00
208919,20/07/2022,Saffron Walden Initiative,NHB Ward Member - Grants,Grant,500.00
208920,20/07/2022,Uttlesford Foodbank,NHB Ward Member - Grants,Grant,1000.00
208921,20/07/2022,Treecology,Grounds Mtce  - External Contracts,Tree Trimming - Grounds Maint,1200.00
208922,20/07/2022,Scammell Commercial Limited,Waste Mgmt - Contract Hire,Vehicle Hire,5250.00
208923,20/07/2022,Contracts Support Services Ltd,Waste Mgmt - Agency Staff,Agency Staff (Professional),674.36
208924,20/07/2022,CP Cleaning,New Depot Associated Capital Costs,Buildings Repair - Associated Cap Costs,1440.00
208925,20/07/2022,Silktide Ltd,Info Tech - Support Costs,ICT Maintenance/Support - Support Costs,2780.00
208926,28/07/2022,British Fossils,Museum Shop - Resale Stock,Museum & Arts - Stock for Resale,252.50
208927,17/08/2022,Braintree District Council,Street Clnsing - Disposal Chg,Recycling - Waste Disposal,7684.28
208928,10/08/2022,John Mitchell Electrical,New Depot Associated Capital Costs,Buildings Repair - Associated Cap Costs,295.84
208931,20/07/2022,Scammell Commercial Limited,Waste Mgmt - Contract Hire,Credit note,-5000.00
208932,20/07/2022,Scammell Commercial Limited,Waste Mgmt - Contract Hire,Credit note,-250.00
208933,20/07/2022,Sundry BACS,Dev't Control - Legal Fees,Legal fees,7827.60
208934,20/07/2022,PCG Projects,Air/Noise Pol - Equip Maint,Monitoring (Environmental) - Equip Maint,1860.39
208935,28/07/2022,Terberg Matec UK Ltd,Vehicle Maint - Other Mats,Vehicle Parts - Other Materials,901.63
208943,28/07/2022,AdEPT Telecom PLC T/A Centrix Ltd,Telephones - Telephones,Chairmans Expenses,2305.89
208946,28/07/2022,Barberry Industrial Limited,"MOOG, Tawkesbury Cap Pur Acq",Construction - Capital Purchase Acquisit,309648.24
208951,28/07/2022,AdEPT Telecom PLC T/A Centrix Ltd,Telephones - Telephones,Chairmans Expenses,2559.48
208952,28/07/2022,Civica UK Limited,Info Tech - Support Costs,ICT Maintenance/Support - Support Costs,3000.00
208953,28/07/2022,Vivid Resourcing Ltd,Env Protection - Consultants,Consultants - General,728.32
208954,28/07/2022,Braintree District Council,Economic Development - Subscriptions,Subscriptions,5000.00
208955,28/07/2022,Marlin Global Services Ltd - T/A Prokill,Canfield Offices - Pl Repairs,Pest & Animal Control - Planned Repairs,594.60
208956,28/07/2022,Marlin Global Services Ltd - T/A Prokill,Canfield Offices - Pl Repairs,Pest & Animal Control - Planned Repairs,1780.80
208957,28/07/2022,Locata (Housing Services) Ltd,Housing Servs - Fees,Housing (Misc) - Fees,5250.00
208959,28/07/2022,Contracts Support Services Ltd,Canfield Offices - Cleaning,Cleaning Service - Contract Cleaning,284.00
208963,28/07/2022,Affinity Water,Common Servs - Water,Corporate assets utilities ,23766.15
208964,28/07/2022,Sundry BACS,Hsg Rent Refunds Movements,Housing rent refunds,2058.48
208967,28/07/2022,Sundry BACS,Community Grt - Cap Grt P&E,Grant,1000.00
208968,28/07/2022,Sundry BACS,Community Grt - Cap Grt P&E,Grant,1000.00
208970,03/08/2022,Sundry BACS,Hsg Rent Refunds Movements,Housing rent refunds,13427.87
208971,28/07/2022,Newsquest Media Group Ltd,Dev't Control - Advertising,Advertising,302.02
208972,28/07/2022,Sellick Partnership Ltd,Legal Services - Agency Staff,Agency Staff (Professional),1019.97
208973,28/07/2022,Sellick Partnership Ltd,Legal Services - Fees,Legal Services - Fees,2055.00
208974,28/07/2022,Sellick Partnership Ltd,Legal Services - Legal Fees,Legal Services - Legal Fees,1375.00
208975,28/07/2022,Assoc. of Retained Council Hsing Limited,Housing Servs - Subscriptions,Subscriptions,2500.00
208980,28/07/2022,N&P Crayford MRF Ltd,Waste Mgmt - Mat Rec Fac,Waste Recycling - Materials Recycling,8565.35
208981,28/07/2022,N&P Crayford MRF Ltd,Waste Mgmt - Mat Rec Fac,Waste Recycling - Materials Recycling,30330.01
208982,17/08/2022,LCM Environmental Services Ltd,Vehicle Maint - Other Mats,Vehicle Parts - Other Materials,300.00
208983,28/07/2022,Newsquest Media Group Ltd,Economic Development - Advertising,Advertising,395.00
208984,28/07/2022,Newsquest Media Group Ltd,Dev't Control - Advertising,Advertising,553.39
208986,28/07/2022,Landmark Chambers,Legal Services - Fees,Legal Services - Fees,3600.00
208987,28/07/2022,Ex-Job Limited,Licensing - Other Mats,Signage - Other Materials,2910.65
208988,28/07/2022,Stansted Millers,NHB Ward Member - Grants,Grant,700.00
208990,28/07/2022,Good People Recycling Ltd,Grounds Mtce  - Agency Staff,Agency Staff (Professional),906.50
208991,28/07/2022,Good People Recycling Ltd,Waste Mgmt - Agency Staff,Agency Staff (Professional),13543.51
208992,28/07/2022,Central Tyre Limited,Vehicle Maint - Other Mats,Waste Management - Materials,1988.00
208995,28/07/2022,Berendsen UK Ltd,Vehicle Maint - Other Mats,Waste Management - Materials,350.58
208997,28/07/2022,Source 24/7 LTD,Waste Mgmt - Agency Staff,Agency Staff (Professional),1075.75
208998,10/08/2022,H B Commercial Ltd,Vehicle Maint - Other Mats,Credit note,-976.51
208999,10/08/2022,H B Commercial Ltd,Vehicle Maint - Other Mats,Credit note,-651.52
209005,28/07/2022,EE Ltd,GF Asset Mgt - Mobiles,Corporate assets mobiles,1066.62
209006,28/07/2022,EE Ltd,Animal Warden - Mobiles,Coprorate assets mobiles,3037.44
209007,28/07/2022,Sundry BACS,Debtors Control Refunds,Debtors refund ,2179.84
209010,28/07/2022,MSG Contracts Limited,Canfield Offices - Cleaning,Cleaning Service - Contract Cleaning,1352.80
209011,28/07/2022,Government Events,Economic Development - Seminars,Conferences - Seminars & Meetings,379.00
209016,28/07/2022,Littlebury Parish Council,Community Grt - Cap Grt P&E,Grants,1000.00
209017,28/07/2022,Sewards End Parish Council,Community Grt - Cap Grt P&E,Grants,700.00
209018,28/07/2022,Cornerstone Barristers,Legal Services - Legal Fees,Legal Services - Legal Fees,1500.00
209019,28/07/2022,NewAuto Ltd T/A Mogo,Licensing - Other Mats,Signage - Other Materials,4605.90
209022,28/07/2022,Sundry BACS,Dev't Control - Charges,Development control,382.50
209023,28/07/2022,The Oyster Partnership Ltd,Dev't Control - Agency Staff,Agency Staff (Professional),1882.19
209024,28/07/2022,The Oyster Partnership Ltd,Dev't Control - Agency Staff,Agency Staff (Professional),1768.60
209026,28/07/2022,Wilkin Chapman LLP,Legal Services - Fees,Legal Services - Fees,1500.00
209027,28/07/2022,Shine on Windows,New Depot Associated Capital Costs,Buildings Repair - Associated Cap Costs,290.00
209028,28/07/2022,Carrington West Ltd,Dev't Control - Agency Staff,Agency Staff (Professional),1739.00
209029,28/07/2022,Sundry BACS,Housing Servs - Compensation,Housing compensation,252.00
209032,28/07/2022,Ashe Construction Ltd,New Depot Associated Capital Costs,Buildings Repair - Associated Cap Costs,37370.40
209035,28/07/2022,Modicum Planning Ltd,Plan Policy - Grants,Non Charitable Grants,895.00
209036,28/07/2022,Sonovate Ltd,Plan Policy - Agency Staff,Agency Staff (Professional),1755.00
209037,28/07/2022,Vivid Resourcing Ltd,Env Protection - Consultants,Consultants - General,546.24
209038,10/08/2022,Sundry BACS,Plan Policy - Grants,Grants,890.00
209039,28/07/2022,Dennis Eagle Limited,Refuse Coll Veh - Cap Pur Veh,Capital Purchases - Vehicles,235180.00
209040,28/07/2022,Easy Mobility (East Anglian) Ltd,Dis Facil Grt - Cap Grt L&B,Grants - S106 Cap Grt L&B,3858.00
209041,28/07/2022,BT Payment Services Limited,Telephones - Telephones,Telecommunications - Telephones,2157.00
209042,28/07/2022,G2 Recruitment Solutions,Commercial Team - Agency Staff,Agency Staff (Professional),2168.00
209043,28/07/2022,G2 Recruitment Solutions,Commercial Team - Agency Staff,Agency Staff (Professional),1128.00
209044,28/07/2022,G2 Recruitment Solutions,Commercial Team - Agency Staff,Agency Staff (Professional),1136.00
209045,28/07/2022,The Oyster Partnership Ltd,Commercial Team - Agency Staff,Agency Staff (Professional),1677.00
209046,28/07/2022,The Oyster Partnership Ltd,Commercial Team - Agency Staff,Agency Staff (Professional),1655.50
209047,28/07/2022,The Oyster Partnership Ltd,Commercial Team - Agency Staff,Agency Staff (Professional),1634.00
209048,28/07/2022,The Oyster Partnership Ltd,Commercial Team - Agency Staff,Agency Staff (Professional),1200.00
209049,28/07/2022,The Oyster Partnership Ltd,Commercial Team - Agency Staff,Agency Staff (Professional),1675.00
209050,03/08/2022,1Life Management Solutions Ltd,Leisure & Adm - Seminars,Room Hire - Seminars & Meetings,25000.00
209051,03/08/2022,1Life Management Solutions Ltd,Leisure & Adm - Seminars,Room Hire - Seminars & Meetings,2500.00
209055,03/08/2022,Berden Parish Council,Community Grt - Cap Grt P&E,Grants,1000.00
209056,03/08/2022,Sundry BACS,Community Grt - Cap Grt P&E,Grants,700.00
209057,03/08/2022,Great Chesterford Parish Council,Community Grt - Cap Grt P&E,Grants,550.00
209058,03/08/2022,Aecom Infrastructure & Env UK Ltd,Plan Policy - Consultants,Consultants - General,9210.00
209059,03/08/2022,Vivid Resourcing Ltd,Env Protection - Consultants,Consultants - General,500.72
209061,03/08/2022,Shire Trees Limited,Grounds Mtce  - External Contracts,Tree Trimming - Grounds Maint,595.00
209062,03/08/2022,Shire Trees Limited,Grounds Mtce  - External Contracts,Tree Trimming - Grounds Maint,365.00
209065,28/07/2022,Structural Engineers Cambridge Ltd,S/W Offices - Pl Repairs,Buildings - Planned Repairs,345.00
209066,03/08/2022,Little Dunmow Parish Council,Community Grt - Cap Grt P&E,Grants,677.05
209067,17/08/2022,Specialist Bathrooms & Property Services,Dis Facil Grt - Cap Grt L&B,Grants - S106 Cap Grt L&B,4400.00
209068,28/07/2022,Essex County Council,Dev't Control - Consultants,Consultants - General,17780.00
209069,28/07/2022,Essex County Council,Dev't Control - Consultants,Consultants - General,8932.00
209070,28/07/2022,Knight (North & Midlands) Ltd,Stansted Airport - Consultants,Consultants - General,5880.00
209071,28/07/2022,Essex County Council,Dev't Control - Consultants,Consultants - General,530.07
209072,28/07/2022,Source 24/7 LTD,Waste Mgmt - Agency Staff,Agency Staff (Professional),1196.75
209074,03/08/2022,Contracts Support Services Ltd,Waste Mgmt - Agency Staff,Agency Staff (Professional),542.42
209076,03/08/2022,Dennis Eagle Limited,Vehicle Maint - Other Mats,Vehicle Parts - Other Materials,380.31
209079,10/08/2022,H B Commercial Ltd,Vehicle Maint - Other Mats,Waste Management - Materials,795.00
209081,10/08/2022,H B Commercial Ltd,Vehicle Maint - Other Mats,Waste Management - Materials,437.81
209084,03/08/2022,Dennis Eagle Limited,Vehicle Maint - Other Mats,Waste Management - Materials,1340.05
209086,03/08/2022,Dennis Eagle Limited,Vehicle Maint - Other Mats,Waste Management - Materials,320.83
209093,10/08/2022,H B Commercial Ltd,Vehicle Maint - Other Mats,Waste Management - Materials,500.00
209103,03/08/2022,Malins Associates Limited,Property Servs - Consultants,Consultants - General,4725.00
209105,03/08/2022,Pretlove's Removal & Storage Service Ltd,Walden Pl Shelt - Cap Wk L&B,Removal - Capital Wk L & B,350.00
209106,03/08/2022,Contract Sign Systems,New Depot Associated Capital Costs,General Sundries - Associated Capital Co,250.24
209109,03/08/2022,Sellick Partnership Ltd,Legal Services - Agency Staff,Agency Staff (Professional),959.26
209110,03/08/2022,Sellick Partnership Ltd,Legal Services - Fees,Legal Services - Fees,2130.00
209113,03/08/2022,Chelmsford Safety Supplies,Waste Mgmt - Clothing,Protective Clothing - Clothing & Uniform,1589.60
209115,03/08/2022,Chelmsford Safety Supplies,Waste Mgmt - Clothing,Protective Clothing - Clothing & Uniform,923.80
209116,03/08/2022,Newline Anglia Ltd,Waste Mgmt - Clothing,Protective Clothing - Clothing & Uniform,728.26
209117,03/08/2022,Sellick Partnership Ltd,Legal Services - Legal Fees,Legal Services - Legal Fees,1375.00
209119,03/08/2022,Driver Hire Chelmsford,Waste Mgmt - Agency Staff,Agency Staff (Professional),627.15
209120,03/08/2022,Cornerstone Barristers,Legal Services - Fees,Legal Services - Fees,2250.00
209122,03/08/2022,Ashdon Parish Council,Community Grt - Cap Grt P&E,Grants,994.00
209124,03/08/2022,Vivid Resourcing Ltd,Env Protection - Consultants,Consultants - General,591.76
209125,03/08/2022,Good People Recycling Ltd,Grounds Mtce  - Agency Staff,Agency Staff (Professional),906.50
209126,03/08/2022,Good People Recycling Ltd,Waste Mgmt - Agency Staff,Agency Staff (Professional),14594.00
209127,03/08/2022,Driver Hire Chelmsford,Waste Mgmt - Agency Staff,Agency Staff (Professional),470.36
209128,03/08/2022,MHR International UK Ltd,Info Tech - Support Costs,ICT Maintenance/Support - Support Costs,300.00
209129,03/08/2022,Sundry BACS,Community Grt - Cap Grt P&E,Grants,3500.00
209130,03/08/2022,AdEPT Telecom PLC T/A Centrix Ltd,Telephones - Telephones,Telecommunications - Telephones,2526.65
209135,03/08/2022,Tradition (UK) Ltd,Treasury Man - Fees,Financial Services - Borrowing Fees,4986.30
209136,03/08/2022,Imperial Treasury Services Ltd,Treasury Man - Fees,Financial Services - Borrowing Fees,10290.41
209138,10/08/2022,Hadstock Parish Council,Community Grt - Cap Grt P&E,Grants,720.00
209139,03/08/2022,Aquajet Cleaning Equipment Ltd,Waste Mgmt - Other Mats,Waste Management - Materials,355.12
209141,03/08/2022,Computershare Voucher Services,Human Resource - Emp'ee Scheme,Human Resources - Emp'ee Scheme,297.08
209142,03/08/2022,Sundry BACS,Section 106 Other Bodies - Rcpt in yr,Section 106,5767.06
209144,03/08/2022,Sundry BACS,Walden Pl Shelt - Cap Wk L&B,Grants,5990.94
209145,17/08/2022,Contracts Support Services Ltd,Waste Mgmt - Agency Staff,Agency Staff (Professional),745.83
209146,03/08/2022,Dunmow Skips Ltd,Street Clnsing - Disposal Chg,Waste Recycling - Disposal Charge,464.10
209147,03/08/2022,Source 24/7 LTD,Waste Mgmt - Agency Staff,Agency Staff (Professional),2508.00
209148,03/08/2022,Planit Consulting,Dev Ctrl Appls - Consultants,Consultants - General,10076.00
209149,03/08/2022,Planit Consulting,Dev Ctrl Appls - Consultants,Consultants - General,1136.00
209150,03/08/2022,Essex County Council,Dev Ctrl Appls - Consultants,Consultants - General,533.51
209151,03/08/2022,Carrington West Ltd,Dev't Control - Agency Staff,Agency Staff (Professional),1739.00
209153,03/08/2022,Kelly Rowland,Health Imp - Seminars,Room Hire - Seminars & Meetings,840.00
209156,03/08/2022,GoTo Technologies UK Limited,Info Tech - Support Costs,ICT Maintenance/Support - Support Costs,1964.52
209157,03/08/2022,Buildtech Heritage of Essex Ltd,Dangerous Str  - Contractors,Works Consultancy - Contractors,27784.00
209158,10/08/2022,The Oyster Partnership Ltd,Dev't Control - Agency Staff,Agency Staff (Professional),1792.50
209159,10/08/2022,The Oyster Partnership Ltd,Dev't Control - Agency Staff,Agency Staff (Professional),2405.00
209161,10/08/2022,Treecology,Grounds Mtce  - External Contracts,Tree Trimming - Grounds Maint,400.00
209162,10/08/2022,Ashdon Parish Council,NHB Ward Member - Grants,Grants,448.00
209164,10/08/2022,Saffron Walden Town Council,Youth grant - Grants,Grants,2490.00
209166,10/08/2022,Castle Water Limited,Common Servs - Water,Corporate assets utilities ,495.03
209167,10/08/2022,Sundry BACS,Youth grant - Grants,Grants,1600.00
209168,10/08/2022,Stansted Mountfitchet Parish Council,Community Grt - Cap Grt P&E,Grants,3500.00
209169,10/08/2022,The Monarch Partnership,Climate Change - Consultants,Consultants - General,360.00
209170,10/08/2022,Direct Displays Ltd,Dis Facil Grt - Cap Grt L&B,Grants - S106 Cap Grt L&B,2588.35
209172,10/08/2022,SGS (formally Concept Life Sciences),Border Inspect - Oth Prof Fees,Forensic & Lab Testing - Oth Prof Fees,1951.36
209173,10/08/2022,OnLiTech Limited,Info Tech - Equipment,ICT Consumables - Equipment,625.00
209174,10/08/2022,Chelmsford City Council,Dis Facil Grt - Cap Grt L&B,Capital Grant - Land & Buildings,75000.00
209175,10/08/2022,Newsquest Media Group Ltd,Dev't Control - Advertising,Advertising,662.82
209176,10/08/2022,Newsquest Media Group Ltd,Dev't Control - Advertising,Advertising,361.18
209179,10/08/2022,Skyline Hotel,Homelessness - Accommodation,Homelessness - Accommodation,1134.00
209180,10/08/2022,Skyline Hotel,Homelessness - Accommodation,Homelessness - Accommodation,1215.00
209181,10/08/2022,Skyline Hotel,Homelessness - Accommodation,Homelessness - Accommodation,283.50
209182,10/08/2022,Linteum (Uttlesford) Ltd,PFI Financing LTL -Repaid,Leisure Services - LTL - Repaid,13910.58
209182,10/08/2022,Linteum (Uttlesford) Ltd,Int & Invest - Interest Pay,Leisure Services - Interest Payable,28968.50
209182,10/08/2022,Linteum (Uttlesford) Ltd,PFI - PFI Unitary,Leisure Services -PFI Unitary Charge,55510.64
209183,10/08/2022,The Association of Building Engineers,Bldg Surveying - Subscriptions,Building subs ,310.00
209185,10/08/2022,Cushman & Wakefield Debenham Tie Leung L,"MOOG, Tawkesbury Cap Pur Acq",Construction - Capital Purchase Acquisit,3950.00
209186,10/08/2022,Uttlesford Norse Ltd.,Norse Partnership Hsg Rep - Fees,Partnerships - Fees,38199.15
209187,10/08/2022,Uttlesford Norse Ltd.,Norse Partnership Admin - Fees,Partnerships - Fees,30237.19
209187,10/08/2022,Uttlesford Norse Ltd.,Norse Partnership Hsg Rep - Fees,Partnerships - Fees,48880.02
209188,10/08/2022,Uttlesford Norse Ltd.,Norse Partnership Estates - Fees,Partnerships - Fees,17284.30
209188,10/08/2022,Uttlesford Norse Ltd.,Norse Partnership Hsg Rep - Fees,Partnerships - Fees,159691.90
209188,10/08/2022,Uttlesford Norse Ltd.,Norse Partnership Sheltered - Fees,Partnerships - Fees,9781.66
209188,10/08/2022,Uttlesford Norse Ltd.,Norse Partnership Sewerage - Fees,Partnerships - Fees,4179.27
209189,10/08/2022,Uttlesford Norse Ltd.,Voids Prog - Cap Rep L&B,Buildings Repair/Maint - Cap Rep L&B,52450.00
209190,10/08/2022,Uttlesford Norse Ltd.,Norse Partnership Asset Mgt - Fees,Partnerships - Fees,14136.44
209190,10/08/2022,Uttlesford Norse Ltd.,Norse Partnership Cleaning - Fees,Partnerships - Fees,18996.10
209191,10/08/2022,Wybone Ltd,Street Clnsing - Other Mats,Waste Management - Materials,1799.88
209192,10/08/2022,Sonovate Ltd,Plan Policy - Agency Staff,Agency Staff (Professional),2047.50
209195,10/08/2022,Dunmow Skips Ltd,Street Clnsing - Disposal Chg,Waste Recycling - Disposal Charge,378.58
209197,10/08/2022,H B Commercial Ltd,Vehicle Maint - Other Mats,Waste Management - Materials,1518.99
209201,10/08/2022,Lindstrom Ltd,Vehicle Maint - Other Mats,Waste Management - Materials,416.99
209202,10/08/2022,Safetykleen UK Ltd,Vehicle Maint - Other Mats,Waste Management - Materials,505.99
209204,10/08/2022,AGO Compliance LTD,New Depot Associated Capital Costs,Buildings Repair - Associated Cap Costs,4446.40
209205,10/08/2022,Solace in Business Ltd,Dir Pub Servs - Agency Staff,Agency Staff (Professional),22814.00
209206,10/08/2022,Vehicle Weighing Solutions Ltd,Vehicle Maint - Other Mats,Vehicle Parts - Other Materials,986.00
209211,10/08/2022,MSG Contracts Limited,Canfield Offices - Cleaning,Cleaning Service - Contract Cleaning,526.40
209212,10/08/2022,MSG Contracts Limited,Canfield Offices - Cleaning,Cleaning Service - Contract Cleaning,300.80
209213,10/08/2022,MSG Contracts Limited,Canfield Offices - Cleaning,Cleaning Service - Contract Cleaning,526.40
209214,10/08/2022,Inform CPI Ltd,Revenues Admin Emergency Response Supplies,Covid 19 - Emergency Response Supplies,290.00
209215,10/08/2022,Castle Water Limited,Thaxted CIC - Water,Corporate assets utilities ,3773.84
209218,17/08/2022,Stansted Mountfitchet Parish Council,Section 106 Other Bodies - Rcpt in yr,Section 106,18250.00
209223,10/08/2022,Malthouse Security Ltd,Sheltered Hsg - Equip Maint,Health Care Equipment - Maintenance,292.96
209224,10/08/2022,Essex County Council,Specialists - Conservation - Consultants,Consultants - General,11209.65
209225,10/08/2022,Cartridge Save Ltd,Border Inspect - Equipment,Tools/Equipment (Purchase) - Equipment,330.99
209226,10/08/2022,Goss Interactive Ltd,Info Tech - Support Costs,ICT Maintenance/Support - Support Costs,14340.00
209227,10/08/2022,Goss Interactive Ltd,Info Tech - Support Costs,ICT Maintenance/Support - Support Costs,3720.00
209228,10/08/2022,Goss Interactive Ltd,Info Tech - Support Costs,ICT Maintenance/Support - Support Costs,588.00
209229,10/08/2022,Goss Interactive Ltd,Info Tech - Support Costs,ICT Maintenance/Support - Support Costs,1700.00
209232,10/08/2022,The Planning Officers Society,Dev't Control - Subscriptions,Subscriptions,250.00
209233,10/08/2022,Patricia Ackron,Health Imp - Seminars,Room Hire - Seminars & Meetings,625.00
209234,10/08/2022,TouchPoint,Health Imp - Seminars,Room Hire - Seminars & Meetings,300.00
209236,10/08/2022,Print Image Facilities LLP,Electoral Reg - Printing,Printing,3363.97
209237,10/08/2022,Print Image Facilities LLP,Electoral Reg - Postage,Postage,7817.36
209238,10/08/2022,Print Image Network Limited,Parish & NPR Elections - Printing,Printing,1241.00
209240,10/08/2022,Castle Water Limited,Thaxted CIC - Water,Corporate assets utilities ,3676.86
209241,10/08/2022,Affinity Water,Common Servs - Water,Corporate assets utilities ,1249.23
209242,10/08/2022,Penna PLC,Financial Srvs - Agency Staff,Agency Staff (Professional),10980.00
209243,10/08/2022,Penna PLC,Financial Srvs - Agency Staff,Agency Staff (Professional),549.00
209244,10/08/2022,Cambridge University Hospitals NHS FT,Benefits Admin - Medic Other,Assessment - Medical Other,760.00
209246,10/08/2022,E-ON NEXT,Temp Accom - Gas,Corporate assets utilities ,710.01
209247,10/08/2022,The Oyster Partnership Ltd,Dev't Control - Agency Staff,Agency Staff (Professional),1882.19
209248,10/08/2022,The Oyster Partnership Ltd,Dev't Control - Agency Staff,Agency Staff (Professional),1792.50
209251,10/08/2022,Vivid Resourcing Ltd,Env Protection - Consultants,Consultants - General,455.20
209252,10/08/2022,Hays Specialist Recruitment Ltd,Financial Srvs - Agency Staff,Agency Staff (Professional),1930.50
209253,24/08/2022,LCM Environmental Services Ltd,Waste Mgmt - Other Mats,Waste Management - Materials,1500.00
209254,10/08/2022,CBRE LTD,Commercial Asset Mgt - Consultants,Consultants - General,7500.00
209255,10/08/2022,Sundry BACS,Alexia House - Cap Wk L&B,Grant,2500.00
209256,10/08/2022,Drivercheck Ltd,Licensing - Other Mats,Signage - Other Materials,848.00
209258,10/08/2022,Police & Crime Commissioner for Essex,Comm Safety - Seminars,Conferences - Seminars & Meetings,375.00
209259,10/08/2022,Carrington West Ltd,Dev't Control - Agency Staff,Agency Staff (Professional),1739.00
209260,10/08/2022,Rossi Long Consulting Ltd,Walden Pl Shelt - Cap Wk L&B,Consultancy (Prop Works)- Cap Wk L&B,3000.00
209261,10/08/2022,M&B Printers Ltd,Housing Servs - Stationery,Stationery,1098.00
209265,10/08/2022,Civica UK Limited,PCI Compliance - Cap Chg IT,ICT Hardware - Cap Chg IT,14700.00
209266,10/08/2022,Civica UK Limited,PCI Compliance - Cap Chg IT,ICT Hardware - Cap Chg IT,1405.00
209268,10/08/2022,Newline Anglia Ltd,Waste Mgmt - Clothing,Protective Clothing - Clothing & Uniform,379.00
209271,10/08/2022,Newline Anglia Ltd,Waste Mgmt - Clothing,Protective Clothing - Clothing & Uniform,310.00
209273,10/08/2022,Sonovate Ltd,Plan Policy - Agency Staff,Agency Staff (Professional),698.75
209274,10/08/2022,Newsquest Media Group Ltd,Dev't Control - Advertising,Advertising,363.20
209275,10/08/2022,Newsquest Media Group Ltd,Dev't Control - Advertising,Advertising,321.74
209276,10/08/2022,POS Enterprises Ltd,Plan Policy - Prof Subs,Professional Subscriptions,1050.00
209277,10/08/2022,Elliot Baxter & Co Ltd T/A EBB OFFICE,Print Room - Stationery,Stationery,731.00
209278,10/08/2022,Stansted Link,Bldg Surveying - Advertising,Advertising,255.00
209279,10/08/2022,Barberry Industrial Limited,"MOOG, Tawkesbury Cap Pur Acq",Construction - Capital Purchase Acquisit,416375.37
209282,10/08/2022,H B Commercial Ltd,Vehicle Maint - Other Mats,Waste Management - Materials,288.00
209284,10/08/2022,Colchester Sheds and Fencing,Walden Pl Shelt - Cap Wk L&B,Buildings Repairs/Maint - Cap Wk L&B,983.33
209285,10/08/2022,Good People Recycling Ltd,Grounds Mtce  - Agency Staff,Agency Staff (Professional),906.50
209286,10/08/2022,Good People Recycling Ltd,Waste Mgmt - Agency Staff,Agency Staff (Professional),14678.26
209287,10/08/2022,J D Robertson & Co Limited,Waste Mgmt - Contract Hire,Vehicle Hire,934.65
209289,10/08/2022,Dennis Eagle Limited,Vehicle Maint - Other Mats,Waste Management - Materials,853.74
209291,21/09/2022,Bytes Software Services,ICT - New Sites - Cap Pur IT,Capital Purchases - IT,11812.50
209293,10/08/2022,Central Tyre Limited,Vehicle Maint - Other Mats,Waste Management - Materials,2895.96
209294,10/08/2022,Contracts Support Services Ltd,Waste Mgmt - Agency Staff,Agency Staff (Professional),637.71
209295,10/08/2022,General Business Holdings Ltd,Waste Mgmt - Disposal Chg,Waste Disposal - Disposal Charge,3612.25
209297,10/08/2022,Source 24/7 LTD,Waste Mgmt - Agency Staff,Agency Staff (Professional),1837.00
209299,10/08/2022,Driver Hire Chelmsford,Waste Mgmt - Agency Staff,Agency Staff (Professional),470.36
209300,10/08/2022,Riverside Truck Rental Ltd,Waste Mgmt - Contract Hire,Vehicle Hire,5250.00
209301,10/08/2022,Carmaggeddon Salvage Ltd,Env Protection - Oth Prof Fees,Abandoned Vehicles - Other Prof Fees,909.00
209302,10/08/2022,Carmaggeddon Salvage Ltd,Env Protection - Oth Prof Fees,Abandoned Vehicles - Other Prof Fees,305.00
209303,10/08/2022,Source 24/7 LTD,Waste Mgmt - Agency Staff,Agency Staff (Professional),1243.00
209305,10/08/2022,Dennis Eagle Limited,Vehicle Maint - Other Mats,Waste Management - Materials,251.37
209309,17/08/2022,Canon (UK) Limited,Print Room - Photocopier,Reprographics - Photocopier,360.00
209310,17/08/2022,Nominet UK,Info Tech - Support Costs,ICT Maintenance/Support - Support Costs,1009.61
209311,17/08/2022,Hall Mark Meat Hygiene Limited,Border Inspect - Oth Prof Fees,Veterinary Services - Other Prof Fees,5925.00
209312,17/08/2022,Essex County Council,Land Charges - Fees,Land Search Fees,700.00
209318,17/08/2022,Hays Specialist Recruitment Ltd,Financial Srvs - Agency Staff,Agency Staff (Professional),1930.50
209322,17/08/2022,Arthur J Gallagher Insurance Brokers Ltd,Commercial Asset Mgt - Fees,Partnerships - Fees,3510.76
209325,17/08/2022,Land Use Consultants Limited,Plan Policy - Consultants,Consultants - General,14012.00
209326,17/08/2022,Sellick Partnership Ltd,Legal Services - Agency Staff,Agency Staff (Professional),1007.83
209327,17/08/2022,Sellick Partnership Ltd,Legal Services - Agency Staff,Agency Staff (Professional),983.54
209328,17/08/2022,Sellick Partnership Ltd,Legal Services - Fees,Legal Services - Fees,2095.20
209329,17/08/2022,Sellick Partnership Ltd,Legal Services - Fees,Legal Services - Fees,1915.20
209330,17/08/2022,Sellick Partnership Ltd,Legal Services - Legal Fees,Legal Services - Legal Fees,1375.00
209331,17/08/2022,Sellick Partnership Ltd,Legal Services - Legal Fees,Legal Services - Legal Fees,1375.00
209332,17/08/2022,Hays Specialist Recruitment Ltd,Financial Srvs - Agency Staff,Agency Staff (Professional),643.50
209333,17/08/2022,Newsquest Media Group Ltd,Dev't Control - Advertising,Advertising,440.06
209334,17/08/2022,Newsquest Media Group Ltd,Dev't Control - Advertising,Advertising,808.74
209335,17/08/2022,NEC Software Solutions UK Ltd,Benefits Admin - Support Costs,ICT Maintenance/Support - Support Costs,6600.00
209336,17/08/2022,Wilkin Chapman LLP,Legal Services - Fees,Legal Services - Fees,1926.00
209338,17/08/2022,Tony Burton Consulting Ltd,Plan Policy - Grants,Grants,5304.90
209340,17/08/2022,G2 Recruitment Solutions,Commercial Team - Agency Staff,Agency Staff (Professional),560.00
209342,17/08/2022,The Oyster Partnership Ltd,Commercial Team - Agency Staff,Agency Staff (Professional),1634.00
209343,17/08/2022,The Oyster Partnership Ltd,Commercial Team - Agency Staff,Agency Staff (Professional),1634.00
209344,17/08/2022,The Oyster Partnership Ltd,Commercial Team - Agency Staff,Agency Staff (Professional),775.00
209345,17/08/2022,IDOX Software Limited,Info Tech - Support Costs,ICT Maintenance/Support - Support Costs,793.18
209347,17/08/2022,Police & Crime Commissioner for Essex,Community Support Officers - Oth Loc Auth,Staff (Professional) - Other Loc Aut,10415.25
209348,17/08/2022,Police & Crime Commissioner for Essex,Community Support Officers - Oth Loc Auth,Staff (Professional) - Other Loc Aut,10415.25
209349,17/08/2022,Legal Surveyors UK Limited,Legal Services - Legal Fees,Legal Services - Legal Fees,387.50
209354,17/08/2022,Buckingham Futures Ltd,Commercial Team - Agency Staff,Agency Staff (Professional),1686.25
209355,17/08/2022,Buckingham Futures Ltd,Commercial Team - Agency Staff,Agency Staff (Professional),1425.00
209356,17/08/2022,Buckingham Futures Ltd,Commercial Team - Agency Staff,Agency Staff (Professional),475.00
209359,17/08/2022,Driver Hire Chelmsford,Waste Mgmt - Agency Staff,Agency Staff (Professional),470.36
209360,17/08/2022,HB Editorial Services Ltd,Legal Services - Advertising,Recruitment - Advertising,1285.00
209361,17/08/2022,PC Building Services,Walden Pl Shelt - Cap Wk L&B,Buildings Repairs/Maint - Cap Wk L&B,1300.00
209362,17/08/2022,LGcomms,Communications - Subscriptions,Subscriptions,250.00
209363,17/08/2022,NewAuto Ltd T/A Mogo,Licensing - Other Mats,Signage - Other Materials,4605.90
209364,17/08/2022,De Salis Hotel,Homelessness - Accommodation,Homelessness - Accommodation,8486.67
209365,17/08/2022,Oak Housing Group Limited,Homelessness - Emerg Supply,Homelessness - Emergency Supplies,1750.00
209366,17/08/2022,Royal Mail Group Ltd,Parish & NPR Elections - Postage,Postage,768.02
209367,17/08/2022,Good People Recycling Ltd,Grounds Mtce  - Agency Staff,Agency Staff (Professional),906.50
209368,17/08/2022,Good People Recycling Ltd,Waste Mgmt - Agency Staff,Agency Staff (Professional),12859.38
209369,17/08/2022,The Oyster Partnership Ltd,Dev't Control - Agency Staff,Agency Staff (Professional),1792.50
209370,17/08/2022,Newline Anglia Ltd,Waste Mgmt - Clothing,Protective Clothing - Clothing & Uniform,382.80
209371,17/08/2022,Newline Anglia Ltd,Waste Mgmt - Clothing,Protective Clothing - Clothing & Uniform,284.90
209373,17/08/2022,Malins Associates Limited,Property Servs - Consultants,Consultants - General,3780.00
209374,17/08/2022,Waitrose Ltd,CP Fairycroft - Reimbursement,Carpark reimbursement,17921.63
209375,17/08/2022,Total Gas & Power Limited,Thaxted CIC - Gas,Corporate assets utilities ,6384.14
209377,17/08/2022,Affinity Water,Rates & Prop - Water,Corporate assets utilities ,1026.28
209378,17/08/2022,Cornerstone Barristers,Dev Ctrl Appls - Legal Fees,Legal Services - Legal Fees,68249.00
209379,17/08/2022,Cornerstone Barristers,Dev Ctrl Appls - Legal Fees,Legal Services - Legal Fees,21004.00
209380,17/08/2022,Lifetime Adaptions & Design Solutions Lt,Dis Facil Grt - Cap Grt L&B,Grants - S106 Cap Grt L&B,2060.00
209381,17/08/2022,Saunders Boston Ltd,Property Servs Business Plan,Housing Dev - Business Plan,14696.80
209382,17/08/2022,Adrian James Acoustics Ltd,Property Servs Business Plan,Housing Dev - Business Plan,315.00
209383,17/08/2022,Sundry BACS,Dev Ctrl Appls - Legal Fees,Development control - legal,8118.06
209385,17/08/2022,Oasis Hotel Harlow Limited,Homelessness - Accommodation,Homelessness - Accommodation,1046.25
209387,17/08/2022,Oasis Hotel Harlow Limited,Homelessness - Accommodation,Homelessness - Accommodation,1012.50
209388,17/08/2022,Oasis Hotel Harlow Limited,Homelessness - Accommodation,Homelessness - Accommodation,1046.25
209389,17/08/2022,Oasis Hotel Harlow Limited,Homelessness - Accommodation,Homelessness - Accommodation,1147.50
209390,17/08/2022,Oasis Hotel Harlow Limited,Homelessness - Accommodation,Homelessness - Accommodation,1157.14
209391,17/08/2022,Vivid Resourcing Ltd,Env Protection - Consultants,Consultants - General,637.28
209392,17/08/2022,Hays Specialist Recruitment Ltd,Financial Srvs - Interview Exp,Recruitment - Interview,12886.68
209393,17/08/2022,Hays Specialist Recruitment Ltd,Financial Srvs - Agency Staff,Agency Staff (Professional),643.50
209394,17/08/2022,Hays Specialist Recruitment Ltd,Financial Srvs - Agency Staff,Agency Staff (Professional),1287.00
209395,17/08/2022,Reactec Ltd,Grounds Mtce  - Clothing,Protective Clothing - Clothing & Uniform,1287.45
209397,17/08/2022,Newsquest Media Group Ltd,Economic Development - Advertising,Advertising,589.86
209399,24/08/2022,The Oyster Partnership Ltd,Dev't Control - Agency Staff,Agency Staff (Professional),1882.19
209400,24/08/2022,The Oyster Partnership Ltd,Dev't Control - Agency Staff,Agency Staff (Professional),1882.19
209402,24/08/2022,Contracts Support Services Ltd,Waste Mgmt - Agency Staff,Agency Staff (Professional),945.57
209403,24/08/2022,Source 24/7 LTD,Waste Mgmt - Agency Staff,Agency Staff (Professional),1463.00
209404,24/08/2022,Premier Paper Group Ltd,Print Room - Stationery,Stationery,258.92
209406,24/08/2022,Newsquest Media Group Ltd,Dev't Control - Advertising,Advertising,662.82
209407,24/08/2022,Newsquest Media Group Ltd,Dev't Control - Advertising,Advertising,361.18
209408,24/08/2022,M&B Printers Ltd,Print Room - Stationery,Stationery,533.00
209409,24/08/2022,Newsquest Media Group Ltd,Dev't Control - Advertising,Advertising,427.70
209414,24/08/2022,Sellick Partnership Ltd,Legal Services - Agency Staff,Agency Staff (Professional),1019.97
209415,24/08/2022,East of England Local Government Associa,Waste Mgmt - Consultants,Consultants - General,4055.00
209416,24/08/2022,Dennis Eagle Limited,Vehicle Maint - Other Mats,Waste Management - Materials,1111.60
209418,24/08/2022,Dunmow Skips Ltd,Street Clnsing - Disposal Chg,Waste Recycling - Disposal Charge,968.45
209419,24/08/2022,Motex Automotive,Vehicle Maint - Other Mats,Waste Management - Materials,264.96
209432,24/08/2022,Bartec Municipal Technologies Limited,Waste Mgmt - Subscriptions,Subscriptions,10290.00
209434,24/08/2022,WFL (UK) Ltd,Waste Mgmt - Diesel,Vehicle Fuel - Diesel,42121.40
209435,24/08/2022,British Heart Foundation,Waste Mgmt - Processing Fees,Waste Recycling - Fees,261.91
209436,24/08/2022,Dennis Eagle Limited,Waste Mgmt - Veh Licence,Vehicle Licences,366.00
209437,24/08/2022,Dennis Eagle Limited,Green Waste - Veh Licence,Vehicle Licences,651.00
209438,24/08/2022,Volunteer Centre Uttlesford,NHB Ward Member - Grants,Grants,250.00
209440,24/08/2022,Sundry BACS,Community Grt - Cap Grt P&E,Grants,845.00
209441,24/08/2022,Sellick Partnership Ltd,Legal Services - Fees,Legal Services - Fees,1755.00
209442,24/08/2022,AdEPT Telecom PLC T/A Centrix Ltd,Telephones - Telephones,Chairmans Expenses,2249.67
209443,24/08/2022,AdEPT Telecom PLC T/A Centrix Ltd,Telephones - Telephones,Chairmans Expenses,2560.60
209444,24/08/2022,Duncan Cameron & Hutchinson Ltd,Thaxted Road - Cap Wk L&B,Sheltered Housing (Cap L&B),155983.57
209445,24/08/2022,Duncan Cameron & Hutchinson Ltd,Great Chesterford - Cap Wk L&B,Consultancy (Prop Works)- Cap Wk L&B,146949.28
209446,24/08/2022,Chelmsford Safety Supplies,Waste Mgmt - Clothing,Protective Clothing - Clothing & Uniform,1218.60
209449,24/08/2022,Carrington West Ltd,Dev't Control - Agency Staff,Agency Staff (Professional),1739.00
209451,24/08/2022,WFL (UK) Ltd,Waste Mgmt - Diesel,Vehicle Fuel - Diesel,38741.10
209452,24/08/2022,Vehicle Weighing Solutions Ltd,Vehicle Maint - Other Mats,Vehicle Parts - Other Materials,551.68
209453,24/08/2022,Vehicle Weighing Solutions Ltd,Vehicle Maint - Other Mats,Vehicle Parts - Other Materials,777.62
209454,24/08/2022,Vehicle Weighing Solutions Ltd,Vehicle Maint - Other Mats,Vehicle Parts - Other Materials,323.00
209455,24/08/2022,Fairport Containers Ltd,Trade Bin Rep - Cap Pur P&E,Capital Purchases - Plant & Equipment,259.00
209456,24/08/2022,Net-Com (92) Limited,ICT - New Sites - Cap Pur IT,ICT Hardware - Cap Pur IT,3750.00
209458,24/08/2022,Shire Trees Limited,Grounds Mtce  - External Contracts,Tree Trimming - Grounds Maint,320.00
209459,24/08/2022,Richard Utting Associates LLP,Property Servs Business Plan,Housing Dev - Business Plan,1600.00
209460,24/08/2022,Saunders Boston Ltd,Property Servs Business Plan,Housing Dev - Business Plan,4250.00
209462,24/08/2022,Daisy Corporate Services Trading Limited,Telephones - Telephones,Telecommunications - Telephones,1437.51
209463,24/08/2022,British Heart Foundation,Waste Mgmt - Processing Fees,Waste Recycling - Fees,304.49
209464,24/08/2022,British Heart Foundation,Waste Mgmt - Processing Fees,Waste Recycling - Fees,259.24
209465,24/08/2022,British Heart Foundation,Waste Mgmt - Processing Fees,Waste Recycling - Fees,322.99
209466,24/08/2022,Victoria Solutions Limited,Revenues Admin Emergency Response Supplies,Covid 19 - Emergency Response Supplies,2435.00
209467,24/08/2022,Print Image Network Limited,Parish & NPR Elections - Printing,Printing,1062.00
209469,24/08/2022,Vivid Resourcing Ltd,Env Protection - Consultants,Consultants - General,455.20
209474,24/08/2022,EE Ltd,GF Asset Mgt - Mobiles,Corporate utilities mobiles,3144.12
209475,24/08/2022,EE Ltd,GF Asset Mgt - Mobiles,Corporate utilities mobiles,1144.43
209476,24/08/2022,The Oyster Partnership Ltd,Dev't Control - Agency Staff,Agency Staff (Professional),1882.19
209477,24/08/2022,The Oyster Partnership Ltd,Dev't Control - Agency Staff,Agency Staff (Professional),1625.20
209478,24/08/2022,Eversheds Sutherland (International) LLP,Dev't Control - Consultants,Consultants - General,7188.00
209479,24/08/2022,ESE World Limited,Containers - Cap Pur P&E,Capital Purchases - Plant & Equipment,8350.71
209480,24/08/2022,Colchester Borough Council,CP Overheads - Fees,Partnerships - Fees,88600.00
209482,07/09/2022,NEC Software Solutions UK Ltd,Info Tech - Support Costs,ICT Maintenance/Support - Support Costs,2155.00
209486,24/08/2022,Wilkin Chapman LLP,Legal Services - Legal Fees,Legal Services - Legal Fees,1012.50
209487,24/08/2022,Wilkin Chapman LLP,Legal Services - Legal Fees,Legal Services - Legal Fees,791.00
209488,24/08/2022,CIPFA,Financial Srvs - Prof Training,Training,830.00
209490,24/08/2022,Specialist Bathrooms & Property Services,Dis Facil Grt - Cap Grt L&B,Grants,4400.00
209491,24/08/2022,Specialist Bathrooms & Property Services,Dis Facil Grt - Cap Grt L&B,Credit note,-4400.00
209495,24/08/2022,Good People Recycling Ltd,Grounds Mtce  - Agency Staff,Agency Staff (Professional),906.50
209496,24/08/2022,Good People Recycling Ltd,Waste Mgmt - Agency Staff,Agency Staff (Professional),11722.25
209497,24/08/2022,Cornerstone Barristers,Plan Policy - Legal Fees,Legal Services - Legal Fees,4900.00
209503,24/08/2022,Carrington West Ltd,Dev't Control - Agency Staff,Agency Staff (Professional),1739.00
209506,24/08/2022,Aecom Infrastructure & Env UK Ltd,Plan Policy - Consultants,Consultants - General,6816.25
209509,24/08/2022,DNU Northumbrian Water Limited,Env Protection - Oth Prof Fees,Forensic & Lab Testing - Oth Prof Fees,260.97
209510,24/08/2022,MSG Contracts Limited,Canfield Offices - Cleaning,Cleaning Service - Contract Cleaning,1542.67
209511,24/08/2022,MSG Contracts Limited,Canfield Offices - Cleaning,Cleaning Service - Contract Cleaning,1542.67
209512,24/08/2022,Encore Envelopes Ltd,Print Room - Stationery,Stationery,693.00
209513,24/08/2022,Tullett Prebon Group Ltd,Treasury Man - Fees,Financial Services - Borrowing Fees,373.98
209514,24/08/2022,Print Image Facilities LLP,Parish & NPR Elections - Postage,Postage,5311.78
209516,24/08/2022,Print Image Network Limited,Parish & NPR Elections - Printing,Printing,1796.00
209520,24/08/2022,Hays Specialist Recruitment Ltd,Financial Srvs - Agency Staff,Agency Staff (Professional),1287.00
209521,31/08/2022,Driver Hire Chelmsford,Waste Mgmt - Agency Staff,Agency Staff (Professional),313.58
209522,24/08/2022,Rodings Friendship Club,NHB Ward Member - Grants,Grants,500.00
209523,31/08/2022,Bond Solon Training Ltd,Human Resource - Prof Training,Training,570.00
209525,31/08/2022,Ashe Construction Ltd,New Depot Associated Capital Costs,Buildings Repair - Associated Cap Costs,3872.21
209526,31/08/2022,Print Image Network Limited,Parish & NPR Elections - Printing,Printing,1058.00
209527,31/08/2022,Association of Electoral Administrators,Electoral Reg - Seminars,Conferences - Seminars & Meetings,300.00
209528,31/08/2022,CIPFA Business Ltd,Financial Srvs - Subscriptions,Subscriptions,3860.00
209529,31/08/2022,NEC Software Solutions UK Ltd,Info Tech - Support Costs,ICT Maintenance/Support - Support Costs,9000.00
209530,24/08/2022,Epping Forest District Council,Economic Development - Subscriptions,Subscriptions,10000.00
209531,31/08/2022,ActionBrook Services Ltd,New Depot Associated Capital Costs,Buildings Repair - Associated Cap Costs,15665.00
209534,31/08/2022,Dennis Eagle Limited,Vehicle Maint - Other Mats,Waste Management - Materials,370.41
209539,31/08/2022,H B Commercial Ltd,Vehicle Maint - Other Mats,Waste Management - Materials,1327.49
209540,31/08/2022,H B Commercial Ltd,Vehicle Maint - Other Mats,Waste Management - Materials,361.75
209542,31/08/2022,Contracts Support Services Ltd,Waste Mgmt - Agency Staff,Agency Staff (Professional),813.64
209546,31/08/2022,Bartec Municipal Technologies Limited,Waste Mgmt - Subscriptions,Subscriptions,3469.92
209547,14/09/2022,The Institute of Licensing (Events) Ltd,Licensing - Other Mats,Signage - Other Materials,2282.25
209549,31/08/2022,Dennis Eagle Limited,Vehicle Maint - Other Mats,Waste Management - Materials,666.14
209551,31/08/2022,WFL (UK) Ltd,Vehicle Maint - Other Mats,Vehicle Parts - Other Materials,5579.92
209553,07/09/2022,NEC Software Solutions UK Ltd,Info Tech - Support Costs,ICT Maintenance/Support - Support Costs,540.00
209554,31/08/2022,East of England Local Government Associa,Corporate Man - Consultants,Consultants - General,10875.00
209555,31/08/2022,Hays Specialist Recruitment Ltd,Financial Srvs - Agency Staff,Agency Staff (Professional),1287.00
209556,31/08/2022,NEC Software Solutions UK Ltd,Info Tech - Support Costs,ICT Maintenance/Support - Support Costs,698.29
209557,14/09/2022,Keep IT Simple Stationery Ltd,Info Tech - Equipment,ICT Consumables - Equipment,11440.00
209558,31/08/2022,Praxis42 Ltd,Human Resource - Prof Training,Training,4671.45
209561,31/08/2022,Malthouse Security Ltd,Sheltered Hsg - Equipment,Health Care Equipment,942.12
209562,31/08/2022,Sellick Partnership Ltd,Legal Services - Fees,Legal Services - Fees,1785.00
209563,31/08/2022,Sellick Partnership Ltd,Legal Services - Legal Fees,Legal Services - Legal Fees,1375.00
209564,31/08/2022,Sellick Partnership Ltd,Legal Services - Legal Fees,Legal Services - Legal Fees,1375.00
209567,31/08/2022,George Browns,Grounds Mtce  - External Contracts,Horticultural (Misc) - Grounds Maint,330.57
209568,31/08/2022,IDOX Software Limited,Info Tech - Support Costs,ICT Maintenance/Support - Support Costs,1120.00
209569,31/08/2022,George Browns,Grounds Mtce  - External Contracts,Horticultural (Misc) - Grounds Maint,875.59
209570,31/08/2022,Mark Liell & Son LLP,Commercial Asset Mgt - Fees,Partnerships - Fees,40000.00
209571,31/08/2022,G2 Recruitment Solutions,Commercial Team - Agency Staff,Agency Staff (Professional),832.00
209572,31/08/2022,G2 Recruitment Solutions,Commercial Team - Agency Staff,Agency Staff (Professional),2088.00
209573,31/08/2022,G2 Recruitment Solutions,Commercial Team - Agency Staff,Agency Staff (Professional),1024.00
209574,31/08/2022,The Oyster Partnership Ltd,Dev't Control - Agency Staff,Agency Staff (Professional),1882.19
209575,31/08/2022,Cushman & Wakefield Debenham Tie Leung L,"MOOG, Tawkesbury Cap Pur Acq",Construction - Capital Purchase Acquisit,3950.00
209576,31/08/2022,The Oyster Partnership Ltd,Commercial Team - Agency Staff,Agency Staff (Professional),1655.50
209577,31/08/2022,The Oyster Partnership Ltd,Commercial Team - Agency Staff,Agency Staff (Professional),1591.00
209578,31/08/2022,The Oyster Partnership Ltd,Commercial Team - Agency Staff,Agency Staff (Professional),1634.00
209579,31/08/2022,The Oyster Partnership Ltd,Commercial Team - Agency Staff,Agency Staff (Professional),1400.00
209580,31/08/2022,The Oyster Partnership Ltd,Commercial Team - Agency Staff,Agency Staff (Professional),1762.50
209581,31/08/2022,The Oyster Partnership Ltd,Commercial Team - Agency Staff,Agency Staff (Professional),450.00
209582,31/08/2022,Carrington West Ltd,Dev't Control - Agency Staff,Agency Staff (Professional),1739.00
209583,31/08/2022,Sarto Thomas Ltd,Dev't Control - Agency Staff,Agency Staff (Professional),2775.00
209585,31/08/2022,Cushman & Wakefield Debenham Tie Leung L,Commercial Asset Mgt - Fees,Partnerships - Fees,7000.00
209587,31/08/2022,Legrand Electric Ltd,Sheltered Hsg - Equip Maint,Health Care Equipment - Maintenance,262.92
209589,31/08/2022,Skyline Hotel,Homelessness - Accommodation,Homelessness - Accommodation,688.50
209590,31/08/2022,Skyline Hotel,Homelessness - Accommodation,Homelessness - Accommodation,891.00
209591,31/08/2022,Skyline Hotel,Homelessness - Accommodation,Homelessness - Accommodation,405.00
209592,31/08/2022,Hays Specialist Recruitment Ltd,GF Asset Mgt - Agency Staff,Agency Staff (Professional),1265.70
209593,31/08/2022,Hays Specialist Recruitment Ltd,GF Asset Mgt - Agency Staff,Agency Staff (Professional),1012.56
209594,31/08/2022,Hays Specialist Recruitment Ltd,GF Asset Mgt - Agency Staff,Agency Staff (Professional),1012.56
209595,31/08/2022,Hays Specialist Recruitment Ltd,GF Asset Mgt - Agency Staff,Agency Staff (Professional),1012.56
209596,31/08/2022,Hays Specialist Recruitment Ltd,GF Asset Mgt - Agency Staff,Agency Staff (Professional),1012.56
209597,31/08/2022,Hays Specialist Recruitment Ltd,GF Asset Mgt - Agency Staff,Agency Staff (Professional),991.47
209598,31/08/2022,Hays Specialist Recruitment Ltd,GF Asset Mgt - Agency Staff,Agency Staff (Professional),970.38
209599,31/08/2022,Hays Specialist Recruitment Ltd,GF Asset Mgt - Agency Staff,Agency Staff (Professional),675.04
209600,07/09/2022,Logistics UK,Vehicle Maint - Subscriptions,Subscriptions,900.00
209602,07/09/2022,AEBI Schmidt UK Limited,Vehicle Maint - Other Mats,Waste Management - Materials,559.97
209612,07/09/2022,H B Commercial Ltd,Vehicle Maint - Other Mats,Waste Management - Materials,291.00
209614,07/09/2022,Source 24/7 LTD,Waste Mgmt - Agency Staff,Agency Staff (Professional),2634.00
209618,07/09/2022,Sarto Thomas Ltd,Dev't Control - Agency Staff,Agency Staff (Professional),2812.50
209620,07/09/2022,Newsquest Media Group Ltd,Dev't Control - Advertising,Advertising,662.82
209621,07/09/2022,Newsquest Media Group Ltd,Dev't Control - Advertising,Advertising,361.18
209622,07/09/2022,Welding Service Mobile,Trade Bin Rep - Cap Pur P&E,Capital Purchases - Plant & Equipment,790.00
209623,07/09/2022,Elliot Baxter & Co Ltd T/A EBB OFFICE,Print Room - Stationery,Stationery,845.23
209625,07/09/2022,Duncan Cameron & Hutchinson Ltd,Thaxted Road - Cap Wk L&B,Sheltered Housing (Cap L&B),141718.91
209626,07/09/2022,Duncan Cameron & Hutchinson Ltd,Great Chesterford - Cap Wk L&B,Consultancy (Prop Works)- Cap Wk L&B,126698.77
209627,07/09/2022,Good People Recycling Ltd,Grounds Mtce  - Agency Staff,Agency Staff (Professional),906.50
209628,07/09/2022,Newsquest Media Group Ltd,Economic Development - Advertising,Advertising,363.20
209634,07/09/2022,Tetra Tech,Plan Policy - Consultants,Consultants - General,20000.00
209635,07/09/2022,Linteum (Uttlesford) Ltd,PFI Financing LTL -Repaid,Leisure Services - LTL - Repaid,13910.58
209635,07/09/2022,Linteum (Uttlesford) Ltd,Int & Invest - Interest Pay,Leisure Services - Interest Payable,28968.50
209635,07/09/2022,Linteum (Uttlesford) Ltd,PFI - PFI Unitary,Leisure Services -PFI Unitary Charge,55165.59
209636,07/09/2022,Sonovate Ltd,Plan Policy - Agency Staff,Agency Staff (Professional),975.00
209637,07/09/2022,CIEH,Env Protection - Advertising,Recruitment - Advertising,800.00
209638,07/09/2022,Abrey & Son Ltd,Grounds Mtce - Equipment,Tools/Equipment (Purchase) - Equipment,532.36
209640,07/09/2022,Good People Recycling Ltd,Waste Mgmt - Agency Staff,Agency Staff (Professional),13807.89
209641,07/09/2022,Sundry BACS,Hsg Rent Refunds Movements,Housing rent refunds,1767.40
209642,07/09/2022,Sellick Partnership Ltd,Legal Services - Agency Staff,Agency Staff (Professional),971.40
209643,07/09/2022,Good People Recycling Ltd,Waste Mgmt - Agency Staff,Agency Staff (Professional),10735.70
209644,07/09/2022,Sellick Partnership Ltd,Legal Services - Fees,Legal Services - Fees,1905.00
209645,07/09/2022,Canon (UK) Limited,Print Room - Photocopier,Reprographics - Photocopier,413.62
209646,07/09/2022,Sellick Partnership Ltd,Legal Services - Legal Fees,Legal Services - Legal Fees,1375.00
209647,07/09/2022,Regency Guarding & Events Ltd,Canfield Offices - Contractors,Security - Payments to Contractors,12267.00
209648,07/09/2022,Regency Guarding & Events Ltd,Canfield Offices - Contractors,Security - Payments to Contractors,12151.00
209649,07/09/2022,Dunmow Skips Ltd,Street Clnsing - Disposal Chg,Waste Recycling - Disposal Charge,509.39
209650,07/09/2022,Computershare Voucher Services,Human Resource - Emp'ee Scheme,Human Resources - Emp'ee Scheme,417.08
209652,07/09/2022,Cambridge University Hospitals NHS FT,Committee Adm - Medic Other,Assessment - Medical Other,793.00
209653,14/09/2022,WFL (UK) Ltd,Vehicle Maint - Other Mats,Vehicle Parts - Other Materials,462.00
209654,07/09/2022,Essex County Council - ESAB,Comm Safe Part - Seminars,Conferences - Seminars & Meetings,1130.00
209655,07/09/2022,Npower Limited,Thaxted CIC - Electricity,Corporate assets utilities ,25535.22
209656,07/09/2022,Affinity Water,Temp Accom - Water,Corporate assets utilities ,582.79
209656,07/09/2022,Affinity Water,Rates & Prop - Water,Corporate assets utilities ,455.93
209657,07/09/2022,Castle Water Limited,Thaxted CIC - Water,Corporate assets utilities ,288.56
209659,07/09/2022,Saffron Walden Town Council,Plan Policy - Grants,Grants,695.60
209661,07/09/2022,N&P Crayford MRF Ltd,Waste Mgmt - Mat Rec Fac,Waste Recycling - Materials Recycling,35390.92
209662,14/09/2022,The Monarch Partnership,Climate Change - Consultants,Consultants - General,360.00
209663,07/09/2022,Sonovate Ltd,Plan Policy - Agency Staff,Agency Staff (Professional),1657.50
209665,14/09/2022,Cromwell Polythene Limited,Street Clnsing - Other Mats,Waste Management - Materials,5485.50
209666,07/09/2022,Lindstrom Ltd,Vehicle Maint - Other Mats,Waste Management - Materials,416.99
209667,07/09/2022,Source 24/7 LTD,Waste Mgmt - Agency Staff,Agency Staff (Professional),2678.75
209668,07/09/2022,Driver Hire Chelmsford,Waste Mgmt - Agency Staff,Agency Staff (Professional),470.36
209669,07/09/2022,Carrington West Ltd,Dev't Control - Agency Staff,Agency Staff (Professional),1739.00
209670,07/09/2022,The Valuation Office,GF Asset Mgt - Pl Repairs,General Materials - Planned Repairs,1000.00
209671,07/09/2022,Objective Corporation Limited,Info Tech - Support Costs,ICT Maintenance/Support - Support Costs,9548.31
209672,14/09/2022,Trailar Limited,Climate Change - Equipment,Tools/Equipment (Purchase) - Equipment,17500.00
209674,07/09/2022,LDA Design Consulting Ltd,Plan Policy - Consultants,Consultants - General,7000.00
209676,07/09/2022,Cushman & Wakefield Debenham Tie Leung L,Waitrose Dist. Chorley Cap Pur Acq,Construction - Capital Purchase Acquisit,74653.15
209677,07/09/2022,Print Image Facilities LLP,Electoral Reg - Postage,Postage,1531.66
209678,07/09/2022,Print Image Network Limited,Electoral Reg - Printing,Printing,4598.20
209680,07/09/2022,Arthur J Gallagher Insurance Brokers Ltd,Commercial Asset Mgt - Fees,Partnerships - Fees,71774.58
209681,07/09/2022,Ashdon Parish Council,Community Grt - Cap Grt P&E,Grants,2600.00
209682,07/09/2022,Sundry BACS,Hsg Rent Refunds Movements,Housing rent refunds,443.52
209683,07/09/2022,Zehnder Group UK Ltd,GF Asset Mgt - Pl Repairs,Heating/Air Cond - Planned Repairs,481.00
209684,07/09/2022,Zehnder Group UK Ltd,GF Asset Mgt - Pl Repairs,Heating/Air Cond - Planned Repairs,481.00
209685,14/09/2022,Solace Group,Waste Mgmt - Prof Training,Training,450.00
209686,07/09/2022,Hays Specialist Recruitment Ltd,GF Asset Mgt - Agency Staff,Agency Staff (Professional),1350.08
209690,07/09/2022,Hays Specialist Recruitment Ltd,Financial Srvs - Agency Staff,Agency Staff (Professional),1287.00
209692,07/09/2022,Sundry BACS,Dev Ctrl PPA - Charges,Development charges,450.00
209696,07/09/2022,Sundry BACS,Dev Ctrl Appls - Legal Fees,Development control - Legal,8118.06
209697,07/09/2022,The Oyster Partnership Ltd,Dev't Control - Agency Staff,Agency Staff (Professional),1882.19
209698,07/09/2022,The Oyster Partnership Ltd,Dev't Control - Agency Staff,Agency Staff (Professional),1792.50
209699,07/09/2022,The Oyster Partnership Ltd,Dev't Control - Agency Staff,Agency Staff (Professional),1768.60
209700,07/09/2022,Penna PLC,Financial Srvs - Agency Staff,Agency Staff (Professional),11529.00
209701,07/09/2022,Nominet UK,Info Tech - Support Costs,ICT Maintenance/Support - Support Costs,1009.61
209702,07/09/2022,Safetykleen UK Ltd,Vehicle Maint - Other Mats,Waste Management - Materials,505.99
209703,07/09/2022,Brown 2 Green Associates Ltd,Property Servs Business Plan,Housing Dev - Business Plan,4462.20
209704,07/09/2022,OMC Associates,Property Servs Business Plan,Housing Dev - Business Plan,620.00
209706,07/09/2022,J D Robertson & Co Limited,Waste Mgmt - Contract Hire,Vehicle Hire,934.65
209707,07/09/2022,Go Plant Fleet Services Ltd,Waste Mgmt - Contract Hire,Vehicle Hire,3875.00
209709,07/09/2022,Go Plant Fleet Services Ltd,Waste Mgmt - Contract Hire,Credit note,-1000.00
209710,07/09/2022,Essex County Council,Land Charges - Fees,Land Search Fees,826.00
209711,07/09/2022,Newsquest Media Group Ltd,Dev't Control - Advertising,Advertising,480.43
209712,07/09/2022,Newsquest Media Group Ltd,Dev't Control - Advertising,Advertising,262.57
209714,07/09/2022,East of England Local Government Associa,Democratic Rep - Subscriptions,Subscriptions,2000.00
209715,14/09/2022,Saffron Walden Town Council,Comm Safe Part - Seminars,Conferences - Seminars & Meetings,317.75
209717,14/09/2022,Mewies Engineering Consultants Ltd,New Depot Associated Capital Costs,Consultancy - Associated Capital Costs,1175.00
209719,28/09/2022,Gartec Ltd,New Depot Associated Capital Costs,Buildings Repair - Associated Cap Costs,889.99
209720,28/09/2022,Landmark Business Supplies (Stationery),Mail Room - Stationery,Stationery,284.79
209723,07/09/2022,Dixon Searle Partnership Ltd,Plan Policy - Consultants,Consultants - General,3375.00
209724,07/09/2022,Frog Software Training Ltd,Waste Mgmt - Prof Training,Training,550.00
209726,14/09/2022,Uttlesford Norse Ltd.,Norse Partnership Estates - Fees,Partnerships - Fees,17284.30
209726,14/09/2022,Uttlesford Norse Ltd.,Norse Partnership Hsg Rep - Fees,Partnerships - Fees,159691.90
209726,14/09/2022,Uttlesford Norse Ltd.,Norse Partnership Sheltered - Fees,Partnerships - Fees,9781.66
209726,14/09/2022,Uttlesford Norse Ltd.,Norse Partnership Sewerage - Fees,Partnerships - Fees,4179.27
209727,14/09/2022,Uttlesford Norse Ltd.,Norse Partnership Hsg Rep - Fees,Partnerships - Fees,38199.15
209728,14/09/2022,Uttlesford Norse Ltd.,Norse Partnership Admin - Fees,Partnerships - Fees,30237.19
209728,14/09/2022,Uttlesford Norse Ltd.,Norse Partnership Hsg Rep - Fees,Partnerships - Fees,48880.02
209729,14/09/2022,Uttlesford Norse Ltd.,Voids Prog - Cap Rep L&B,Buildings Repair/Maint - Cap Rep L&B,52450.00
209730,14/09/2022,SGS (formally Concept Life Sciences),Border Inspect - Oth Prof Fees,Forensic & Lab Testing - Oth Prof Fees,3658.80
209731,14/09/2022,D M Andrews,Private Sector - Cap Grt L&B,Grants - S106 Cap Grt L&B,1681.80
209732,14/09/2022,Central Tyre Limited,Vehicle Maint - Other Mats,Waste Management - Materials,1774.90
209733,14/09/2022,Thurrock Council,Env Protection - Consultants,Consultants - General,936.00
209734,14/09/2022,Mill Green Facilities Limited,New Depot Associated Capital Costs,Buildings Repair - Associated Cap Costs,408.89
209737,14/09/2022,Planit Consulting,Dev Ctrl Appls - Consultants,Consultants - General,7334.99
209738,14/09/2022,Sarto Thomas Ltd,Dev't Control - Agency Staff,Agency Staff (Professional),2437.50
209739,14/09/2022,Vehicle Weighing Solutions Ltd,Vehicle Maint - Other Mats,Vehicle Parts - Other Materials,380.31
209740,14/09/2022,Drivercheck Ltd,Licensing - Other Mats,Signage - Other Materials,439.50
209741,14/09/2022,James Blake Associates Ltd,Property Servs Business Plan,Housing Dev - Business Plan,1062.00
209742,14/09/2022,Binder Limited,SW Depot - Fees,Waste Recycling - Fees,928.00
209746,14/09/2022,Newsquest Media Group Ltd,Economic Development - Advertising,Advertising,425.60
209750,14/09/2022,Kelly Rowland,Health Imp - Seminars,Room Hire - Seminars & Meetings,960.00
209751,14/09/2022,Patricia Ackron,Health Imp - Seminars,Room Hire - Seminars & Meetings,640.00
209752,14/09/2022,The Enterprise East Group CIC,Health Imp - Seminars,Room Hire - Seminars & Meetings,300.00
209753,14/09/2022,Oxford Archaeology Ltd,Plan Policy - Consultants,Consultants - General,3023.00
209754,14/09/2022,Nexus Planning Limited,Plan Policy - Consultants,Consultants - General,5500.00
209757,14/09/2022,Chelmsford Safety Supplies,Waste Mgmt - Clothing,Protective Clothing - Clothing & Uniform,331.20
209760,14/09/2022,H B Commercial Ltd,Vehicle Maint - Other Mats,Waste Management - Materials,683.00
209764,14/09/2022,Good People Recycling Ltd,Waste Mgmt - Agency Staff,Agency Staff (Professional),10740.63
209766,14/09/2022,Newline Anglia Ltd,Waste Mgmt - Clothing,Protective Clothing - Clothing & Uniform,262.50
209767,14/09/2022,Newline Anglia Ltd,Waste Mgmt - Clothing,Protective Clothing - Clothing & Uniform,309.49
209769,14/09/2022,Driver Hire Chelmsford,Waste Mgmt - Agency Staff,Agency Staff (Professional),470.37
209771,14/09/2022,G2 Recruitment Solutions,Commercial Team - Agency Staff,Agency Staff (Professional),2088.00
209773,14/09/2022,Buckingham Futures Ltd,Commercial Team - Agency Staff,Agency Staff (Professional),2565.00
209774,14/09/2022,The Oyster Partnership Ltd,Commercial Team - Agency Staff,Agency Staff (Professional),1275.00
209775,14/09/2022,The Oyster Partnership Ltd,Commercial Team - Agency Staff,Agency Staff (Professional),250.00
209779,14/09/2022,Malthouse Security Ltd,Sheltered Hsg - Equipment,Health Care Equipment,942.12
209783,14/09/2022,Provide Community Interest Company,Sheltered Hsg - Oth Loc Auth,Social&Community Care Misc - Oth Loc Aut,5558.42
209784,14/09/2022,Provide Community Interest Company,Sheltered Hsg - Oth Loc Auth,Social&Community Care Misc - Oth Loc Aut,5558.42
209785,14/09/2022,The Oyster Partnership Ltd,Dev't Control - Agency Staff,Agency Staff (Professional),1526.10
209786,14/09/2022,The Oyster Partnership Ltd,Dev't Control - Agency Staff,Agency Staff (Professional),1410.10
209788,14/09/2022,Dennis Eagle Limited,Vehicle Maint - Other Mats,Waste Management - Materials,579.78
209793,14/09/2022,Carrington West Ltd,Dev't Control - Agency Staff,Agency Staff (Professional),1715.50
209794,14/09/2022,H B Commercial Ltd,Vehicle Maint - Other Mats,Waste Management - Materials,344.23
209795,14/09/2022,H B Commercial Ltd,Vehicle Maint - Other Mats,Waste Management - Materials,255.35
209796,14/09/2022,H B Commercial Ltd,Vehicle Maint - Other Mats,Waste Management - Materials,341.77
209799,14/09/2022,Hall Mark Meat Hygiene Limited,Border Inspect - Oth Prof Fees,Veterinary Services - Other Prof Fees,7425.00
209800,14/09/2022,General Business Holdings Ltd,Waste Mgmt - Disposal Chg,Waste Disposal - Disposal Charge,2110.25
209801,14/09/2022,WFL (UK) Ltd,Vehicle Maint - Other Mats,Vehicle Parts - Other Materials,1000.00
209802,14/09/2022,Go Plant Fleet Services Ltd,Waste Mgmt - Contract Hire,Vehicle Hire,3875.00
209803,14/09/2022,Henry Riley,Property Servs - Consultants,Consultants - General,3900.00
209804,14/09/2022,Hays Specialist Recruitment Ltd,GF Asset Mgt - Agency Staff,Agency Staff (Professional),1096.94
209805,14/09/2022,Great Dunmow Town Council,Youth grant - Grants,Grants,5000.00
209806,14/09/2022,Saffron Walden Town Council,Youth grant - Grants,Grants,10000.00
209807,14/09/2022,Stansted Mountfitchet Parish Council,Youth grant - Grants,Grants,7500.00
209808,14/09/2022,Bartec Municipal Technologies Limited,Waste Mgmt - Subscriptions,Subscriptions,4598.15
209813,14/09/2022,Sonovate Ltd,Plan Policy - Agency Staff,Agency Staff (Professional),1516.67
209814,14/09/2022,Ace LGV Training Ltd,Waste Mgmt - Prof Training,Training,1785.33
209818,14/09/2022,Workplace Options Limited,Human Resource - Emp'ee Scheme,Human Resources - Emp'ee Scheme,3960.00
209820,14/09/2022,Saffron Electrical,Private Sector - Cap Grt L&B,Grants,771.88
209821,14/09/2022,Buckingham Futures Ltd,Commercial Team - Agency Staff,Agency Staff (Professional),2826.25
209822,14/09/2022,The Oyster Partnership Ltd,Commercial Team - Agency Staff,Agency Staff (Professional),989.00
209823,14/09/2022,The Oyster Partnership Ltd,Commercial Team - Agency Staff,Agency Staff (Professional),1187.50
209824,14/09/2022,CIEH,Env Protection - Prof Subs,Professional Subscriptions,298.75
209825,14/09/2022,NEC Software Solutions UK Ltd,Info Tech - Support Costs,ICT Software,991.68
209826,14/09/2022,Essex County Council,Dev't Control - Consultants,Consultants - General,19037.00
209827,14/09/2022,Essex County Council,Dev Ctrl Appls - Consultants,Consultants - General,14546.00
209828,14/09/2022,Essex County Council,Dev Ctrl Appls - Consultants,Consultants - General,13803.00
209829,28/09/2022,Hound Envelopes Limited,Mail Room - Stationery,Stationery,1568.00
209832,14/09/2022,Sellick Partnership Ltd,Legal Services - Agency Staff,Agency Staff (Professional),594.98
209833,14/09/2022,Sellick Partnership Ltd,Legal Services - Agency Staff,Agency Staff (Professional),959.26
209835,14/09/2022,Trowers & Hamlins LLP,Democratic Rep - Prof Training,Training,3500.00
209836,14/09/2022,Essex County Council - ESCB,Comm Safety - Seminars,Conferences - Seminars & Meetings,1210.00
209837,14/09/2022,Frog Software Training Ltd,Street Serv Man - Prof Training,Training,550.00
209839,14/09/2022,Tetra Tech,Plan Policy - Consultants,Consultants - General,20000.00
209840,21/09/2022,Sellick Partnership Ltd,Legal Services - Fees,Legal Services - Fees,1620.00
209841,21/09/2022,Sellick Partnership Ltd,Legal Services - Fees,Legal Services - Fees,2059.80
209843,21/09/2022,Sellick Partnership Ltd,Legal Services - Legal Fees,Legal Services - Legal Fees,1375.00
209844,21/09/2022,Essex County Council,Housing Servs - Subscriptions,Subscriptions,1000.00
209845,21/09/2022,Henry Riley,New Depot Associated Capital Costs,Consultancy - Associated Capital Costs,750.00
209846,21/09/2022,Central Tyre Limited,Vehicle Maint - Other Mats,Waste Management - Materials,2883.84
209847,21/09/2022,Contracts Support Services Ltd,Waste Mgmt - Agency Staff,Agency Staff (Professional),542.42
209849,21/09/2022,MSG Contracts Limited,Canfield Offices - Cleaning,Cleaning Service - Contract Cleaning,1542.67
209850,21/09/2022,Mill Green Facilities Limited,New Depot Associated Capital Costs,Buildings Repair - Associated Cap Costs,4211.89
209853,21/09/2022,Canon (UK) Limited,Print Room - Other Mats,Signage - Other Materials,1070.87
209855,21/09/2022,Writtle College,Grounds Mtce  - Prof Training,Training,495.00
209857,21/09/2022,IT Service Management Forum Limited,Info Tech - Subscriptions,Subscriptions,650.00
209858,21/09/2022,GMS Steel Fabrications Limited,Trade Bin Rep - Cap Pur P&E,Capital Purchases - Plant & Equipment,8151.00
209859,21/09/2022,Diamond Office Furniture Ltd,S/W Offices - Equipment,Waste Collection - Waste Disposal,600.00
209860,21/09/2022,ESE World Limited,Trade Bin Rep - Cap Pur P&E,Capital Purchases - Plant & Equipment,8185.30
209861,21/09/2022,Sellick Partnership Ltd,Legal Services - Legal Fees,Legal Services - Legal Fees,1375.00
209862,21/09/2022,Dennis Eagle Limited,Vehicle Maint - Other Mats,Waste Management - Materials,838.80
209864,21/09/2022,H B Commercial Ltd,Vehicle Maint - Other Mats,Waste Management - Materials,264.91
209868,21/09/2022,H B Commercial Ltd,Vehicle Maint - Other Mats,Waste Management - Materials,341.77
209874,21/09/2022,Macdonald & Company,Dev't Control - Agency Staff,Agency Staff (Professional),1870.50
209875,21/09/2022,Sarto Thomas Ltd,Dev't Control - Agency Staff,Agency Staff (Professional),2775.00
209878,21/09/2022,Creative Learning Systems Ltd,Human Resource - Subscriptions,Subscriptions,7789.40
209881,28/09/2022,Sundry BACS,Hsg Rent Refunds Movements,Housing rent refunds,345.89
209882,28/09/2022,Sundry BACS,Hsg Rent Refunds Movements,Housing rent refunds,1484.69
209886,21/09/2022,Writtle College,Grounds Mtce  - Prof Training,Training,365.00
209888,21/09/2022,Uttlesford Norse Ltd.,Norse Partnership Asset Mgt - Fees,Partnerships - Fees,14136.44
209888,21/09/2022,Uttlesford Norse Ltd.,Norse Partnership Cleaning - Fees,Partnerships - Fees,18996.10
209892,21/09/2022,Dunmow Skips Ltd,Street Clnsing - Disposal Chg,Waste Recycling - Disposal Charge,583.39
209893,21/09/2022,The Walden Local,Economic Development - Advertising,Advertising,350.00
209894,21/09/2022,The Design Partnership (Ely) Ltd,Property Servs Business Plan,Housing Dev - Business Plan,596.40
209895,21/09/2022,Chassis Cab Ltd,Vehicle Maint - Other Mats,Waste Management - Materials,298.25
209897,21/09/2022,Terberg Matec UK Ltd,Vehicle Maint - Other Mats,Waste Management - Materials,1800.77
209898,21/09/2022,Good People Recycling Ltd,Grounds Mtce  - Agency Staff,Agency Staff (Professional),906.50
209899,21/09/2022,Good People Recycling Ltd,Waste Mgmt - Agency Staff,Agency Staff (Professional),9015.58
209900,21/09/2022,Driver Hire Chelmsford,Waste Mgmt - Agency Staff,Agency Staff (Professional),313.58
209904,21/09/2022,Total Gas & Power Limited,Thaxted CIC - Gas,Housing cic,16570.61
209906,21/09/2022,Gracelands CMS Ltd,Dis Facil Grt - Cap Grt L&B,Grants - S106 Cap Grt L&B,5449.94
209907,21/09/2022,Gracelands CMS Ltd,Dis Facil Grt - Cap Grt L&B,Grants - S106 Cap Grt L&B,5288.07
209910,21/09/2022,Source 24/7 LTD,Waste Mgmt - Agency Staff,Agency Staff (Professional),1944.00
209911,21/09/2022,Chelmsford Safety Supplies,New Depot Associated Capital Costs,Buildings Repair - Associated Cap Costs,512.00
209912,21/09/2022,QA Limited,Info Tech - Seminars,Conferences - Seminars & Meetings,5390.00
209913,21/09/2022,Gracelands CMS Ltd,Dis Facil Grt - Cap Grt L&B,Grants - S106 Cap Grt L&B,5285.14
209914,21/09/2022,Mobile Mini UK Ltd,Parish & NPR Elections - Rent,Rents,1810.00
209916,21/09/2022,Optimum AV,Info Tech - Equipment,Events - Equipment,7965.00
209917,21/09/2022,Keep IT Simple Stationery Ltd,Info Tech - Equipment,ICT Consumables - Equipment,1318.00
209918,21/09/2022,NewAuto Ltd T/A Mogo,Licensing - Other Mats,Signage - Other Materials,254.90
209919,21/09/2022,Rathbone Advertising Ltd,Waste Mgmt - Advertising,Advertising,1053.00
209920,21/09/2022,Solace Group,Chief Exec - Seminars,Conferences - Seminars & Meetings,525.00
209922,21/09/2022,The Oyster Partnership Ltd,Dev't Control - Agency Staff,Agency Staff (Professional),1882.19
209923,21/09/2022,The Oyster Partnership Ltd,Dev't Control - Agency Staff,Agency Staff (Professional),1768.60
209924,21/09/2022,Planit Consulting,Dev Ctrl Appls - Consultants,Consultants - General,7976.00
209925,21/09/2022,Carrington West Ltd,Dev't Control - Agency Staff,Agency Staff (Professional),1739.00
209926,21/09/2022,Macdonald & Company,Dev't Control - Agency Staff,Agency Staff (Professional),2204.00
209928,21/09/2022,AdEPT Telecom PLC T/A Centrix Ltd,Telephones - Telephones,Chairmans Expenses,2308.84
209929,21/09/2022,AdEPT Telecom PLC T/A Centrix Ltd,Telephones - Telephones,Chairmans Expenses,2564.93
209930,21/09/2022,Sawyer & Fisher (Epsom) LTD,Dev't Control - Consultants,Consultants - General,1000.00
209931,21/09/2022,Sawyer & Fisher (Epsom) LTD,Dev't Control - Consultants,Consultants - General,1250.00
209933,21/09/2022,Macdonald & Company,Dev't Control - Agency Staff,Agency Staff (Professional),2189.50
209934,21/09/2022,Macdonald & Company,Dev't Control - Agency Staff,Agency Staff (Professional),4408.00
209935,21/09/2022,Macdonald & Company,Dev't Control - Agency Staff,Agency Staff (Professional),4335.50
209936,21/09/2022,Hays Specialist Recruitment Ltd,Financial Srvs - Agency Staff,Agency Staff (Professional),1930.50
209937,21/09/2022,Hays Specialist Recruitment Ltd,Financial Srvs - Agency Staff,Agency Staff (Professional),2574.00
209938,28/09/2022,Hound Envelopes Limited,Revenues Admin - Stationery,Stationery,470.00
209940,21/09/2022,Sundry BACS,Dev Ctrl Appls - Legal Fees,Housing ctrl appls legal,3629.07
